Workbook

Sheet PORTADA
F5: Presentación >>
C6: Boletín Estadístico | F6: 2016

Sheet PRESENTACIÓN
B2: Boletín Estadístico
B3: 2016
B7: << Portada | F7: Índice >>
C10: Presentación
B12: Desde una cultura de la autorregulación y el mejoramiento continuo, y como expresión de claridad institucional, la publicación anual del Boletín Estadístico de la Pontificia Universidad Javeriana, que complementa el Informe del Rector al Consejo de Regentes, constituye una valiosa oportunidad para proporcionar a la Comunidad Educativa Javeriana y a la sociedad en general, información consolidada sobre el desarrollo institucional en el marco de la Planeación Universitaria 2007-2016 de la Sede Central y del Plan Institucional 2012-2021: bases para una década de desarrollo, de la Seccional Cali.
B14: El Boletín inicia con un resumen estadístico de la información más relevante del año 2016, y a continuación relaciona las principales estadísticas de la Universidad respecto a la oferta académica, los estudiantes, los profesores, las actividades de investigación, las actividades de servicio, los empleados administrativos, las actividades del medio universitario, las actividades administrativas, y los diferentes recursos que la Universidad pone a disposición de su labor educativa; presentado en la medida de lo posible las series históricas desde el año 2007.
B16: Extiendo mi invitación al lector para que obtenga el mayor provecho de esta importante herramienta, que estará disponible en formato Web y Excel, con el fin de facilitar, promover el uso y análisis de la información.
B18: Finalmente, agradezco a las diferentes unidades de la Universidad el esfuerzo que realizan en proporcionar la información que aquí se incluye, y que hacen posible compartir con todas nuestras audiencias este panorama estadístico de nuestra institución.
D20: Jorge Humberto Peláez Piedrahíta, S. J.
D21: Rector
F23: Bogotá, D. C., mayo de 2017

Sheet RESUMEN ESTADÍSTICO
B2: << Índice | G2: Tabla A-1 >>
B4: RESUMEN ESTADÍSTICO
A5: Resumen Estadístico | B5: Resumen de información estadística. Sede Central y Seccional Cali.
B6: Nota: -> * Para la Sede Central corresponde a los profesores de planta con cargo fijo (no temporal), incluidos aquellos que se encuentran en licencia no remunerada. -> ** No se incluyen prácticas y pasantías, solo intercambio para la Sede Central.
B7: Categoría | F7: Sede Central | G7: Seccional Cali | H7: Total
B8: Información General
B9: =+B8 -> Información General | C9: Facultades | F9: 18 | G9: 4 | H9: =SUM(F9:G9) -> 22
B10: =+B9 -> Información General | C10: Departamentos | F10: 62 | G10: 16 | H10: =SUM(F10:G10) -> 78
B11: =+B10 -> Información General | C11: Institutos | F11: 14 | G11: 1 | H11: =SUM(F11:G11) -> 15
B12: Programas Académicos
B13: =+B12 -> Programas Académicos | C13: Programas de pregrado | F13: =SUM(F14:F16) -> 37 | G13: =SUM(G14:G16) -> 19 | H13: =SUM(F13:G13) -> 56
B14: Programas Académicos | C14: Programas de pregrado | D14: En metodología presencial | F14: 37 | G14: 19 | H14: =SUM(F14:G14) -> 56
B15: Programas Académicos | C15: Programas de pregrado | D15: En metodología a distancia | F15: 0 | G15: 0 | H15: 0
B16: Programas Académicos | C16: Programas de pregrado | D16: En metodología virtual | F16: 0 | G16: 0 | H16: 0
B17: Programas Académicos | C17: Programas de posgrado | F17: =F18+F22+F24+F23 -> 147 | G17: =G18+G22+G24+G23 -> 35 | H17: 182
B18: Programas Académicos | C18: Programas de posgrado | D18: Programas de especialización | F18: 87 | G18: 16 | H18: 103
B19: Programas Académicos | C19: Programas de posgrado | D19: De ellas: | H19: 0
B20: Programas Académicos | C20: Programas de posgrado | D20: De ellas: | E20: Especializaciones clínicas y quirúrgicas | F20: 32 | G20: 0 | H20: 32
B21: Programas Académicos | C21: Programas de posgrado | D21: De ellas: | E21: Especializaciones odontológicas | F21: 7 | G21: 0 | H21: 7
B22: Programas Académicos | C22: Programas de posgrado | D22: Programas de maestría | F22: 50 | G22: 15 | H22: 65
B23: Programas Académicos | C23: Programas de posgrado | D23: Programas de maestría en extensión | G23: 3 | H23: 3
B24: Programas Académicos | C24: Programas de posgrado | D24: Programas de doctorado | F24: 10 | G24: 1 | H24: 11
B25: Acreditación
B26: =+B25 -> Acreditación | C26: Acreditación Institucional de Alta Calidad | F26: Resolución 2333 del 6 de marzo de 2012 del MEN
B27: =+B26 -> Acreditación | C27: Programas acreditados de pregrado | F27: 30 | G27: 10 | H27: =SUM(F27:G27) -> 40
B28: Estudiantes
B29: =+B28 -> Estudiantes | C29: Estudiantes regulares de pregrado | F29: =SUM(F30:F32) -> 19833 | G29: =SUM(G30:G32) -> 6933 | H29: 26766
B30: Estudiantes | C30: Estudiantes regulares de pregrado | D30: Estudiantes en programas de metodología presencial | F30: 19682 | G30: 6933 | H30: 26615
B31: Estudiantes | C31: Estudiantes regulares de pregrado | D31: Estudiantes en programas de metodología a distancia | F31: 151 | G31: 0 | H31: 151
B32: Estudiantes | C32: Estudiantes regulares de pregrado | D32: Estudiantes en programas de metodología virtual | F32: 0 | G32: 0 | H32: 0
B33: Estudiantes | C33: Estudiantes regulares de posgrado | F33: =SUM(F34:F36) -> 4464 | G33: =SUM(G34:G36) -> 1451 | H33: 5915
B34: Estudiantes | C34: Estudiantes regulares de posgrado | D34: Estudiantes de especialización | F34: 1801 | G34: 745 | H34: 2546
B35: Estudiantes | C35: Estudiantes regulares de posgrado | D35: Estudiantes de maestría | F35: 2455 | G35: 700 | H35: 3155
B36: Estudiantes | C36: Estudiantes regulares de posgrado | D36: Estudiantes de doctorado | F36: 208 | G36: 6 | H36: 214
B37: Estudiantes | C37: Estudiantes graduados | F37: =SUM(F38:F41) -> 5465 | G37: =SUM(G38:G41) -> 1599 | H37: 7064
B38: Estudiantes | C38: Estudiantes graduados | D38: Graduados de programas de pregrado | F38: 3078 | G38: 832 | H38: 3910
B39: Estudiantes | C39: Estudiantes graduados | D39: Graduados de programas de especialización | F39: 1416 | G39: 613 | H39: 2029
B40: Estudiantes | C40: Estudiantes graduados | D40: Graduados de programas de maestría | F40: 938 | G40: 154 | H40: 1092
B41: Estudiantes | C41: Estudiantes graduados | D41: Graduados de programas de doctorado | F41: 33 | G41: 0 | H41: 33
B42: Internacionalización
B43: =+B42 -> Internacionalización | C43: Convenios | F43: 54 | G43: 51 | H43: =SUM(F43:G43) -> 105
B44: =+B43 -> Internacionalización | C44: Estudiantes de la universidad hacia el exterior ** | F44: 173 | G44: 238 | H44: =SUM(F44:G44) -> 411
B45: =+B44 -> Internacionalización | C45: Estudiantes extranjeros en la universidad | F45: 214 | G45: 107 | H45: =SUM(F45:G45) -> 321
B46: Profesores
B47: =+B46 -> Profesores | C47: Profesores de planta | F47: 1276 | G47: 355 | H47: 1631
B48: Profesores | C48: Profesores de planta en equivalentes de tiempo completo | F48: 1039 | G48: 335.5 | H48: 1374.5
B49: Profesores | C49: Profesores de planta según título académico * | F49: =SUM(F50:F55) -> 1276 | G49: =SUM(G50:G55) -> 355 | H49: 1631
B50: Profesores | C50: Profesores de planta según título académico (2) | D50: Profesores con título de pregrado | F50: 119 | G50: 21 | H50: 140
B51: Profesores | C51: Profesores de planta según título académico (2) | D51: Profesores con título de especialización | F51: 54 | G51: 13 | H51: 67
B52: Profesores | C52: Profesores de planta según título académico (2) | D52: Profesores con título de especialización clínica | F52: 192 | G52: 0 | H52: 192
B53: Profesores | C53: Profesores de planta según título académico (2) | D53: Profesores con título de maestría | F53: 449 | G53: 219 | H53: 668
B54: Profesores | C54: Profesores de planta según título académico (2) | D54: Profesores con título de subespecialización clínica | F54: 60 | G54: 0 | H54: 60
B55: Profesores | C55: Profesores de planta según título académico (2) | D55: Profesores con título de doctorado | F55: 402 | G55: 102 | H55: 504
B56: Profesores | C56: Profesores de hora cátedra | F56: 2002 | G56: 722 | H56: 2724
B57: Profesores | C57: Profesores de hora cátedra en equivalentes de tiempo completo | F57: 313 | G57: 240.9 | H57: 553.9
B58: Empleados Administrativos
B59: =+B58 -> Empleados Administrativos | C59: Empleados administrativos | F59: 1578 | G59: 668 | H59: 2246
B60: =+B59 -> Empleados Administrativos | C60: Empleados administrativos en equivalentes de tiempo completo | F60: 1559 | G60: 604 | H60: 2163
B61: Investigación
B62: =+B61 -> Investigación | C62: Grupos de investigación reconocidos en Colciencias | F62: 95 | G62: 24 | H62: 119
B63: Educación Contínua
B64: =+B63 -> Educación Contínua | C64: Actividades de Educación Continua | F64: 421 | G64: 321 | H64: 742
B65: =+B64 -> Educación Contínua | C65: Participantes de Educación Continua | F65: 46221 | G65: 6927 | H65: 53148
B66: Consultorías
B67: =+B66 -> Consultorías | C67: Proyectos de consultoría | F67: 48 | G67: 32 | H67: 80
B68: =+B67 -> Consultorías | C68: Monto de proyectos de consultoría | F68: 14258045745 | G68: 10216501572 | H68: 24474547317
B69: Infraestructura Física
B70: =+B69 -> Infraestructura Física | C70: Hectáreas del campus | F70: 18 | G70: 16 | H70: 34
B71: =+B70 -> Infraestructura Física | C71: Edificaciones | F71: 46 | G71: 28 | H71: 74
B72: =+B71 -> Infraestructura Física | C72: Área total construida (m2) | F72: 233233 | G72: 190851.2922 | H72: 424084.2922
B73: Bibliotecas
B74: =+B73 -> Bibliotecas | C74: Número de títulos de libros | F74: 309267 | G74: 67452 | H74: 376719
B75: =+B74 -> Bibliotecas | C75: Número de volúmenes de libros | F75: 426080 | G75: 168744 | H75: 594824
B76: =+B75 -> Bibliotecas | C76: Bases de datos referenciales y de textos completos | F76: 153 | G76: 83 | H76: =SUM(F76:G76) -> 236

Sheet ÍNDICE
B2: Boletín Estadístico
B3: 2016
B7: << Presentación | D7: Resumen Estadístico >>
C10: Índice | D10: Guía de imágenes
C11: * ETC: Equivalentes en tiempo completo.
C12: Presentación
C13: Resumen Estadístico
C14: Oferta Académica
C15: Tabla A-1. Programas académicos
C16: Tabla A-2: Número de programas
C17: Tabla A-3: Programas Acreditados
C18: Tabla A-4: Programas de pregrado
C19: Estudiantes
C20: Tabla B-1: Inscritos, admitidos y matriculados
C21: Tabla B-2: Tasas de absorción por programa
C22: Tabla B-3: Matriculados por nivel
C23: Tabla B-4: Matriculados por metodología
C24: Tabla B-5: Cantidad de matriculados en dos o más programas
C25: Tabla B-6: Matriculados en varios programas de pregrado - Sede Central (Bogotá)
C26: Tabla B-7: Matriculados en varios programas de pregrado - Seccional Cali
C27: Tabla B-8: Graduados según nivel de programa
C28: Tabla B-9: Tasas de graduación, permanencia y deserción - Sede Central (Bogotá)
C29: Tabla B-10: Tasa de estudiantes con respecto al tiempo de graduación, tiempo de graduación promedio y duración esperada en programas académicos de pregrado - Seccional Cali
C30: Tabla B-11: Premios Otto de Greiff
C31: Tabla B-12: Créditos de estudio
C32: Tabla B-13: Becas
C33: Tabla B-14: "Ser pilo paga" - Sede Central (Bogotá)
C34: Tabla B-15: Convenios de internacionalización
C35: Tabla B-16: Movilidad nacional saliente
C36: Tabla B-17: Movilidad nacional entrante
C37: Tabla B-18: Movilidad internacional saliente
C38: Tabla B-19: Movilidad internacional entrante
C39: Profesores
C40: Tabla C-1: Profesores de planta
C41: Tabla C-2: Profesores de planta según género
C42: Tabla C-3: Profesores de planta según dedicación
C43: Tabla C-4: Profesores de planta según máximo título
C44: Tabla C-5: Profesores de planta según título máximo en ETC
C45: Tabla C-6: Profesores de planta según categoría en el escalafón
C46: Tabla C-7: Profesores de hora cátedra
C47: Tabla C-8: Profesores de hora cátedra según género
C48: Tabla C-9: Profesores de hora cátedra según máximo titulo
C49: Tabla C-10: Profesores de hora cátedra según título máximo en ETC
C50: Tabla C-11: Relación estudiantes (pregrado) por profesor de planta
C51: Tabla C-12: Relación estudiantes (pregrado) por profesores en ETC de planta
C52: Tabla C-13: Relación estudiantes (pregrado) por total profesores en ETC
C53: Tabla C-14: Puntos por producción intelectual (profesores planta)
C54: Tabla C-15: Producción intelectual reconocida
C55: Tabla C-16: Ascensos de categoría en escalafón
C56: Tabla C-17: Profesores que iniciaron el Programa de Formación en Posgrado
C57: Tabla C-18: Profesores que terminaron el Programa de Formación en Posgrado
C58: Tabla C-19: Programa de Formación para el Desempeño Académico
C59: Tabla C-20: Programa de Lenguas Extranjeras
C60: Tabla C-21: Apoyo asistencia eventos - Sede Central (Bogotá)
C61: Investigación
C62: Tabla D-1: Proyectos de investigación
C63: Tabla D-2: Actividades de investigación financiadas internamente
C64: Tabla D-3: Actividades de investigación financiadas externamente
C65: Tabla D-4: Actividades de investigación por tipo de actividad
C66: Tabla D-5: Grupos de investigación reconocidos por Colciencias
C67: Tabla D-6: Revistas indexadas
C68: Tabla D-7: Producción intelectual indexada
C69: Tabla D-8: Jóvenes investigadores
C70: Servicio
C71: Tabla E-1: Educación continua - Sede Central (Bogotá)
C72: Tabla E-2: Educación continua - Seccional Cali
C73: Tabla E-3: Convenios educación continua
C74: Tabla E-4: Proyectos de consultoría por facultad o unidad
C75: Tabla E-5: Proyectos de consultoría por tipo de entidad contratante
C76: Tabla E-6: Proyectos de consultoría por entidad contratante
C77: Tabla E-7: Proyectos de consultoría por línea
C78: Administrativos
C79: Tabla F-1: Empleados administrativos
C80: Tabla F-2: Empleados administrativos según género
C81: Tabla F-3: Empleados administrativos según dedicación
C82: Tabla F-4: Relación estudiantes por empleado administrativo
C83: Medio Universitario
C84: Tabla G-1: Participantes Centro de Asesoría Psicológica y Salud - Sede Central (Bogotá)
C85: Tabla G-2: Asistentes individuales Centro de Bienestar - Seccional Cali
C86: Tabla G-3: Asistentes grupales Centro de Bienestar - Seccional Cali
C87: Tabla G-4: Asistentes Centro Cultural - Sede Central (Bogotá)
C88: Tabla G-5: Asistentes actividades culturales - Seccional Cali
C89: Tabla G-6: Grupos culturales institucionales - Sede Central (Bogotá)
C90: Tabla G-7: Grupos culturales facultades - Sede Central (Bogotá)
C91: Tabla G-8: Centro Javeriano de Formación Deportiva - Sede Central (Bogotá)
C92: Tabla G-9: Centro Deportivo - Seccional Cali
C93: Tabla G-10: Centro Pastoral San Francisco Javier - Sede Central (Bogotá)
C94: Tabla G-11: Centro Pastoral San Francisco Javier - Seccional Cali
C95: Tabla G-12: Consultorio Médico - Sede Central (Bogotá)
C96: Tabla G-13: Póliza de accidentes - Sede Central (Bogotá)
C97: Tabla G-14: Actividades dirigidas a grupos estudiantiles - Sede Central (Bogotá)
C98: Tabla G-15: Profesores y administrativos en actividades de capacitación - Sede Central (Bogotá)
C99: Tabla G-16: Capacitación, entrenamiento y desarrollo humano - Sede Central (Bogotá)
C100: Tabla G-17: Beneficiarios programas de bienestar
C101: Tabla G-18: Participantes actividades de integración
C102: Publicaciones, Recursos Bibliográficos y Tecnología
C103: Tabla H-1: Producción Editorial
C104: Tabla H-2: Sistema de Información Bibliográfico Javeriano (SIBJA) - Sede Central (Bogotá)
C105: Tabla H-3: Sistema de Información Bibliográfico Javeriano (OLIB) - Seccional Cali
C106: Tabla H-4: Usuarios capacitados en servicios bibliotecarios
C107: Tabla H-5: Usuarios de los servicios bibliotecarios
C108: Tabla H-6: Equipos de cómputo para estudiantes
C109: Tabla H-7: Otro recursos de infraestructura
C110: Planta Física
C111: Tabla I-1: Distribución Planta física - Sede Central (Bogotá)
C112: Tabla I-2: Distribución Planta física - Seccional Cali
C113: Tabla I-3: Obras de infraestructura física

Sheet OBSERVACIONES
B2: BOLETÍN ESTADÍSTICO
B3: 2016
D5: CUIDADO ->
B7: << Presentación | E7: Resumen Estadístico >>
D9: OBSERVACIONES | E9: Nomenclatura anterior
C10: Oferta Académica
C11: Tabla A-1. Programas académicos | E11: Tabla 1
C12: Tabla A-2: Número de programas | E12: Tabla 2
C13: Tabla A-3: Programas Acreditados | E13: Tabla 3
C14: Tabla A-4: Programas de pregrado | E14: Tabla 4
C15: Estudiantes
C16: Tabla B-1: Inscritos, admitidos y matriculados | E16: Tabla 5
C17: Tabla B-2: Tasas de absorción por programa | E17: Tabla 6
C18: Tabla B-3: Matriculados por nivel | E18: Tabla 7
C19: Tabla B-4: Matriculados por metodología | E19: Tabla 8
C20: Tabla B-5: Cantidad de matriculados en dos o más programas | D20: 2016: se ajustó el título de la tabla: anteriormente: "Matriculados en varios programas" | E20: Tabla 9
C21: Tabla B-6: Matriculados en varios programas de pregrado - Sede Central (Bogotá) | D21: 2016: se ajustó el título de la tabla: anteriormente: "Matriculados en varios programas Bogotá" | E21: Tabla 10
C22: Tabla B-7: Matriculados en varios programas de pregrado - Seccional Cali | D22: 2016: se ajustó el título de la tabla: anteriormente: "Matriculados en varios programas Cali" | E22: Tabla 11
C23: Tabla B-8: Graduados según nivel de programa | D23: 2016: se ajustó el título de la tabla: anteriormente: "Graduados según nivel" | E23: Tabla 12
C24: Tabla B-9: Tasas de graduación, permanencia y deserción - Sede Central (Bogotá) | E24: Tabla 13
C25: Tabla B-10: Tasas de graduación, permanencia y deserción - Seccional Cali | E25: Tabla 14
C26: Tabla B-11: Premios Otto de Greiff | E26: Tabla 15
C27: Tabla B-12: Créditos de estudio | E27: Tabla 16
C28: Tabla B-13: Becas | E28: Tabla 17
C29: Tabla B-14: "Ser pilo paga" - Sede Central (Bogotá) | D29: 2016: Es una tabla nueva. | E29: N/A
C30: Tabla B-15: Convenios de internacionalización | E30: Tabla 18
C31: Tabla B-16: Movilidad nacional saliente | E31: Tabla 19
C32: Tabla B-17: Movilidad nacional entrante | E32: Tabla 20
C33: Tabla B-18: Movilidad internacional saliente | E33: Tabla 21
C34: Tabla B-19: Movilidad internacional entrante | E34: Tabla 22
C35: Profesores
C36: Tabla C-1: Profesores de planta | D36: 2016: se ajustó el título de la tabla: anteriormente: "Planta" | E36: Tabla 23
C37: Tabla C-2: Profesores de planta según género | D37: 2016: se ajustó el título de la tabla: anteriormente: "Planta según género" | E37: Tabla 24
C38: Tabla C-3: Profesores de planta según dedicación | D38: 2016: se ajustó el título de la tabla: anteriormente: "Planta según dedicación" | E38: Tabla 25
C39: Tabla C-4: Profesores de planta según máximo título | D39: 2016: se ajustó el título de la tabla: anteriormente: "Planta según titulación" | E39: Tabla 26
C40: Tabla C-5: Profesores de planta según título máximo en ETC | D40: 2016: se ajustó el título de la tabla: anteriormente: "Planta según dedicación/título" | E40: Tabla 27
C41: Tabla C-6: Profesores de planta según categoría en el escalafón | D41: 2016: se ajustó el título de la tabla: anteriormente: "Planta según escalafón" | E41: Tabla 28
C42: Tabla C-7: Profesores de hora cátedra | D42: 2016: se ajustó el título de la tabla: anteriormente: "Cátedra" | E42: Tabla 29
C43: Tabla C-8: Profesores de hora cátedra según género | D43: 2016: se ajustó el título de la tabla: anteriormente: "Cátedra según género" | E43: Tabla 30
C44: Tabla C-9: Profesores de hora cátedra según máximo titulo | D44: 2016: se ajustó el título de la tabla: anteriormente: "Cátedra según titulación" | E44: Tabla 31
C45: Tabla C-10: Profesores de hora cátedra según título máximo en ETC | D45: 2016: El título no expresaba lo que mostraba debido a que hasta el año 2015, se colocaban las ETC efectivas dictadas y pagadas. A partir del año 2016, se decidió solo colocar el ETC discriminado por título máximo. Se ajustó el título de la tabla: anteriormente: "Cátedra según dedicación/título" | E45: Tabla 32
C46: Tabla C-11: Relación estudiantes (pregrado) por profesor de planta | D46: 2016: se ajustó el título de la tabla, se especifica que los datos que se muestran son de estudiantes de pregrado. | E46: Tabla 33
C47: Tabla C-12: Relación estudiantes (pregrado) por profesores en ETC de planta | D47: 2016: se ajustó el título de la tabla, se especifica que los datos que se muestran son de estudiantes de pregrado. | E47: Tabla 34
C48: Tabla C-13: Relación estudiantes (pregrado) por total profesores en ETC | D48: 2016: se ajustó el título de la tabla, se especifica que los datos que se muestran son de estudiantes de pregrado. | E48: Tabla 35
C49: Tabla C-14: Puntos por producción intelectual (profesores planta) | E49: Tabla 36
C50: Tabla C-15: Producción intelectual reconocida | E50: Tabla 37
C51: Tabla C-16: Ascensos de categoría en escalafón | D51: 2016: se ajustó el título de la tabla: anteriormente: "Ascensos en escalafón" | E51: Tabla 38
C52: Tabla C-17: Profesores que iniciaron el Programa de Formación en Posgrado | E52: Tabla 39
C53: Tabla C-18: Profesores que terminaron el Programa de Formación en Posgrado | E53: Tabla 40
C54: Tabla C-19: Programa de Formación para el Desempeño Académico | E54: Tabla 41
C55: Tabla C-20: Programa de Lenguas Extranjeras | E55: Tabla 42
C56: Tabla C-21: Apoyo asistencia eventos - Sede Central (Bogotá) | D56: 2016: se ajustó el título de la tabla, se especifica que los datos que se muestran son de la Sede Central. | E56: Tabla 43
C57: Investigación
C58: Tabla D-1: Proyectos de investigación | E58: Tabla 44
C59: Tabla D-2: Actividades de investigación financiadas internamente | D59: 2016: la Vicerrectoría de Investigación ajustó el título de la tabla: anteriormente: "Proyectos financiados internamente" | E59: Tabla 45
C60: Tabla D-3: Actividades de investigación financiadas externamente | D60: 2016: la Vicerrectoría de Investigación ajustó el título de la tabla: anteriormente: "Proyectos financiados externamente" | E60: Tabla 46
C61: Tabla D-4: Actividades de investigación por tipo de actividad | D61: 2016: se ajustó el título de la tabla: anteriormente: "Actividades de investigación" | E61: Tabla 47
C62: Tabla D-5: Grupos de investigación reconocidos por Colciencias | D62: 2016: la tabla cambió. Por eso solo se representan datos de 2016. | E62: Tabla 48
C63: Tabla D-6: Revistas indexadas | E63: Tabla 49
C64: Tabla D-7: Producción intelectual indexada | D64: 2016: se ajustó el título de la tabla: anteriormente: "Productos indexados" | E64: Tabla 50
C65: Tabla D-8: Jóvenes investigadores | E65: Tabla 51
C66: Servicio
C67: Tabla E-1: Educación continua - Sede Central (Bogotá) | E67: Tabla 52
C68: Tabla E-2: Educación continua - Seccional Cali | E68: Tabla 53
C69: Tabla E-3: Convenios educación continua | E69: Tabla 54
C70: Tabla E-4: Proyectos de consultoría por facultad o unidad | D70: 2016: se ajustó el título de la tabla: anteriormente: "Proyectos de consultoría por facultad" | E70: Tabla 55
C71: Tabla E-5: Proyectos de consultoría por tipo de entidad contratante | E71: Tabla 56
C72: Tabla E-6: Proyectos de consultoría por entidad contratante | E72: Tabla 57
C73: Tabla E-7: Proyectos de consultoría por línea | E73: Tabla 58
C74: Administrativos
C75: Tabla F-1: Empleados administrativos | E75: Tabla 59
C76: Tabla F-2: Empleados administrativos según género | D76: 2016: se ajustó el título de la tabla: anteriormente: "Administrativos según género" | E76: Tabla 60
C77: Tabla F-3: Empleados administrativos según dedicación | D77: 2016: se ajustó el título de la tabla: anteriormente: "Administrativos según dedicación" | E77: Tabla 61
C78: Tabla F-4: Relación estudiantes por empleado administrativo | D78: 2016: se ajustó el título de la tabla: anteriormente: "Relación estudiantes/administrativos" | E78: Tabla 62
C79: Medio Universitario
C80: Tabla G-1: Participantes Centro de Asesoría Psicológica - Sede Central (Bogotá) | E80: Tabla 63
C81: Tabla G-2: Asistentes individuales Centro de Bienestar - Seccional Cali | E81: Tabla 64
C82: Tabla G-3: Asistentes grupales Centro de Bienestar - Seccional Cali | E82: Tabla 65
C83: Tabla G-4: Asistentes Centro Cultural - Sede Central (Bogotá) | E83: Tabla 66
C84: Tabla G-5: Asistentes actividades culturales - Seccional Cali | E84: Tabla 67
C85: Tabla G-6: Grupos culturales institucionales - Sede Central (Bogotá) | E85: Tabla 68
C86: Tabla G-7: Grupos culturales facultades - Sede Central (Bogotá) | E86: Tabla 69
C87: Tabla G-8: Centro Javeriano de Formación Deportiva - Sede Central (Bogotá) | E87: Tabla 70
C88: Tabla G-9: Centro Deportivo - Seccional Cali | E88: Tabla 71
C89: Tabla G-10: Centro Pastoral San Francisco Javier - Sede Central (Bogotá) | E89: Tabla 72
C90: Tabla G-11: Centro Pastoral San Francisco Javier - Seccional Cali | E90: Tabla 73
C91: Tabla G-12: Consultorio Médico - Sede Central (Bogotá) | E91: Tabla 74
C92: Tabla G-13: Póliza de accidentes - Sede Central (Bogotá) | E92: Tabla 75
C93: Tabla G-14: Actividades dirigidas a grupos estudiantiles - Sede Central (Bogotá) | E93: Tabla 76
C94: Tabla G-15: Profesores y administrativos en actividades de capacitación - Sede Central (Bogotá) | E94: Tabla 77
C95: Tabla G-16: Capacitación, entrenamiento y desarrollo humano - Sede Central (Bogotá) | E95: Tabla 78
C96: Tabla G-17: Beneficiarios programas de bienestar | E96: Tabla 79
C97: Tabla G-18: Participantes actividades de integración | E97: Tabla 80
C98: Publicaciones, Recursos Bibliográficos y Tecnología
C99: Tabla H-1: Producción Editorial | E99: Tabla 81
C100: Tabla H-2: Sistema de Información Bibliográfico Javeriano (SIBJA) - Sede Central (Bogotá) | D100: 2016: se ajustó el título de la tabla: anteriormente: "Sistema de Información Bibliográfico Javeriano Bogotá" | E100: Tabla 82
C101: Tabla H-3: Sistema de Información Bibliográfico Javeriano (OLIB) - Seccional Cali | D101: 2016: se ajustó el título de la tabla: anteriormente: "Sistema de Información Bibliográfico Javeriano Cali" | E101: Tabla 83
C102: Tabla H-4: Usuarios capacitados en servicios bibliotecarios | E102: Tabla 84
C103: Tabla H-5: Usuarios de los servicios bibliotecarios | E103: Tabla 85
C104: Tabla H-6: Equipos de cómputo para estudiantes | E104: Tabla 86
C105: Tabla H-7: Otro recursos de infraestructura | E105: Tabla 87
C106: Planta Física
C107: Tabla I-1: Distribución Planta física - Sede Central (Bogotá) | E107: Tabla 88
C108: Tabla I-2: Distribución Planta física - Seccional Cali | E108: Tabla 89
C109: Tabla I-3: Obras de infraestructura física | E109: Tabla 90

Sheet GUIA
B2: << Índice | G2: Tabla A-1 >>
B4: Guía de Imágenes & Contacto
B5: Las imágenes o íconos en cada tabla son creados para facilitar la navegación a través del Boletín Estadístico. Para ésta edición cada tabla maneja dos íconos básicos activos:
C6: Ésta imagen funciona para direccionar directamente al índice principal del Boletín Estadístico.
B7: BIBLIOTECAS | C7: Ésta imagen funciona para descargar la información de cada tabla en un libro nuevo de MS Excel. Dicha información descargada se podrá observar en un formato distinto y más fácil de manipular comparada con la que se observa en la tabla dinámica.
C8: Ésta imagen funciona para ubicarse de forma rápida al principio de la hoja que está observando.
B11: OBSERVACIONES | C11: Cada tabla dinámica que observará en este boletín cuentan con filtros y en la mayoría de los casos, con datos de años previos. Para disminuir el tamaño del archivo se procuró entregarlo con todas las tablas dinámicas contraídas. Según sea su interés podrá expandir cada tabla y extraer la cantidad de información que sea de su utilidad.
B12: TENER EN CUENTA | C12: Para una mejor visualización de este boletín en MS Excel. En la pestaña "Vista" es recomendable tener desactivadas las casillas: - Líneas de cuadrícula. - Encabezados. - Barra de fórmulas.
B15: AYUDA & CONTACTO | C15: Si tiene alguna sugerencia, solicitud o comentario sobre éste Boletín Estadístico, puede escribirnos a: | G15: fuzcategui@javeriana.edu.co
C17: SECRETARÍA DE PLANEACIÓN
C18: RECTORÍA
C19: PONTIFICIA UNIVERSIDAD JAVERIANA

Sheet TABLA A-1
B2: << Índice | D2: Tabla A-2 >>
B4: =+(MID(ÍNDICE!C15,1,9)) -> Tabla A-1
A5: Oferta Académica | B5: Programas académicos ofrecidos por facultad o instituto según metodología. Sede Central y Seccional Cali.
B6: Fuente: Dirección de Programas Académicos, Vicerrectoría Académica, Sede Central. Oficina de Desarrollo Académico, Vicerrectoría Académica, Seccional Cali.
B7: Nota: * La Especialización en Dirección de Coros Infantiles y Juveniles (Facultad de Artes) fue cerrada y absorbida por la Maestría en Música, según acta de consejo de Facultad fechada 9 de junio de 2016.
B8: Año | C8: 2016
B10: Sede | C10: Facultad / Instituto | D10: Programa | E10: Metodología
B11: Sede Central
B12: Seccional Cali

Sheet F-TABLA A-1 (hidden)
B1: Tabla A-1. Programas académicos ofrecidos por facultad o instituto según metodología. Sede Central y Seccional Cali
B3: Fuente: Dirección de Programas Académicos, Vicerrectoría Académica, Sede Central. Oficina de Desarrollo Académico, Vicerrectoría Académica, Seccional Cali.
B4: Nota: * La Especialización en Dirección de Coros Infantiles y Juveniles (Facultad de Artes) fue cerrada y absorbida por la Maestría en Música, según acta de consejo de Facultad fechada 9 de junio de 2016.
B6: AÑO | C6: SEDE | D6: FACULTAD O INSTITUTO | E6: PROGRAMA | F6: Metodología
B7: 2014 | C7: Sede Central | D7: Facultad de Arquitectura y Diseño | E7: Carrera de Arquitectura | F7: Presencial
B8: 2014 | C8: Sede Central | D8: Facultad de Arquitectura y Diseño | E8: Carrera de Diseño Industrial | F8: Presencial
B9: 2014 | C9: Sede Central | D9: Facultad de Arquitectura y Diseño | E9: Especialización en Diseño y Gerencia de Producto para la Exportación | F9: Presencial
B10: 2014 | C10: Sede Central | D10: Facultad de Arquitectura y Diseño | E10: Maestría en Planeación Urbana y Regional | F10: Presencial
B11: 2014 | C11: Sede Central | D11: Facultad de Artes | E11: Carrera de Artes Escénicas | F11: Presencial
B12: 2014 | C12: Sede Central | D12: Facultad de Artes | E12: Carrera de Artes Visuales | F12: Presencial
B13: 2014 | C13: Sede Central | D13: Facultad de Artes | E13: Carrera de Estudios Musicales | F13: Presencial
B14: 2014 | C14: Sede Central | D14: Facultad de Artes | E14: Especialización en Dirección de Coros Infantiles y Juveniles* | F14: Presencial
B15: 2014 | C15: Sede Central | D15: Facultad de Artes | E15: Maestría en Música | F15: Presencial
B16: 2014 | C16: Sede Central | D16: Facultad de Ciencias | E16: Carrera de Bacteriología | F16: Presencial
B17: 2014 | C17: Sede Central | D17: Facultad de Ciencias | E17: Carrera de Biología | F17: Presencial
B18: 2014 | C18: Sede Central | D18: Facultad de Ciencias | E18: Carrera de Matemáticas | F18: Presencial
B19: 2014 | C19: Sede Central | D19: Facultad de Ciencias | E19: Carrera de Microbiología Industrial | F19: Presencial
B20: 2014 | C20: Sede Central | D20: Facultad de Ciencias | E20: Carrera de Nutrición y Dietética | F20: Presencial
B21: 2014 | C21: Sede Central | D21: Facultad de Ciencias | E21: Doctorado en Ciencias Biológicas | F21: Presencial
B22: 2014 | C22: Sede Central | D22: Facultad de Ciencias | E22: Especialización en Análisis Químico Instrumental | F22: Presencial
B23: 2014 | C23: Sede Central | D23: Facultad de Ciencias | E23: Especialización en Bioquímica Clínica | F23: Presencial
B24: 2014 | C24: Sede Central | D24: Facultad de Ciencias | E24: Especialización en Hematología en el Laboratorio Clínico y Manejo del Banco de Sangre | F24: Presencial
B25: 2014 | C25: Sede Central | D25: Facultad de Ciencias | E25: Especialización en Microbiología Médica | F25: Presencial
B26: 2014 | C26: Sede Central | D26: Facultad de Ciencias | E26: Maestría en Ciencias Biológicas | F26: Presencial
B27: 2014 | C27: Sede Central | D27: Facultad de Ciencias | E27: Maestría en Física Médica | F27: Presencial
B28: 2014 | C28: Sede Central | D28: Facultad de Ciencias Económicas y Administrativas | E28: Carrera de Administración de Empresas | F28: Presencial
B29: 2014 | C29: Sede Central | D29: Facultad de Ciencias Económicas y Administrativas | E29: Carrera de Contaduría Pública | F29: Presencial
B30: 2014 | C30: Sede Central | D30: Facultad de Ciencias Económicas y Administrativas | E30: Carrera de Economía | F30: Presencial
B31: 2014 | C31: Sede Central | D31: Facultad de Ciencias Económicas y Administrativas | E31: Especialización en Administración de Salud: Énfasis en Seguridad Social | F31: Presencial
B32: 2014 | C32: Sede Central | D32: Facultad de Ciencias Económicas y Administrativas | E32: Especialización en Aseguramiento y Control Interno | F32: Presencial
B33: 2014 | C33: Sede Central | D33: Facultad de Ciencias Económicas y Administrativas | E33: Especialización en Contabilidad Financiera Internacional | F33: Presencial
B34: 2014 | C34: Sede Central | D34: Facultad de Ciencias Económicas y Administrativas | E34: Especialización en Contabilidad Gerencial | F34: Presencial
B35: 2014 | C35: Sede Central | D35: Facultad de Ciencias Económicas y Administrativas | E35: Especialización en Economía para no Economistas | F35: Presencial
B36: 2014 | C36: Sede Central | D36: Facultad de Ciencias Económicas y Administrativas | E36: Especialización en Gerencia de la Calidad de los Servicios de Salud | F36: Presencial
B37: 2014 | C37: Sede Central | D37: Facultad de Ciencias Económicas y Administrativas | E37: Especialización en Gerencia de Mercadeo | F37: Presencial
B38: 2014 | C38: Sede Central | D38: Facultad de Ciencias Económicas y Administrativas | E38: Especialización en Gerencia del Talento Humano | F38: Presencial
B39: 2014 | C39: Sede Central | D39: Facultad de Ciencias Económicas y Administrativas | E39: Especialización en Gerencia Financiera | F39: Presencial
B40: 2014 | C40: Sede Central | D40: Facultad de Ciencias Económicas y Administrativas | E40: Especialización en Gerencia Hospitalaria | F40: Presencial
B41: 2014 | C41: Sede Central | D41: Facultad de Ciencias Económicas y Administrativas | E41: Especialización en Gerencia Internacional | F41: Presencial
B42: 2014 | C42: Sede Central | D42: Facultad de Ciencias Económicas y Administrativas | E42: Especialización en Gestión Tecnológica | F42: Presencial
B43: 2014 | C43: Sede Central | D43: Facultad de Ciencias Económicas y Administrativas | E43: Especialización en Revisoría Fiscal | F43: Presencial
B44: 2014 | C44: Sede Central | D44: Facultad de Ciencias Económicas y Administrativas | E44: Maestría en Administración | F44: Presencial
B45: 2014 | C45: Sede Central | D45: Facultad de Ciencias Económicas y Administrativas | E45: Maestría en Administración de Salud | F45: Presencial
B46: 2014 | C46: Sede Central | D46: Facultad de Ciencias Económicas y Administrativas | E46: Maestría en Economía | F46: Presencial
B47: 2014 | C47: Sede Central | D47: Facultad de Ciencias Económicas y Administrativas | E47: Maestría en Salud Pública | F47: Presencial
B48: 2014 | C48: Sede Central | D48: Facultad de Ciencias Jurídicas | E48: Carrera de Derecho | F48: Presencial
B49: 2014 | C49: Sede Central | D49: Facultad de Ciencias Jurídicas | E49: Doctorado en Ciencias Jurídicas | F49: Presencial
B50: 2014 | C50: Sede Central | D50: Facultad de Ciencias Jurídicas | E50: Especialización en Derecho Administrativo | F50: Presencial
B51: 2014 | C51: Sede Central | D51: Facultad de Ciencias Jurídicas | E51: Especialización en Derecho Comercial | F51: Presencial
B52: 2014 | C52: Sede Central | D52: Facultad de Ciencias Jurídicas | E52: Especialización en Derecho de Familia | F52: Presencial
B53: 2014 | C53: Sede Central | D53: Facultad de Ciencias Jurídicas | E53: Especialización en Derecho de la Competencia y del Libre Comercio | F53: Presencial
B54: 2014 | C54: Sede Central | D54: Facultad de Ciencias Jurídicas | E54: Especialización en Derecho de la Seguridad Social | F54: Presencial
B55: 2014 | C55: Sede Central | D55: Facultad de Ciencias Jurídicas | E55: Especialización en Derecho de Seguros | F55: Presencial
B56: 2014 | C56: Sede Central | D56: Facultad de Ciencias Jurídicas | E56: Especialización en Derecho de Sociedades | F56: Presencial
B57: 2014 | C57: Sede Central | D57: Facultad de Ciencias Jurídicas | E57: Especialización en Derecho del Mercado de Capitales | F57: Presencial
B58: 2014 | C58: Sede Central | D58: Facultad de Ciencias Jurídicas | E58: Especialización en Derecho Laboral | F58: Presencial
B59: 2014 | C59: Sede Central | D59: Facultad de Ciencias Jurídicas | E59: Especialización en Derecho Médico | F59: Presencial
B60: 2014 | C60: Sede Central | D60: Facultad de Ciencias Jurídicas | E60: Especialización en Derecho Sustantivo y Contencioso Constitucional | F60: Presencial
B61: 2014 | C61: Sede Central | D61: Facultad de Ciencias Jurídicas | E61: Especialización en Derecho Tributario | F61: Presencial
B62: 2014 | C62: Sede Central | D62: Facultad de Ciencias Jurídicas | E62: Especialización en Derecho Urbanístico | F62: Presencial
B63: 2014 | C63: Sede Central | D63: Facultad de Ciencias Jurídicas | E63: Maestría en Derecho de Seguros | F63: Presencial
B64: 2014 | C64: Sede Central | D64: Facultad de Ciencias Jurídicas | E64: Maestría en Derecho Económico | F64: Presencial
B65: 2014 | C65: Sede Central | D65: Facultad de Ciencias Políticas y Relaciones Internacionales | E65: Carrera de Ciencia Política | F65: Presencial
B66: 2014 | C66: Sede Central | D66: Facultad de Ciencias Políticas y Relaciones Internacionales | E66: Carrera de Relaciones Internacionales | F66: Presencial
B67: 2014 | C67: Sede Central | D67: Facultad de Ciencias Políticas y Relaciones Internacionales | E67: Especialización en Gobierno y Gestión Pública Territoriales | F67: Presencial
B68: 2014 | C68: Sede Central | D68: Facultad de Ciencias Políticas y Relaciones Internacionales | E68: Especialización en Opinión Pública y Mercadeo Político | F68: Presencial
B69: 2014 | C69: Sede Central | D69: Facultad de Ciencias Políticas y Relaciones Internacionales | E69: Especialización en Resolución de Conflictos | F69: Presencial
B70: 2014 | C70: Sede Central | D70: Facultad de Ciencias Políticas y Relaciones Internacionales | E70: Maestría en Estudios Latinoamericanos | F70: Presencial
B71: 2014 | C71: Sede Central | D71: Facultad de Ciencias Políticas y Relaciones Internacionales | E71: Maestría en Estudios Políticos | F71: Presencial
B72: 2014 | C72: Sede Central | D72: Facultad de Ciencias Políticas y Relaciones Internacionales | E72: Maestría en Política Social | F72: Presencial
B73: 2014 | C73: Sede Central | D73: Facultad de Ciencias Políticas y Relaciones Internacionales | E73: Maestría en Relaciones Internacionales | F73: Presencial
B74: 2014 | C74: Sede Central | D74: Facultad de Ciencias Sociales | E74: Carrera de Antropología | F74: Presencial
B75: 2014 | C75: Sede Central | D75: Facultad de Ciencias Sociales | E75: Carrera de Estudios Literarios | F75: Presencial
B76: 2014 | C76: Sede Central | D76: Facultad de Ciencias Sociales | E76: Carrera de Historia | F76: Presencial
B77: 2014 | C77: Sede Central | D77: Facultad de Ciencias Sociales | E77: Carrera de Sociología | F77: Presencial
B78: 2014 | C78: Sede Central | D78: Facultad de Ciencias Sociales | E78: Doctorado en Ciencias Sociales y Humanas | F78: Presencial
B79: 2014 | C79: Sede Central | D79: Facultad de Ciencias Sociales | E79: Maestría en Estudios Culturales | F79: Presencial
B80: 2014 | C80: Sede Central | D80: Facultad de Ciencias Sociales | E80: Maestría en Historia | F80: Presencial
B81: 2014 | C81: Sede Central | D81: Facultad de Ciencias Sociales | E81: Maestría en Literatura | F81: Presencial
B82: 2014 | C82: Sede Central | D82: Facultad de Comunicación y Lenguaje | E82: Carrera de Ciencia de la Información - Bibliotecología | F82: Presencial
B83: 2014 | C83: Sede Central | D83: Facultad de Comunicación y Lenguaje | E83: Carrera de Comunicación Social | F83: Presencial
B84: 2014 | C84: Sede Central | D84: Facultad de Comunicación y Lenguaje | E84: Especialización en Comunicación Organizacional | F84: Presencial
B85: 2014 | C85: Sede Central | D85: Facultad de Comunicación y Lenguaje | E85: Especialización en Televisión | F85: Presencial
B86: 2014 | C86: Sede Central | D86: Facultad de Comunicación y Lenguaje | E86: Licenciatura en Lenguas Modernas | F86: Presencial
B87: 2014 | C87: Sede Central | D87: Facultad de Comunicación y Lenguaje | E87: Maestría en Comunicación | F87: Presencial
B88: 2014 | C88: Sede Central | D88: Facultad de Comunicación y Lenguaje | E88: Maestría en Lingüística Aplicada del Español como Lengua Extranjera | F88: Presencial
B89: 2014 | C89: Sede Central | D89: Facultad de Derecho Canónico | E89: Doctorado en Derecho Canónico | F89: Presencial
B90: 2014 | C90: Sede Central | D90: Facultad de Derecho Canónico | E90: Maestría en Derecho Canónico | F90: Presencial
B91: 2014 | C91: Sede Central | D91: Facultad de Educación | E91: Licenciatura en Educación Básica con Énfasis en Humanidades y Lengua Castellana | F91: Distancia
B92: 2014 | C92: Sede Central | D92: Facultad de Educación | E92: Licenciatura en Pedagogía Infantil | F92: Presencial
B93: 2014 | C93: Sede Central | D93: Facultad de Educación | E93: Maestría en Educación | F93: Presencial
B94: 2014 | C94: Sede Central | D94: Facultad de Enfermería | E94: Carrera de Enfermería | F94: Presencial
B95: 2014 | C95: Sede Central | D95: Facultad de Enfermería | E95: Especialización en Enfermería en Cuidado Crítico | F95: Presencial
B96: 2014 | C96: Sede Central | D96: Facultad de Enfermería | E96: Especialización en Enfermería Pediátrica | F96: Presencial
B97: 2014 | C97: Sede Central | D97: Facultad de Enfermería | E97: Especialización en Salud Ocupacional | F97: Presencial
B98: 2014 | C98: Sede Central | D98: Facultad de Estudios Ambientales y Rurales | E98: Carrera de Ecología | F98: Presencial
B99: 2014 | C99: Sede Central | D99: Facultad de Estudios Ambientales y Rurales | E99: Doctorado en Estudios Ambientales y Rurales | F99: Presencial
B100: 2014 | C100: Sede Central | D100: Facultad de Estudios Ambientales y Rurales | E100: Especialización en Gestión de Empresas del Sector Solidario | F100: Presencial
B101: 2014 | C101: Sede Central | D101: Facultad de Estudios Ambientales y Rurales | E101: Maestría en Conservación y Uso de Biodiversidad | F101: Presencial
B102: 2014 | C102: Sede Central | D102: Facultad de Estudios Ambientales y Rurales | E102: Maestría en Desarrollo Rural | F102: Presencial
B103: 2014 | C103: Sede Central | D103: Facultad de Estudios Ambientales y Rurales | E103: Maestría en Gestión Ambiental | F103: Presencial
B104: 2014 | C104: Sede Central | D104: Facultad de Filosofía | E104: Carrera de Filosofía | F104: Presencial
B105: 2014 | C105: Sede Central | D105: Facultad de Filosofía | E105: Doctorado en Filosofía | F105: Presencial
B106: 2014 | C106: Sede Central | D106: Facultad de Filosofía | E106: Licenciatura en Filosofía | F106: Presencial
B107: 2014 | C107: Sede Central | D107: Facultad de Filosofía | E107: Maestría en Filosofía | F107: Presencial
B108: 2014 | C108: Sede Central | D108: Facultad de Ingeniería | E108: Carrera de Ingeniería Civil | F108: Presencial
B109: 2014 | C109: Sede Central | D109: Facultad de Ingeniería | E109: Carrera de Ingeniería de Sistemas | F109: Presencial
B110: 2014 | C110: Sede Central | D110: Facultad de Ingeniería | E110: Carrera de Ingeniería Electrónica | F110: Presencial
B111: 2014 | C111: Sede Central | D111: Facultad de Ingeniería | E111: Carrera de Ingeniería Industrial | F111: Presencial
B112: 2014 | C112: Sede Central | D112: Facultad de Ingeniería | E112: Doctorado en Ingeniería | F112: Presencial
B113: 2014 | C113: Sede Central | D113: Facultad de Ingeniería | E113: Especialización en Arquitectura Empresarial de Software | F113: Presencial
B114: 2014 | C114: Sede Central | D114: Facultad de Ingeniería | E114: Especialización en Geotecnia Vial y Pavimentos | F114: Presencial
B115: 2014 | C115: Sede Central | D115: Facultad de Ingeniería | E115: Especialización en Gerencia de Construcciones | F115: Presencial
B116: 2014 | C116: Sede Central | D116: Facultad de Ingeniería | E116: Especialización en Ingeniería de Operaciones en Manufactura y Servicios | F116: Presencial
B117: 2014 | C117: Sede Central | D117: Facultad de Ingeniería | E117: Especialización en Sistemas Gerenciales de Ingeniería | F117: Presencial
B118: 2014 | C118: Sede Central | D118: Facultad de Ingeniería | E118: Especialización en Tecnología de la Construcción en Edificaciones | F118: Presencial
B119: 2014 | C119: Sede Central | D119: Facultad de Ingeniería | E119: Maestría en Hidrosistemas | F119: Presencial
B120: 2014 | C120: Sede Central | D120: Facultad de Ingeniería | E120: Maestría en Ingeniería Civil | F120: Presencial
B121: 2014 | C121: Sede Central | D121: Facultad de Ingeniería | E121: Maestría en Ingeniería de Sistemas y Computación | F121: Presencial
B122: 2014 | C122: Sede Central | D122: Facultad de Ingeniería | E122: Maestría en Ingeniería Electrónica | F122: Presencial
B123: 2014 | C123: Sede Central | D123: Facultad de Ingeniería | E123: Maestría en Ingeniería Industrial | F123: Presencial
B124: 2014 | C124: Sede Central | D124: Facultad de Medicina | E124: Carrera de Medicina | F124: Presencial
B125: 2014 | C125: Sede Central | D125: Facultad de Medicina | E125: Especialización en Anestesiología | F125: Presencial
B126: 2014 | C126: Sede Central | D126: Facultad de Medicina | E126: Especialización en Cardiología | F126: Presencial
B127: 2014 | C127: Sede Central | D127: Facultad de Medicina | E127: Especialización en Cirugía Cardiovascular | F127: Presencial
B128: 2014 | C128: Sede Central | D128: Facultad de Medicina | E128: Especialización en Cirugía General | F128: Presencial
B129: 2014 | C129: Sede Central | D129: Facultad de Medicina | E129: Especialización en Cirugía Plástica | F129: Presencial
B130: 2014 | C130: Sede Central | D130: Facultad de Medicina | E130: Especialización en Endocrinología | F130: Presencial
B131: 2014 | C131: Sede Central | D131: Facultad de Medicina | E131: Especialización en Gastroenterología y Endoscopia Digestiva | F131: Presencial
B132: 2014 | C132: Sede Central | D132: Facultad de Medicina | E132: Especialización en Genética Médica | F132: Presencial
B133: 2014 | C133: Sede Central | D133: Facultad de Medicina | E133: Especialización en Geriatría | F133: Presencial
B134: 2014 | C134: Sede Central | D134: Facultad de Medicina | E134: Especialización en Ginecología y Obstetricia | F134: Presencial
B135: 2014 | C135: Sede Central | D135: Facultad de Medicina | E135: Especialización en Hemodinámica y Cardiología Intervencionista | F135: Presencial
B136: 2014 | C136: Sede Central | D136: Facultad de Medicina | E136: Especialización en Medicina Crítica y Cuidado Intensivo | F136: Presencial
B137: 2014 | C137: Sede Central | D137: Facultad de Medicina | E137: Especialización en Medicina de Urgencias | F137: Presencial
B138: 2014 | C138: Sede Central | D138: Facultad de Medicina | E138: Especialización en Medicina Familiar | F138: Presencial
B139: 2014 | C139: Sede Central | D139: Facultad de Medicina | E139: Especialización en Medicina Interna | F139: Presencial
B140: 2014 | C140: Sede Central | D140: Facultad de Medicina | E140: Especialización en Nefrología | F140: Presencial
B141: 2014 | C141: Sede Central | D141: Facultad de Medicina | E141: Especialización en Neumología | F141: Presencial
B142: 2014 | C142: Sede Central | D142: Facultad de Medicina | E142: Especialización en Neurocirugía | F142: Presencial
B143: 2014 | C143: Sede Central | D143: Facultad de Medicina | E143: Especialización en Neurología | F143: Presencial
B144: 2014 | C144: Sede Central | D144: Facultad de Medicina | E144: Especialización en Oftalmología | F144: Presencial
B145: 2014 | C145: Sede Central | D145: Facultad de Medicina | E145: Especialización en Ortopedia Infantil | F145: Presencial
B146: 2014 | C146: Sede Central | D146: Facultad de Medicina | E146: Especialización en Ortopedia y Traumatología | F146: Presencial
B147: 2014 | C147: Sede Central | D147: Facultad de Medicina | E147: Especialización en Otorrinolaringología | F147: Presencial
B148: 2014 | C148: Sede Central | D148: Facultad de Medicina | E148: Especialización en Patología | F148: Presencial
B149: 2014 | C149: Sede Central | D149: Facultad de Medicina | E149: Especialización en Pediatría | F149: Presencial
B150: 2014 | C150: Sede Central | D150: Facultad de Medicina | E150: Especialización en Psiquiatría de Enlace | F150: Presencial
B151: 2014 | C151: Sede Central | D151: Facultad de Medicina | E151: Especialización en Psiquiatría de Niños y Adolescentes | F151: Presencial
B152: 2014 | C152: Sede Central | D152: Facultad de Medicina | E152: Especialización en Psiquiatría General | F152: Presencial
B153: 2014 | C153: Sede Central | D153: Facultad de Medicina | E153: Especialización en Radiología | F153: Presencial
B154: 2014 | C154: Sede Central | D154: Facultad de Medicina | E154: Especialización en Urología | F154: Presencial
B155: 2014 | C155: Sede Central | D155: Facultad de Medicina | E155: Maestría en Epidemiología Clínica | F155: Presencial
B156: 2014 | C156: Sede Central | D156: Facultad de Odontología | E156: Carrera de Odontología | F156: Presencial
B157: 2014 | C157: Sede Central | D157: Facultad de Odontología | E157: Especialización en Endodoncia | F157: Presencial
B158: 2014 | C158: Sede Central | D158: Facultad de Odontología | E158: Especialización en Odontopediatría | F158: Presencial
B159: 2014 | C159: Sede Central | D159: Facultad de Odontología | E159: Especialización en Ortodoncia | F159: Presencial
B160: 2014 | C160: Sede Central | D160: Facultad de Odontología | E160: Especialización en Patología y Cirugía Bucal | F160: Presencial
B161: 2014 | C161: Sede Central | D161: Facultad de Odontología | E161: Especialización en Periodoncia | F161: Presencial
B162: 2014 | C162: Sede Central | D162: Facultad de Odontología | E162: Especialización en Rehabilitación Oral | F162: Presencial
B163: 2014 | C163: Sede Central | D163: Facultad de Psicología | E163: Carrera de Psicología | F163: Presencial
B164: 2014 | C164: Sede Central | D164: Facultad de Psicología | E164: Maestría en Psicología Clínica | F164: Presencial
B165: 2014 | C165: Sede Central | D165: Facultad de Teología | E165: Carrera de Teología | F165: Presencial
B166: 2014 | C166: Sede Central | D166: Facultad de Teología | E166: Doctorado en Teología | F166: Presencial
B167: 2014 | C167: Sede Central | D167: Facultad de Teología | E167: Licenciatura en Ciencias Religiosas | F167: Virtual
B168: 2014 | C168: Sede Central | D168: Facultad de Teología | E168: Licenciatura en Teología | F168: Presencial
B169: 2014 | C169: Sede Central | D169: Facultad de Teología | E169: Maestría en Teología | F169: Presencial
B170: 2014 | C170: Sede Central | D170: Instituto de Bioética | E170: Especialización en Bioética | F170: Presencial
B171: 2014 | C171: Sede Central | D171: Instituto de Bioética | E171: Maestría en Bioética | F171: Presencial
B172: 2014 | C172: Seccional Cali | D172: Facultad de Ciencias de la Salud | E172: Carrera de Medicina | F172: Presencial
B173: 2014 | C173: Seccional Cali | D173: Facultad de Ciencias de la Salud | E173: Maestría en Salud Pública | F173: Presencial
B174: 2014 | C174: Seccional Cali | D174: Facultad de Ciencias Económicas y Administrativas | E174: Carrera de Administración de Empresas | F174: Presencial
B175: 2014 | C175: Seccional Cali | D175: Facultad de Ciencias Económicas y Administrativas | E175: Carrera de Contaduría Pública | F175: Presencial
B176: 2014 | C176: Seccional Cali | D176: Facultad de Ciencias Económicas y Administrativas | E176: Carrera de Economía | F176: Presencial
B177: 2014 | C177: Seccional Cali | D177: Facultad de Ciencias Económicas y Administrativas | E177: Carrera de Negocios Internacionales | F177: Presencial
B178: 2014 | C178: Seccional Cali | D178: Facultad de Ciencias Económicas y Administrativas | E178: Especialización en Contabilidad Financiera Internacional | F178: Presencial
B179: 2014 | C179: Seccional Cali | D179: Facultad de Ciencias Económicas y Administrativas | E179: Especialización en Administración de Salud | F179: Presencial
B180: 2014 | C180: Seccional Cali | D180: Facultad de Ciencias Económicas y Administrativas | E180: Especialización en Finanzas | F180: Presencial
B181: 2014 | C181: Seccional Cali | D181: Facultad de Ciencias Económicas y Administrativas | E181: Especialización en Gerencia Social | F181: Presencial
B182: 2014 | C182: Seccional Cali | D182: Facultad de Ciencias Económicas y Administrativas | E182: Especialización en Gestión Tributaria | F182: Presencial
B183: 2014 | C183: Seccional Cali | D183: Facultad de Ciencias Económicas y Administrativas | E183: Especialización en Mercadeo | F183: Presencial
B184: 2014 | C184: Seccional Cali | D184: Facultad de Ciencias Económicas y Administrativas | E184: Especialización en Negocios Internacionales | F184: Presencial
B185: 2014 | C185: Seccional Cali | D185: Facultad de Ciencias Económicas y Administrativas | E185: Maestría en Administración de Empresas Modalidad Ejecutiva - EMBA | F185: Presencial
B186: 2014 | C186: Seccional Cali | D186: Facultad de Ciencias Económicas y Administrativas | E186: Maestría en Administración de Empresas Modalidad Profesional - MBA | F186: Presencial
B187: 2014 | C187: Seccional Cali | D187: Facultad de Ciencias Económicas y Administrativas | E187: Maestría en Economía | F187: Presencial
B188: 2014 | C188: Seccional Cali | D188: Facultad de Ciencias Económicas y Administrativas | E188: Maestría en Finanzas | F188: Presencial
B189: 2014 | C189: Seccional Cali | D189: Facultad de Ciencias Económicas y Administrativas | E189: Maestría en Mercadeo | F189: Presencial
B190: 2014 | C190: Seccional Cali | D190: Facultad de Humanidades y Ciencias Sociales | E190: Carrera de Arquitectura | F190: Presencial
B191: 2014 | C191: Seccional Cali | D191: Facultad de Humanidades y Ciencias Sociales | E191: Carrera de Artes Visuales | F191: Presencial
B192: 2014 | C192: Seccional Cali | D192: Facultad de Humanidades y Ciencias Sociales | E192: Carrera de Ciencia Política | F192: Presencial
B193: 2014 | C193: Seccional Cali | D193: Facultad de Humanidades y Ciencias Sociales | E193: Carrera de Comunicación | F193: Presencial
B194: 2014 | C194: Seccional Cali | D194: Facultad de Humanidades y Ciencias Sociales | E194: Carrera de Derecho | F194: Presencial
B195: 2014 | C195: Seccional Cali | D195: Facultad de Humanidades y Ciencias Sociales | E195: Carrera de Diseño de Comunicación Visual | F195: Presencial
B196: 2014 | C196: Seccional Cali | D196: Facultad de Humanidades y Ciencias Sociales | E196: Carrera de Filosofía | F196: Presencial
B197: 2014 | C197: Seccional Cali | D197: Facultad de Humanidades y Ciencias Sociales | E197: Carrera de Psicología | F197: Presencial
B198: 2014 | C198: Seccional Cali | D198: Facultad de Humanidades y Ciencias Sociales | E198: Especialización en Cultura de Paz y Derecho Internacional Humanitario | F198: Presencial
B199: 2014 | C199: Seccional Cali | D199: Facultad de Humanidades y Ciencias Sociales | E199: Especialización en Derecho Comercial | F199: Presencial
B200: 2014 | C200: Seccional Cali | D200: Facultad de Humanidades y Ciencias Sociales | E200: Especialización en Neuropsicología Infantil | F200: Presencial
B201: 2014 | C201: Seccional Cali | D201: Facultad de Humanidades y Ciencias Sociales | E201: Especialización en Procesos Humanos y Desarrollo Organizacional | F201: Presencial
B202: 2014 | C202: Seccional Cali | D202: Facultad de Humanidades y Ciencias Sociales | E202: Especialización en Seguridad Social | F202: Presencial
... 480 more rows

Sheet TABLA A-2
B2: =+CONCATENATE("<< Tabla A-",RIGHT(B4,1)-1) -> << Tabla A-1 | D2: =+CONCATENATE("Tabla A-",RIGHT(B4,1)+1," >>") -> Tabla A-3 >>
B4: =+(MID(ÍNDICE!C16,1,9)) -> Tabla A-2
A5: Oferta Académica | B5: Número de programas académicos ofrecidos por facultad o instituto según metodología y nivel. Sede Central y Seccional Cali.
B6: Fuente: Dirección de Programas Académicos, Vicerrectoría Académica, Sede Central. Oficina de Desarrollo Académico, Vicerrectoría Académica, Seccional Cali.
B7: Nota: No se incluyen los programas en extensión ofrecidos por la Sede Central. *Para FCEA son 16 programas, se ha registrado la Maestría en Economía de la Sede Central aunque el registro no es propio de la seccional.
B8: Sede | C8: Facultad / Instituto | D8: * Ciudades de las extensiones | E8: Metodología | F8: Pregrado | G8: Especialización | H8: Maestría | I8: *Maestrías en extensión | J8: *Maestrías Sede Central con ext. en Cali | K8: Doctorado | L8: Total
B9: Sede Central | F9: 37 | G9: 87 | H9: 49 | I9: -- | J9: -- | K9: 10 | L9: 183
B10: Seccional Cali | F10: 19 | G10: 16 | H10: 15 | I10: 3 | J10: -- | K10: 1 | L10: 51
B11: Total general | F11: 56 | G11: 103 | H11: 64 | I11: 3 | J11: -- | K11: 11 | L11: 234

Sheet F-TABLA A-2 (hidden)
B1: Tabla A-2. Número de programas académicos ofrecidos por facultad o instituto según metodología y nivel. Sede Central y Seccional Cali
B3: Fuente: Dirección de programas académicos, vicerrectoría académica, Sede Central. Oficina de registro académico, vicerrectoría académica, Seccional Cali.
B4: Nota: no se incluyen los programas en extensión ofrecidos por la Sede Central.
B5: *Ciudades de las extensiones: Barranquilla, Pasto y Pereira
B6: ** El número total de programas de la FCEA es 16, el MBA-Barranquilla, MBA-Pasto y MBA-Pereira son extensiones del MBA-Cali. Se ha registrado la Maestría en Economía de la Sede Central aunque el registro no es propio de la seccional.
B8: SEDE | C8: FACULTAD O INSTITUTO | D8: Pregrado | E8: Especialización | F8: Maestría | G8: *Maestrías en extensión | H8: *Maestrías de la Sede Central con ext. en Cali | I8: Doctorado | J8: Total | K8: * Ciudades de las extensiones | L8: Metodología
B9: Sede Central | C9: Facultad de Arquitectura y Diseño | D9: 2 | E9: 1 | F9: 2 | J9: =+SUM(D9:I9) -> 5 | K9: - | L9: Presencial
B10: Sede Central | C10: Facultad de Artes | D10: 3 | E10: 1 | F10: 2 | J10: =+SUM(D10:I10) -> 6 | K10: - | L10: Presencial
B11: Sede Central | C11: Facultad de Ciencias | D11: 5 | E11: 3 | F11: 3 | I11: 1 | J11: 12 | K11: - | L11: Presencial
B12: Sede Central | C12: Facultad de Ciencias Económicas y Administrativas | D12: 3 | E12: 13 | F12: 6 | J12: 22 | K12: - | L12: Presencial
B13: Sede Central | C13: Facultad de Ciencias Jurídicas | D13: 1 | E13: 13 | F13: 4 | I13: 1 | J13: 19 | K13: - | L13: Presencial
B14: Sede Central | C14: Facultad de Ciencias Políticas y Relaciones Internacionales | D14: 2 | E14: 3 | F14: 6 | J14: 11 | K14: - | L14: Presencial
B15: Sede Central | C15: Facultad de Ciencias Sociales | D15: 4 | E15: 1 | F15: 3 | I15: 1 | J15: 9 | K15: - | L15: Presencial
B16: Sede Central | C16: Facultad de Comunicación y Lenguaje | D16: 3 | E16: 2 | F16: 3 | J16: 8 | K16: - | L16: Presencial
B17: Sede Central | C17: Facultad de Derecho Canónico | F17: 1 | I17: 1 | J17: 2 | K17: - | L17: Presencial
B18: Sede Central | C18: Facultad de Educación | D18: 1 | F18: 1 | J18: 2 | K18: - | L18: Presencial
B19: Sede Central | C19: Facultad de Enfermería | D19: 1 | E19: 3 | F19: 2 | J19: 6 | K19: - | L19: Presencial
B20: Sede Central | C20: Facultad de Estudios Ambientales y Rurales | D20: 1 | E20: 1 | F20: 3 | I20: 1 | J20: 6 | K20: - | L20: Presencial
B21: Sede Central | C21: Facultad de Filosofía | D21: 2 | F21: 1 | I21: 1 | J21: 4 | K21: - | L21: Presencial
B22: Sede Central | C22: Facultad de Ingeniería | D22: 4 | E22: 6 | F22: 7 | I22: 1 | J22: 18 | K22: - | L22: Presencial
B23: Sede Central | C23: Facultad de Medicina | D23: 1 | E23: 32 | F23: 2 | I23: 1 | J23: 36 | K23: - | L23: Presencial
B24: Sede Central | C24: Facultad de Odontología | D24: 1 | E24: 7 | J24: 8 | K24: - | L24: Presencial
B25: Sede Central | C25: Facultad de Psicología | D25: 1 | F25: 1 | I25: 1 | J25: 3 | K25: - | L25: Presencial
B26: Sede Central | C26: Facultad de Teología | D26: 2 | F26: 1 | I26: 1 | J26: 4 | K26: - | L26: Presencial
B27: Sede Central | C27: Instituto de Bioética | E27: 1 | F27: 1 | J27: 2 | K27: - | L27: Presencial
B28: Seccional Cali | C28: Facultad de Ciencias Económicas y Administrativas | D28: 4 | E28: 7 | F28: 5 | J28: 16 | K28: -* | L28: Presencial
B29: Seccional Cali | C29: Facultad de Ciencias Económicas y Administrativas | G29: 1 | J29: 0 | K29: Barranquilla | L29: Distancia
B30: Seccional Cali | C30: Facultad de Ciencias Económicas y Administrativas | G30: 1 | J30: 0 | K30: Pasto | L30: Distancia
B31: Seccional Cali | C31: Facultad de Ciencias Económicas y Administrativas | G31: 1 | J31: 0 | K31: Pereira | L31: Distancia
B32: Seccional Cali | C32: Facultad de Ciencias de la Salud | D32: 1 | F32: 1 | J32: 2 | K32: - | L32: Presencial
B33: Seccional Cali | C33: Facultad de Humanidades y Ciencias Sociales | D33: 8 | E33: 5 | F33: 5 | J33: 18 | K33: - | L33: Presencial
B34: Seccional Cali | C34: Facultad de Humanidades y Ciencias Sociales | F34: 1 | J34: 1 | K34: - | L34: Virtual
B35: Seccional Cali | C35: Facultad de Ingeniería | D35: 6 | E35: 4 | F35: 3 | I35: 1 | J35: 14 | K35: - | L35: Presencial

Sheet TABLA A-3
B2: =+CONCATENATE("<< Tabla A-",RIGHT(B4,1)-1) -> << Tabla A-2 | D2: =+CONCATENATE("Tabla A-",RIGHT(B4,1)+1," >>") -> Tabla A-4 >>
B4: =+(MID(ÍNDICE!C17,1,9)) -> Tabla A-3
A5: Oferta Académica | B5: Programas académicos con acreditación de alta calidad. Sede Central y Seccional Cali.
B6: Fuente: Dirección de Programas Académicos, Vicerrectoría Académica, Sede Central. Oficina de Registro Académico, Vicerrectoría Académica, Seccional Cali.
B7: Sede | C7: Facultad | D7: Nivel | E7: Programa | F7: Estado | G7: Resolución | H7: Vigencia (años)
B8: Sede Central | H8: 232
B9: Seccional Cali | H9: 54

Sheet F-TABLA A-3 (hidden)
B1: Tabla A-3. Programas académicos con acreditación de alta calidad. Sede Central y Seccional Cali
B3: Fuente: Dirección de programas académicos, vicerrectoría académica, Sede Central. Oficina de registro académico, vicerrectoría académica, Seccional Cali.
B5: SEDE | C5: FACULTAD O INSTITUCIÓN | D5: NIVEL | E5: PROGRAMA | F5: ESTADO | G5: Resolución | H5: VIGENCIA (años)
B6: Sede Central | C6: Facultad de Arquitectura y Diseño | D6: Pregrado | E6: Carrera de Arquitectura | F6: Renovación | G6: 15695 del 1º de noviembre de 2013 | H6: 8
B7: Sede Central | C7: Facultad de Arquitectura y Diseño | D7: Pregrado | E7: Carrera de Diseño Industrial | F7: Renovación | G7: 14968 del 19 de noviembre de 2012 | H7: 6
B8: Sede Central | C8: Facultad de Artes | D8: Pregrado | E8: Carrera de Artes Visuales | F8: Renovación | G8: 10767 del 24 de noviembre de 2011 | H8: 6
B9: Sede Central | C9: Facultad de Artes | D9: Pregrado | E9: Carrera de Estudios Musicales | F9: Renovación | G9: 438 del 19 de enero de 2012 | H9: 6
B10: Sede Central | C10: Facultad de Ciencias | D10: Pregrado | E10: Carrera de Bacteriología | F10: Renovación | G10: 982 del 27 de febrero de 2009 | H10: 6
B11: Sede Central | C11: Facultad de Ciencias | D11: Pregrado | E11: Carrera de Biología | F11: Renovación | G11: 1574 del 20 de marzo de 2009 | H11: 6
B12: Sede Central | C12: Facultad de Ciencias | D12: Pregrado | E12: Carrera de Microbiología Industrial | F12: Acreditación | G12: 12620 del 14 agosto de 2015 | H12: 4
B13: Sede Central | C13: Facultad de Ciencias | D13: Pregrado | E13: Carrera de Nutrición y Dietética | F13: Renovación | G13: 9910 del 22 de agosto de 2012 | H13: 6
B14: Sede Central | C14: Facultad de Ciencias | D14: Posgrado | E14: Doctorado en Ciencias Biológicas | F14: Acreditación | G14: 16204 de 30 de septiembre de 2015 | H14: 10
B15: Sede Central | C15: Facultad de Ciencias | D15: Posgrado | E15: Maestría en Ciencias Biológicas | F15: Acreditación | G15: 13579 del 02 septiembre 2015 | H15: 8
B16: Sede Central | C16: Facultad de Ciencias Económicas y Administrativas | D16: Pregrado | E16: Carrera de Administración de Empresas | F16: Renovación | G16: 6971 del 15 de mayo de 2015 | H16: 6
B17: Sede Central | C17: Facultad de Ciencias Económicas y Administrativas | D17: Pregrado | E17: Carrera de Contaduría Pública | F17: Segunda renovación | G17: 10768 del 24 de noviembre de 2011 | H17: 4
B18: Sede Central | C18: Facultad de Ciencias Económicas y Administrativas | D18: Pregrado | E18: Carrera de Economía | F18: Segunda renovación | G18: 22938 del 31 de diciembre de 2014 | H18: 8
B19: Sede Central | C19: Facultad de Ciencias Jurídicas | D19: Pregrado | E19: Carrera de Derecho | F19: Segunda renovación | G19: 1085 del 28 de enero de 2014 | H19: 8
B20: Sede Central | C20: Facultad de Ciencias Políticas y Relaciones Internacionales | D20: Pregrado | E20: Carrera de Ciencia Política | F20: Renovación | G20: 14317 del 7 de septiembre de 2015 | H20: 6
B21: Sede Central | C21: Facultad de Ciencias Sociales | D21: Pregrado | E21: Carrera de Estudios Literarios | F21: Renovación | G21: 12619 del 14 de agosto de 2015 | H21: 8
B22: Sede Central | C22: Facultad de Ciencias Sociales | D22: Pregrado | E22: Carrera de Historia | F22: Renovación | G22: 437 del 19 de enero de 2012 | H22: 6
B23: Sede Central | C23: Facultad de Comunicación y Lenguaje | D23: Pregrado | E23: Carrera de Ciencia de la Información - Bibliotecología | F23: Segunda renovación | G23: 5093 del 10 de abril de 2014 | H23: 4
B24: Sede Central | C24: Facultad de Comunicación y Lenguaje | D24: Pregrado | E24: Carrera de Comunicación Social | F24: Segunda renovación | G24: 10610 del 14 de julio de 2015 | H24: 6
B25: Sede Central | C25: Facultad de Comunicación y Lenguaje | D25: Pregrado | E25: Licenciatura en Lenguas Modernas | F25: Renovación | G25: 4416 del 3 de junio de 2010 | H25: 6
B26: Sede Central | C26: Facultad de Educación | D26: Pregrado | E26: Licenciatura en Pedagogía Infantil | F26: Acreditación | G26: 6809 del 6 de agosto de 2010 | H26: 6
B27: Sede Central | C27: Facultad de Enfermería | D27: Pregrado | E27: Carrera de Enfermería | F27: Renovación | G27: 15556 del 1º de noviembre de 2013 | H27: 8
B28: Sede Central | C28: Facultad de Estudios Ambientales y Rurales | D28: Pregrado | E28: Carrera de Ecología | F28: Segunda renovación | G28: 6692 del 9 de mayo de 2014 | H28: 8
B29: Sede Central | C29: Facultad de Filosofía | D29: Pregrado | E29: Carrera de Filosofía | F29: Renovación | G29: 6464 del 23 de julio de 2010 | H29: 6
B30: Sede Central | C30: Facultad de Ingeniería | D30: Pregrado | E30: Carrera de Ingeniería Civil | F30: Segunda renovación | G30: 2252 del 20 de febrero de 2014 | H30: 8
B31: Sede Central | C31: Facultad de Ingeniería | D31: Pregrado | E31: Carrera de Ingeniería de Sistemas | F31: Renovación | G31: 3997 del 18 de abril de 2012 | H31: 6
B32: Sede Central | C32: Facultad de Ingeniería | D32: Pregrado | E32: Carrera de Ingeniería Electrónica | F32: Segunda renovación | G32: 16213 del 30 de septiembre de 2015 | H32: 8
B33: Sede Central | C33: Facultad de Ingeniería | D33: Pregrado | E33: Carrera de Ingeniería Industrial | F33: Renovación | G33: 7452 del 14 de junio de 2013 | H33: 8
B34: Sede Central | C34: Facultad de Ingeniería | D34: Posgrado | E34: Maestría en Hidrosistemas | F34: Acreditación | G34: 20963 del 22 de diciembre de 2015 | H34: 4
B35: Sede Central | C35: Facultad de Ingeniería | D35: Posgrado | E35: Maestría en Ingeniería Electrónica | F35: Acreditación | G35: 16218 de 30 de septiembre de 2015 | H35: 6
B36: Sede Central | C36: Facultad de Medicina | D36: Pregrado | E36: Carrera de Medicina | F36: Segunda renovación | G36: 6766 del 31 de mayo de 2013 | H36: 8
B37: Sede Central | C37: Facultad de Medicina | D37: Posgrado | E37: Maestría en Epidemiología Clínica | F37: Acreditación | G37: 16178 de 30 de septiembre de 2015 | H37: 6
B38: Sede Central | C38: Facultad de Odontología | D38: Pregrado | E38: Carrera de Odontología | F38: Segunda renovación | G38: 12735 del 28 de diciembre de 2010 | H38: 6
B39: Sede Central | C39: Facultad de Psicología | D39: Pregrado | E39: Carrera de Psicología | F39: Renovación | G39: 8891 del 19 de junio de 2015 | H39: 8
B40: Sede Central | C40: Facultad de Teología | D40: Pregrado | E40: Carrera de Teología | F40: Segunda renovación | G40: 8155 del 30 de mayo de 2014 | H40: 8
B41: Seccional Cali | C41: Facultad de Ciencias Económicas y Administrativas | D41: Pregrado | E41: Carrera de Economía | F41: Primera acreditación | G41: 9911 del 22 de agosto de 2012 | H41: 4
B42: Seccional Cali | C42: Facultad de Ciencias Económicas y Administrativas | D42: Pregrado | E42: Carrera de Administración de Empresas | F42: Tercera acreditación | G42: 22939 del 31 de diciembre de 2014 | H42: 6
B43: Seccional Cali | C43: Facultad de Ciencias Económicas y Administrativas | D43: Pregrado | E43: Carrera de Psicología | F43: Segunda acreditación | G43: 16821 del 19 de agosto de 2016 | H43: 6
B44: Seccional Cali | C44: Facultad de Humanidades y Ciencias Sociales | D44: Pregrado | E44: Carrera de Ingeniería Industrial | F44: Tercera acreditación | G44: 10633 del 9 de julio de 2014 | H44: 6
B45: Seccional Cali | C45: Facultad de Ingeniería | D45: Pregrado | E45: Carrera de Ingeniería de Sistemas y Computación | F45: Segunda acreditación | G45: 9909 del 22 de agosto de 2012 | H45: 6
B46: Seccional Cali | C46: Facultad de Ingeniería | D46: Pregrado | E46: Carrera de Ingeniería Electrónica | F46: Segunda acreditación | G46: 1239 del 21 de febrero de 2011 | H46: 6
B47: Seccional Cali | C47: Facultad de Ingeniería | D47: Pregrado | E47: Carrera de Ingeniería Civil | F47: Segunda acreditación | G47: 16192 del 30 de septiembre de 2015 | H47: 6
B48: Seccional Cali | C48: Facultad de Ingeniería | D48: Pregrado | E48: Carrera de Derecho | F48: Segunda acreditación | G48: 16202 del 30 de septiembre de 2015 | H48: 6
B49: Seccional Cali | C49: Facultad de Humanidades y Ciencias Sociales | D49: Pregrado | E49: Carrera de Ciencia Política | F49: Primera acreditación | G49: 16198 del 30 de septiembre de 2015 | H49: 4
B50: Seccional Cali | C50: Facultad de Humanidades y Ciencias Sociales | D50: Pregrado | E50: Carrera de Comunicación | F50: Primera acreditación | G50: 9342 del 6 de mayo de 2016 | H50: 4

Sheet TABLA A-4
B2: =+CONCATENATE("<< Tabla A-",RIGHT(B4,1)-1) -> << Tabla A-3 | D2: =+CONCATENATE(PROPER('TABLA B-1'!B4)," >>") -> Tabla B-1 >>
B4: =+(MID(ÍNDICE!C18,1,9)) -> Tabla A-4
A5: Oferta Académica | B5: Programas académicos de pregrado. Número de créditos por componente y total. Sede Central y Seccional Cali.
B6: Fuente: Dirección de Programas Académicos, Vicerrectoría Académica, Sede Central. Oficina de Registro Académico, Vicerrectoría Académica, Seccional Cali.
B7: Sede | C7: Núcleo de formación fundamental | D7: Énfasis | E7: Complementarias | F7: Énfasis + Complementarias | G7: Electivas | H7: Total
B8: Sede Central | C8: 4368 | D8: 781 | E8: 282 | F8: 186 | G8: 620 | H8: 6237
B9: Seccional Cali | C9: 2342 | D9: 357 | E9: 259 | G9: 257 | H9: 3215

Sheet F-TABLA A-4 (hidden)
B1: Tabla A-4. Programas académicos de pregrado. Número de créditos por componente y total. Sede Central y Seccional Cali.
B3: Fuente: Dirección de programas académicos, vicerrectoría académica, Sede Central. Oficina de registro académico, vicerrectoría académica, Seccional Cali.
E5: Componentes (número de créditos ) | F5: Componentes (número de créditos ) | G5: Componentes (número de créditos ) | H5: Componentes (número de créditos ) | I5: Componentes (número de créditos ) | J5: Componentes (número de créditos )
B6: SEDE | C6: FACULTAD O INSTITUCIÓN | D6: PROGRAMA | E6: Núcleo de formación fundamental | F6: Énfasis | G6: Complementarias | H6: Énfasis + Complementarias | I6: Electivas | J6: Total
B7: Sede Central | C7: Facultad de Ciencias Económicas y Administrativas | D7: Carrera de Administración de Empresas | E7: 104 | F7: 24 | G7: 16 | I7: 16 | J7: =+SUM(E7:I7) -> 160
B8: Sede Central | C8: Facultad de Ciencias Sociales | D8: Carrera de Antropología | E8: 105 | F8: 15 | G8: 15 | I8: 15 | J8: =+SUM(E8:I8) -> 150
B9: Sede Central | C9: Facultad de Arquitectura y Diseño | D9: Carrera de Arquitectura | E9: 132 | F9: 26 | G9: 12 | I9: 18 | J9: 188
B10: Sede Central | C10: Facultad de Artes | D10: Carrera de Artes Escénicas | E10: 105 | F10: 24 | I10: 24 | J10: 153
B11: Sede Central | C11: Facultad de Artes | D11: Carrera de Artes Visuales | E11: 104 | H11: 44 | I11: 22 | J11: 170
B12: Sede Central | C12: Facultad de Ciencias | D12: Carrera de Bacteriología | E12: 126 | F12: 18 | G12: 18 | I12: 18 | J12: 180
B13: Sede Central | C13: Facultad de Ciencias | D13: Carrera de Biología | E13: 120 | F13: 17 | G13: 17 | I13: 17 | J13: 171
B14: Sede Central | C14: Facultad de Comunicación y Lenguaje | D14: Carrera de Ciencia de la Información - Bibliotecología | E14: 111 | F14: 10 | G14: 24 | I14: 18 | J14: 163
B15: Sede Central | C15: Facultad de Ciencias Políticas y Relaciones Internacionales | D15: Carrera de Ciencia Política | E15: 109 | F15: 24 | G15: 16 | I15: 16 | J15: 165
B16: Sede Central | C16: Facultad de Comunicación y Lenguaje | D16: Carrera de Comunicación Social | E16: 106 | F16: 42 | G16: 12 | I16: 18 | J16: 178
B17: Sede Central | C17: Facultad de Ciencias Económicas y Administrativas | D17: Carrera de Contaduría Pública | E17: 112 | F17: 20 | G17: 12 | I17: 16 | J17: 160
B18: Sede Central | C18: Facultad de Ciencias Jurídicas | D18: Carrera de Derecho | E18: 156 | H18: 20 | I18: 14 | J18: 190
B19: Sede Central | C19: Facultad de Arquitectura y Diseño | D19: Carrera de Diseño Industrial | E19: 130 | F19: 32 | G19: 8 | I19: 18 | J19: 188
B20: Sede Central | C20: Facultad de Estudios Ambientales y Rurales | D20: Carrera de Ecología | E20: 116 | F20: 34 | I20: 20 | J20: 170
B21: Sede Central | C21: Facultad de Ciencias Económicas y Administrativas | D21: Carrera de Economía | E21: 112 | F21: 16 | G21: 16 | I21: 16 | J21: 160
B22: Sede Central | C22: Facultad de Enfermería | D22: Carrera de Enfermería | E22: 118 | F22: 14 | G22: 9 | I22: 19 | J22: 160
B23: Sede Central | C23: Facultad de Ciencias Sociales | D23: Carrera de Estudios Literarios | E23: 98 | H23: 28 | I23: 14 | J23: 140
B24: Sede Central | C24: Facultad de Artes | D24: Carrera de Estudios Musicales | E24: 104 | F24: 66 | I24: 8 | J24: 178
B25: Sede Central | C25: Facultad de Filosofía | D25: Carrera de Filosofía | E25: 104 | F25: 32 | I25: 14 | J25: 150
B26: Sede Central | C26: Facultad de Ciencias Sociales | D26: Carrera de Historia | E26: 103 | F26: 12 | G26: 10 | I26: 15 | J26: 140
B27: Sede Central | C27: Facultad de Ingeniería | D27: Carrera de Ingeniería Civil | E27: 114 | F27: 20 | G27: 12 | I27: 16 | J27: 162
B28: Sede Central | C28: Facultad de Ingeniería | D28: Carrera de Ingeniería de Sistemas | E28: 115 | H28: 33 | I28: 17 | J28: 165
B29: Sede Central | C29: Facultad de Ingeniería | D29: Carrera de Ingeniería Electrónica | E29: 109 | F29: 28 | G29: 7 | I29: 16 | J29: 160
B30: Sede Central | C30: Facultad de Ingeniería | D30: Carrera de Ingeniería Industrial | E30: 115 | H30: 33 | I30: 16 | J30: 164
B31: Sede Central | C31: Facultad de Ciencias | D31: Carrera de Matemáticas | E31: 102 | H31: 28 | I31: 14 | J31: 144
B32: Sede Central | C32: Facultad de Medicina | D32: Carrera de Medicina | E32: 231 | F32: 39 | G32: 0 | I32: 30 | J32: 300
B33: Sede Central | C33: Facultad de Ciencias | D33: Carrera de Microbiología Industrial | E33: 94 | F33: 28 | G33: 0 | I33: 14 | J33: 136
B34: Sede Central | C34: Facultad de Ciencias | D34: Carrera de Nutrición y Dietética | E34: 126 | F34: 18 | G34: 18 | I34: 18 | J34: 180
B35: Sede Central | C35: Facultad de Odontología | D35: Carrera de Odontología | E35: 115 | F35: 38 | G35: 0 | I35: 17 | J35: 170
B36: Sede Central | C36: Facultad de Psicología | D36: Carrera de Psicología | E36: 113 | F36: 24 | G36: 10 | I36: 17 | J36: 164
B37: Sede Central | C37: Facultad de Ciencias Políticas y Relaciones Internacionales | D37: Carrera de Relaciones Internacionales | E37: 93 | F37: 44 | G37: 16 | I37: 16 | J37: 169
B38: Sede Central | C38: Facultad de Ciencias Sociales | D38: Carrera de Sociología | E38: 105 | F38: 15 | G38: 15 | I38: 15 | J38: 150
B39: Sede Central | C39: Facultad de Teología | D39: Carrera de Teología | E39: 149 | F39: 12 | G39: 0 | I39: 10 | J39: 171
B40: Sede Central | C40: Facultad de Filosofía | D40: Licenciatura en Filosofía | E40: 101 | F40: 43 | G40: 0 | I40: 16 | J40: 160
B41: Sede Central | C41: Facultad de Comunicación y Lenguaje | D41: Licenciatura en Lenguas Modernas | E41: 126 | F41: 17 | G41: 19 | I41: 18 | J41: 180
B42: Sede Central | C42: Facultad de Educación | D42: Licenciatura en Pedagogía Infantil | E42: 122 | F42: 29 | G42: 0 | I42: 24 | J42: 175
B43: Sede Central | C43: Facultad de Teología | D43: Licenciatura en Teología | E43: 163 | F43: 0 | G43: 0 | I43: 10 | J43: 173
B44: Seccional Cali | C44: Facultad de Ciencias Económicas y Administrativas | D44: Carrera de Administración de Empresas | E44: 118 | F44: 16 | G44: 13 | I44: 13 | J44: 160
B45: Seccional Cali | C45: Facultad de Ciencias Económicas y Administrativas | D45: Carrera de Contaduría Pública | E45: 122 | F45: 16 | G45: 12 | I45: 12 | J45: 162
B46: Seccional Cali | C46: Facultad de Ciencias Económicas y Administrativas | D46: Carrera de Economía | E46: 128 | F46: 12 | G46: 9 | I46: 13 | J46: 162
B47: Seccional Cali | C47: Facultad de Ciencias Económicas y Administrativas | D47: Carrera de Negocios Internacionales | E47: 115 | F47: 12 | G47: 12 | I47: 13 | J47: 152
B48: Seccional Cali | C48: Facultad de Ciencias de la Salud | D48: Carrera de Medicina | E48: 214 | F48: 30 | G48: 26 | I48: 30 | J48: 300
B49: Seccional Cali | C49: Facultad de Humanidades y Ciencias Sociales | D49: Carrera de Arquitectura | E49: 113 | F49: 27 | G49: 9 | I49: 13 | J49: 162
B50: Seccional Cali | C50: Facultad de Humanidades y Ciencias Sociales | D50: Carrera de Artes Visuales | E50: 110 | F50: 12 | G50: 12 | I50: 10 | J50: 144
B51: Seccional Cali | C51: Facultad de Humanidades y Ciencias Sociales | D51: Carrera de Ciencia Política | E51: 112 | F51: 19 | G51: 19 | I51: 12 | J51: 162
B52: Seccional Cali | C52: Facultad de Humanidades y Ciencias Sociales | D52: Carrera de Comunicación | E52: 102 | F52: 33 | G52: 13 | I52: 14 | J52: 162
B53: Seccional Cali | C53: Facultad de Humanidades y Ciencias Sociales | D53: Carrera de Derecho | E53: 138 | F53: 18 | G53: 18 | I53: 18 | J53: 192
B54: Seccional Cali | C54: Facultad de Humanidades y Ciencias Sociales | D54: Carrera de Diseño de la Comunicación Visual | E54: 99 | F54: 24 | G54: 12 | I54: 9 | J54: 144
B55: Seccional Cali | C55: Facultad de Humanidades y Ciencias Sociales | D55: Carrera de Filosofía | E55: 110 | F55: 16 | G55: 12 | I55: 10 | J55: 148
B56: Seccional Cali | C56: Facultad de Humanidades y Ciencias Sociales | D56: Carrera de Psicología | E56: 123 | F56: 18 | G56: 15 | I56: 15 | J56: 171
B57: Seccional Cali | C57: Facultad de Ingeniería | D57: Carrera de Biología | E57: 125 | F57: 17 | G57: 14 | I57: 14 | J57: 170
B58: Seccional Cali | C58: Facultad de Ingeniería | D58: Carrera de Ingeniería Civil | E58: 128 | F58: 18 | G58: 12 | I58: 12 | J58: 170
B59: Seccional Cali | C59: Facultad de Ingeniería | D59: Carrera de Ingeniería de Sistemas y Computación | E59: 128 | F59: 18 | G59: 12 | I59: 12 | J59: 170
B60: Seccional Cali | C60: Facultad de Ingeniería | D60: Carrera de Ingeniería Electrónica | E60: 128 | F60: 15 | G60: 15 | I60: 12 | J60: 170
B61: Seccional Cali | C61: Facultad de Ingeniería | D61: Carrera de Ingeniería Industrial | E61: 125 | F61: 21 | G61: 12 | I61: 12 | J61: 170
B62: Seccional Cali | C62: Facultad de Ingeniería | D62: Carrera de Matemáticas Aplicadas | E62: 104 | F62: 15 | G62: 12 | I62: 13 | J62: 144

Sheet TABLA B-1
B2: =+CONCATENATE("<< ",PROPER('TABLA A-4'!B4)) -> << Tabla A-4 | F2: =+CONCATENATE("Tabla B-",RIGHT(B4,1)+1," >>") -> Tabla B-2 >>
B4: =+(MID(ÍNDICE!C20,1,9)) -> Tabla B-1
A5: Estudiantes | B5: Estudiantes inscritos, admitidos y matriculados de primer semestre (neojaverianos) en programas académicos en metodología presencial por facultad. Sede Central y Seccional Cali.
B6: Fuente: Sistema de Administración de Estudiantes SIU-SAE. Procesamiento de la Secretaría de Planeación, Rectoría, Sede Central. Oficina de Registro Académico, Vicerrectoría Académica, Seccional Cali.
B7: Nota: * debido a que desde el 2007 al 2010 no se contabilizaba la cantidad de inscritos, admitidos y matriculados por programa, se colocó en el campo "PROGRAMA" el total por facultad como: "Cantidad por facultad". -> Desde el año 2014 en adelante se incluyen los programas de posgrado para la Sede Central.
C8: Año
C9: 2016 | I9: 2015
C10: Semestre I | F10: Semestre II | I10: Semestre I | L10: Semestre II
B11: Sede | C11: Inscritos | D11: Admitidos | E11: Matriculados | F11: Inscritos | G11: Admitidos | H11: Matriculados | I11: Inscritos | J11: Admitidos | K11: Matriculados | L11: Inscritos | M11: Admitidos | N11: Matriculados
B12: Sede Central | C12: 15887 | D12: 6633 | E12: 4327 | F12: 9496 | G12: 5486 | H12: 3683 | I12: 12112 | J12: 6128 | K12: 4032 | L12: 9216 | M12: 5292 | N12: 3620
B13: Seccional Cali | C13: 3089 | D13: 2102 | E13: 1659 | F13: 2192 | G13: 1696 | H13: 1448 | I13: 2448 | J13: 1736 | K13: 1455 | L13: 2372 | M13: 1674 | N13: 1358
B14: Total general | C14: 18976 | D14: 8735 | E14: 5986 | F14: 11688 | G14: 7182 | H14: 5131 | I14: 14560 | J14: 7864 | K14: 5487 | L14: 11588 | M14: 6966 | N14: 4978

Sheet F-TABLA B-1 (hidden)
B1: Tabla B-1. Estudiantes inscritos, admitidos y matriculados de primer semestre (neojaverianos) en programas académicos en metodología presencial por facultad Sede Central y Seccional Cali.
B3: Fuente: Sistema de Administración de Estudiantes SIU-SAE. Procesamiento de la Secretaría de Planeación, Rectoría, Sede Central. Oficina de Registro Académico, Vicerrectoría Académica, Seccional Cali.
B4: Nota: * debido a que desde el 2007 al 2010 no se contabilizada la cantidad de inscritos, admitidos y matriculados, se colocó en el campo "PROGRAMA" el total por facultad como: "Cantidad por facultad". -> A para el año 2014 en adelante se incluyen los programas de posgrado para la Sede Central.
B6: AÑO | C6: PERÍODO | D6: SEDE | E6: FACULTAD | F6: NIVEL | G6: PROGRAMA | H6: INSCRITOS | I6: ADMITIDOS | J6: MATRICULADOS
B7: 2007 | C7: Semestre I | D7: Sede Central | E7: Facultad de Arquitectura y Diseño | F7: Pregrado | G7: Cantidad por Facultad | H7: 535 | J7: 217
B8: 2007 | C8: Semestre I | D8: Sede Central | E8: Facultad de Artes | F8: Pregrado | G8: Cantidad por Facultad | H8: 330 | J8: 127
B9: 2007 | C9: Semestre I | D9: Sede Central | E9: Facultad de Ciencias | F9: Pregrado | G9: Cantidad por Facultad | H9: 374 | J9: 283
B10: 2007 | C10: Semestre I | D10: Sede Central | E10: Facultad de Ciencias Económicas y Administrativas | F10: Pregrado | G10: Cantidad por Facultad | H10: 807 | J10: 398
B11: 2007 | C11: Semestre I | D11: Sede Central | E11: Facultad de Ciencias Jurídicas | F11: Pregrado | G11: Carrera de Derecho | H11: 356 | J11: 98
B12: 2007 | C12: Semestre I | D12: Sede Central | E12: Facultad de Ciencias Políticas y Relaciones Internacionales | F12: Pregrado | G12: Cantidad por Facultad | H12: 150 | J12: 80
B13: 2007 | C13: Semestre I | D13: Sede Central | E13: Facultad de Ciencias Sociales | F13: Pregrado | G13: Cantidad por Facultad | H13: 114 | J13: 71
B14: 2007 | C14: Semestre I | D14: Sede Central | E14: Facultad de Comunicación y Lenguaje | F14: Pregrado | G14: Cantidad por Facultad | H14: 489 | J14: 229
B15: 2007 | C15: Semestre I | D15: Sede Central | E15: Facultad de Educación | F15: Pregrado | G15: Licenciatura en Pedagogía Infantil | H15: 34 | J15: 32
B16: 2007 | C16: Semestre I | D16: Sede Central | E16: Facultad de Enfermería | F16: Pregrado | G16: Carrera de Enfermería | H16: 102 | J16: 74
B17: 2007 | C17: Semestre I | D17: Sede Central | E17: Facultad de Estudios Ambientales y Rurales | F17: Pregrado | G17: Carrera de Ecología | H17: 37 | J17: 34
B18: 2007 | C18: Semestre I | D18: Sede Central | E18: Facultad de Filosofía | F18: Pregrado | G18: Cantidad por Facultad | H18: 38 | J18: 26
B19: 2007 | C19: Semestre I | D19: Sede Central | E19: Facultad de Ingeniería | F19: Pregrado | G19: Cantidad por Facultad | H19: 918 | J19: 406
B20: 2007 | C20: Semestre I | D20: Sede Central | E20: Facultad de Medicina | F20: Pregrado | G20: Carrera de Medicina | H20: 513 | J20: 75
B21: 2007 | C21: Semestre I | D21: Sede Central | E21: Facultad de Odontología | F21: Pregrado | G21: Carrera de Odontología | H21: 116 | J21: 66
B22: 2007 | C22: Semestre I | D22: Sede Central | E22: Facultad de Psicología | F22: Pregrado | G22: Carrera de Psicología | H22: 173 | J22: 76
B23: 2007 | C23: Semestre I | D23: Sede Central | E23: Facultad de Teología | F23: Pregrado | G23: Cantidad por Facultad | H23: 173 | J23: 62
B24: 2007 | C24: Semestre II | D24: Sede Central | E24: Facultad de Arquitectura y Diseño | F24: Pregrado | G24: Cantidad por Facultad | H24: 466 | J24: 218
B25: 2007 | C25: Semestre II | D25: Sede Central | E25: Facultad de Artes | F25: Pregrado | G25: Cantidad por Facultad | H25: 296 | J25: 129
B26: 2007 | C26: Semestre II | D26: Sede Central | E26: Facultad de Ciencias | F26: Pregrado | G26: Cantidad por Facultad | H26: 211 | J26: 146
B27: 2007 | C27: Semestre II | D27: Sede Central | E27: Facultad de Ciencias Económicas y Administrativas | F27: Pregrado | G27: Cantidad por Facultad | H27: 638 | J27: 350
B28: 2007 | C28: Semestre II | D28: Sede Central | E28: Facultad de Ciencias Jurídicas | F28: Pregrado | G28: Carrera de Derecho | H28: 326 | J28: 102
B29: 2007 | C29: Semestre II | D29: Sede Central | E29: Facultad de Ciencias Políticas y Relaciones Internacionales | F29: Pregrado | G29: Cantidad por Facultad | H29: 105 | J29: 54
B30: 2007 | C30: Semestre II | D30: Sede Central | E30: Facultad de Ciencias Sociales | F30: Pregrado | G30: Cantidad por Facultad | H30: 122 | J30: 69
B31: 2007 | C31: Semestre II | D31: Sede Central | E31: Facultad de Comunicación y Lenguaje | F31: Pregrado | G31: Cantidad por Facultad | H31: 390 | J31: 195
B32: 2007 | C32: Semestre II | D32: Sede Central | E32: Facultad de Educación | F32: Pregrado | G32: Licenciatura en Pedagogía Infantil | H32: 29 | J32: 24
B33: 2007 | C33: Semestre II | D33: Sede Central | E33: Facultad de Enfermería | F33: Pregrado | G33: Carrera de Enfermería | H33: 94 | J33: 71
B34: 2007 | C34: Semestre II | D34: Sede Central | E34: Facultad de Estudios Ambientales y Rurales | F34: Pregrado | G34: Carrera de Ecología | H34: 25 | J34: 14
B35: 2007 | C35: Semestre II | D35: Sede Central | E35: Facultad de Filosofía | F35: Pregrado | G35: Cantidad por Facultad | H35: 13 | J35: 10
B36: 2007 | C36: Semestre II | D36: Sede Central | E36: Facultad de Ingeniería | F36: Pregrado | G36: Cantidad por Facultad | H36: 647 | J36: 250
B37: 2007 | C37: Semestre II | D37: Sede Central | E37: Facultad de Medicina | F37: Pregrado | G37: Carrera de Medicina | H37: 363 | J37: 84
B38: 2007 | C38: Semestre II | D38: Sede Central | E38: Facultad de Odontología | F38: Pregrado | G38: Carrera de Odontología | H38: 87 | J38: 65
B39: 2007 | C39: Semestre II | D39: Sede Central | E39: Facultad de Psicología | F39: Pregrado | G39: Carrera de Psicología | H39: 125 | J39: 87
B40: 2007 | C40: Semestre II | D40: Sede Central | E40: Facultad de Teología | F40: Pregrado | G40: Cantidad por Facultad | H40: 90 | J40: 37
B41: 2007 | C41: Semestre I | D41: Seccional Cali | E41: Facultad de Ciencias Económicas y Administrativas | F41: Posgrado | G41: Especialización en Administración de Salud | H41: 38 | I41: 35 | J41: 28
B42: 2007 | C42: Semestre I | D42: Seccional Cali | E42: Facultad de Ciencias Económicas y Administrativas | F42: Posgrado | G42: Especialización en Gestión Tributaria | H42: 17 | I42: 17 | J42: 15
B43: 2007 | C43: Semestre I | D43: Seccional Cali | E43: Facultad de Ciencias Económicas y Administrativas | F43: Posgrado | G43: Especialización en Finanzas | H43: 22 | I43: 16 | J43: 14
B44: 2007 | C44: Semestre I | D44: Seccional Cali | E44: Facultad de Ciencias Económicas y Administrativas | F44: Posgrado | G44: Especialización en Mercadeo | H44: 23 | I44: 22 | J44: 19
B45: 2007 | C45: Semestre I | D45: Seccional Cali | E45: Facultad de Ciencias Económicas y Administrativas | F45: Posgrado | G45: Especialización Gerencia Social | H45: 38 | I45: 38 | J45: 32
B46: 2007 | C46: Semestre I | D46: Seccional Cali | E46: Facultad de Ciencias Económicas y Administrativas | F46: Posgrado | G46: Maestría en Economía | H46: 38 | I46: 37 | J46: 24
B47: 2007 | C47: Semestre I | D47: Seccional Cali | E47: Facultad de Humanidades y Ciencias Sociales | F47: Posgrado | G47: Especialización Cultura de Paz Derecho Internacional Humanitario | H47: 2 | I47: 2 | J47: 0
B48: 2007 | C48: Semestre I | D48: Seccional Cali | E48: Facultad de Humanidades y Ciencias Sociales | F48: Posgrado | G48: Especialización en Derecho Comercial | H48: 15 | I48: 15 | J48: 13
B49: 2007 | C49: Semestre I | D49: Seccional Cali | E49: Facultad de Humanidades y Ciencias Sociales | F49: Posgrado | G49: Especialización en Mediación de Conflicto | H49: 2 | I49: 2 | J49: 0
B50: 2007 | C50: Semestre I | D50: Seccional Cali | E50: Facultad de Ingeniería | F50: Posgrado | G50: Especialización en Logística Integral | H50: 16 | I50: 15 | J50: 11
B51: 2007 | C51: Semestre I | D51: Seccional Cali | E51: Facultad de Ingeniería | F51: Posgrado | G51: Especialización Gerencia de Construcción | H51: 21 | I51: 21 | J51: 17
B52: 2007 | C52: Semestre I | D52: Seccional Cali | E52: Facultad de Ingeniería | F52: Posgrado | G52: Especialización Sistemas Gerenciales de Ingeniería | H52: 27 | I52: 27 | J52: 26
B53: 2007 | C53: Semestre I | D53: Seccional Cali | E53: Facultad de Ingeniería | F53: Posgrado | G53: Especialización Sistemas Gerenciales Énfasis Informática | H53: 9 | I53: 9 | J53: 4
B54: 2007 | C54: Semestre II | D54: Seccional Cali | E54: Facultad de Ciencias Económicas y Administrativas | F54: Posgrado | G54: Especialización en Administración de Salud | H54: 42 | I54: 40 | J54: 30
B55: 2007 | C55: Semestre II | D55: Seccional Cali | E55: Facultad de Ciencias Económicas y Administrativas | F55: Posgrado | G55: Especialización en Gestión Tributaria | H55: 15 | I55: 15 | J55: 13
B56: 2007 | C56: Semestre II | D56: Seccional Cali | E56: Facultad de Ciencias Económicas y Administrativas | F56: Posgrado | G56: Especialización en Finanzas | H56: 45 | I56: 36 | J56: 30
B57: 2007 | C57: Semestre II | D57: Seccional Cali | E57: Facultad de Ciencias Económicas y Administrativas | F57: Posgrado | G57: Especialización en Mercadeo | H57: 14 | I57: 14 | J57: 9
B58: 2007 | C58: Semestre II | D58: Seccional Cali | E58: Facultad de Ciencias Económicas y Administrativas | F58: Posgrado | G58: Especialización Gerencia Social | H58: 21 | I58: 20 | J58: 17
B59: 2007 | C59: Semestre II | D59: Seccional Cali | E59: Facultad de Ciencias Económicas y Administrativas | F59: Posgrado | G59: Maestría en Economía | H59: 27 | I59: 27 | J59: 22
B60: 2007 | C60: Semestre II | D60: Seccional Cali | E60: Facultad de Humanidades y Ciencias Sociales | F60: Posgrado | G60: Especialización Cultura de Paz Derecho Internacional Humanitario | H60: 32 | I60: 30 | J60: 28
B61: 2007 | C61: Semestre II | D61: Seccional Cali | E61: Facultad de Humanidades y Ciencias Sociales | F61: Posgrado | G61: Especialización en Derecho Comercial | H61: 22 | I61: 22 | J61: 19
B62: 2007 | C62: Semestre II | D62: Seccional Cali | E62: Facultad de Humanidades y Ciencias Sociales | F62: Posgrado | G62: Especialización en Mediación de Conflicto | H62: 3 | I62: 2 | J62: 0
B63: 2007 | C63: Semestre II | D63: Seccional Cali | E63: Facultad de Humanidades y Ciencias Sociales | F63: Posgrado | G63: Especialización en Familia | H63: 15 | I63: 14 | J63: 12
B64: 2007 | C64: Semestre II | D64: Seccional Cali | E64: Facultad de Ingeniería | F64: Posgrado | G64: Especialización en Logística Integral | H64: 16 | I64: 16 | J64: 14
B65: 2007 | C65: Semestre II | D65: Seccional Cali | E65: Facultad de Ingeniería | F65: Posgrado | G65: Especialización Gerencia de Construcción | H65: 21 | I65: 21 | J65: 19
B66: 2007 | C66: Semestre II | D66: Seccional Cali | E66: Facultad de Ingeniería | F66: Posgrado | G66: Especialización Sistemas Gerenciales de Ingeniería | H66: 28 | I66: 28 | J66: 23
B67: 2007 | C67: Semestre II | D67: Seccional Cali | E67: Facultad de Ingeniería | F67: Posgrado | G67: Especialización Sistemas Gerenciales Énfasis Informática | H67: 8 | I67: 7 | J67: 6
B68: 2007 | C68: Semestre II | D68: Seccional Cali | E68: Facultad de Ingeniería | F68: Posgrado | G68: Maestría en Ingeniería | H68: 32 | I68: 30 | J68: 25
B69: 2008 | C69: Semestre I | D69: Sede Central | E69: Facultad de Arquitectura y Diseño | F69: Pregrado | G69: Cantidad por Facultad | H69: 677 | J69: 245
B70: 2008 | C70: Semestre I | D70: Sede Central | E70: Facultad de Artes | F70: Pregrado | G70: Cantidad por Facultad | H70: 341 | J70: 127
B71: 2008 | C71: Semestre I | D71: Sede Central | E71: Facultad de Ciencias | F71: Pregrado | G71: Cantidad por Facultad | H71: 336 | J71: 237
B72: 2008 | C72: Semestre I | D72: Sede Central | E72: Facultad de Ciencias Económicas y Administrativas | F72: Pregrado | G72: Cantidad por Facultad | H72: 912 | J72: 404
B73: 2008 | C73: Semestre I | D73: Sede Central | E73: Facultad de Ciencias Jurídicas | F73: Pregrado | G73: Carrera de Derecho | H73: 348 | J73: 101
B74: 2008 | C74: Semestre I | D74: Sede Central | E74: Facultad de Ciencias Políticas y Relaciones Internacionales | F74: Pregrado | G74: Cantidad por Facultad | H74: 140 | J74: 71
B75: 2008 | C75: Semestre I | D75: Sede Central | E75: Facultad de Ciencias Sociales | F75: Pregrado | G75: Cantidad por Facultad | H75: 140 | J75: 90
B76: 2008 | C76: Semestre I | D76: Sede Central | E76: Facultad de Comunicación y Lenguaje | F76: Pregrado | G76: Cantidad por Facultad | H76: 508 | J76: 216
B77: 2008 | C77: Semestre I | D77: Sede Central | E77: Facultad de Educación | F77: Pregrado | G77: Licenciatura en Pedagogía Infantil | H77: 38 | J77: 27
B78: 2008 | C78: Semestre I | D78: Sede Central | E78: Facultad de Enfermería | F78: Pregrado | G78: Carrera de Enfermería | H78: 120 | J78: 84
B79: 2008 | C79: Semestre I | D79: Sede Central | E79: Facultad de Estudios Ambientales y Rurales | F79: Pregrado | G79: Carrera de Ecología | H79: 55 | J79: 41
B80: 2008 | C80: Semestre I | D80: Sede Central | E80: Facultad de Filosofía | F80: Pregrado | G80: Cantidad por Facultad | H80: 49 | J80: 35
B81: 2008 | C81: Semestre I | D81: Sede Central | E81: Facultad de Ingeniería | F81: Pregrado | G81: Cantidad por Facultad | H81: 980 | J81: 384
B82: 2008 | C82: Semestre I | D82: Sede Central | E82: Facultad de Medicina | F82: Pregrado | G82: Carrera de Medicina | H82: 581 | J82: 79
B83: 2008 | C83: Semestre I | D83: Sede Central | E83: Facultad de Odontología | F83: Pregrado | G83: Carrera de Odontología | H83: 143 | J83: 77
B84: 2008 | C84: Semestre I | D84: Sede Central | E84: Facultad de Psicología | F84: Pregrado | G84: Carrera de Psicología | H84: 230 | J84: 83
B85: 2008 | C85: Semestre I | D85: Sede Central | E85: Facultad de Teología | F85: Pregrado | G85: Cantidad por Facultad | H85: 161 | J85: 130
B86: 2008 | C86: Semestre II | D86: Sede Central | E86: Facultad de Arquitectura y Diseño | F86: Pregrado | G86: Cantidad por Facultad | H86: 375 | J86: 163
B87: 2008 | C87: Semestre II | D87: Sede Central | E87: Facultad de Artes | F87: Pregrado | G87: Cantidad por Facultad | H87: 216 | J87: 98
B88: 2008 | C88: Semestre II | D88: Sede Central | E88: Facultad de Ciencias | F88: Pregrado | G88: Cantidad por Facultad | H88: 158 | J88: 101
B89: 2008 | C89: Semestre II | D89: Sede Central | E89: Facultad de Ciencias Económicas y Administrativas | F89: Pregrado | G89: Cantidad por Facultad | H89: 587 | J89: 322
B90: 2008 | C90: Semestre II | D90: Sede Central | E90: Facultad de Ciencias Jurídicas | F90: Pregrado | G90: Carrera de Derecho | H90: 243 | J90: 75
B91: 2008 | C91: Semestre II | D91: Sede Central | E91: Facultad de Ciencias Políticas y Relaciones Internacionales | F91: Pregrado | G91: Cantidad por Facultad | H91: 94 | J91: 46
B92: 2008 | C92: Semestre II | D92: Sede Central | E92: Facultad de Ciencias Sociales | F92: Pregrado | G92: Cantidad por Facultad | H92: 107 | J92: 54
B93: 2008 | C93: Semestre II | D93: Sede Central | E93: Facultad de Comunicación y Lenguaje | F93: Pregrado | G93: Cantidad por Facultad | H93: 313 | J93: 163
B94: 2008 | C94: Semestre II | D94: Sede Central | E94: Facultad de Educación | F94: Pregrado | G94: Licenciatura en Pedagogía Infantil | H94: 83 | J94: 58
B95: 2008 | C95: Semestre II | D95: Sede Central | E95: Facultad de Enfermería | F95: Pregrado | G95: Carrera de Enfermería | H95: 111 | J95: 70
B96: 2008 | C96: Semestre II | D96: Sede Central | E96: Facultad de Estudios Ambientales y Rurales | F96: Pregrado | G96: Carrera de Ecología | H96: 26 | J96: 20
B97: 2008 | C97: Semestre II | D97: Sede Central | E97: Facultad de Filosofía | F97: Pregrado | G97: Cantidad por Facultad | H97: 24 | J97: 17
B98: 2008 | C98: Semestre II | D98: Sede Central | E98: Facultad de Ingeniería | F98: Pregrado | G98: Cantidad por Facultad | H98: 530 | J98: 240
B99: 2008 | C99: Semestre II | D99: Sede Central | E99: Facultad de Medicina | F99: Pregrado | G99: Carrera de Medicina | H99: 273 | J99: 64
B100: 2008 | C100: Semestre II | D100: Sede Central | E100: Facultad de Odontología | F100: Pregrado | G100: Carrera de Odontología | H100: 101 | J100: 68
B101: 2008 | C101: Semestre II | D101: Sede Central | E101: Facultad de Psicología | F101: Pregrado | G101: Carrera de Psicología | H101: 128 | J101: 53
B102: 2008 | C102: Semestre II | D102: Sede Central | E102: Facultad de Teología | F102: Pregrado | G102: Cantidad por Facultad | H102: 80 | J102: 73
B103: 2008 | C103: Semestre I | D103: Seccional Cali | E103: Facultad de Ciencias Económicas y Administrativas | F103: Pregrado | G103: Carrera de Administración de Empresas | H103: 235 | I103: 210 | J103: 164
B104: 2008 | C104: Semestre I | D104: Seccional Cali | E104: Facultad de Ciencias Económicas y Administrativas | F104: Pregrado | G104: Carrera de Contaduría Pública | H104: 66 | I104: 63 | J104: 43
B105: 2008 | C105: Semestre I | D105: Seccional Cali | E105: Facultad de Ciencias Económicas y Administrativas | F105: Pregrado | G105: Carrera de Economía | H105: 44 | I105: 43 | J105: 37
B106: 2008 | C106: Semestre I | D106: Seccional Cali | E106: Facultad de Ciencias Económicas y Administrativas | F106: Posgrado | G106: Especialización en Administración de Salud | H106: 41 | I106: 39 | J106: 34
B107: 2008 | C107: Semestre I | D107: Seccional Cali | E107: Facultad de Ciencias Económicas y Administrativas | F107: Posgrado | G107: Especialización en Gestión Tributaria | H107: 15 | I107: 15 | J107: 10
B108: 2008 | C108: Semestre I | D108: Seccional Cali | E108: Facultad de Ciencias Económicas y Administrativas | F108: Posgrado | G108: Especialización en Finanzas | H108: 36 | I108: 25 | J108: 18
B109: 2008 | C109: Semestre I | D109: Seccional Cali | E109: Facultad de Ciencias Económicas y Administrativas | F109: Posgrado | G109: Especialización en Mercadeo | H109: 20 | I109: 20 | J109: 18
B110: 2008 | C110: Semestre I | D110: Seccional Cali | E110: Facultad de Ciencias Económicas y Administrativas | F110: Posgrado | G110: Especialización Gerencia Social | H110: 35 | I110: 35 | J110: 33
B111: 2008 | C111: Semestre I | D111: Seccional Cali | E111: Facultad de Ciencias Económicas y Administrativas | F111: Posgrado | G111: Maestría en Administración de Empresas | H111: 73 | I111: 66 | J111: 59
B112: 2008 | C112: Semestre I | D112: Seccional Cali | E112: Facultad de Ciencias Económicas y Administrativas | F112: Posgrado | G112: Maestría en Economía | H112: 25 | I112: 23 | J112: 16
B113: 2008 | C113: Semestre I | D113: Seccional Cali | E113: Facultad de Humanidades y Ciencias Sociales | F113: Pregrado | G113: Carrera de Ciencia Política | H113: 20 | I113: 20 | J113: 14
B114: 2008 | C114: Semestre I | D114: Seccional Cali | E114: Facultad de Humanidades y Ciencias Sociales | F114: Pregrado | G114: Carrera de Comunicación | H114: 47 | I114: 45 | J114: 37
B115: 2008 | C115: Semestre I | D115: Seccional Cali | E115: Facultad de Humanidades y Ciencias Sociales | F115: Pregrado | G115: Carrera de Derecho | H115: 83 | I115: 66 | J115: 42
B116: 2008 | C116: Semestre I | D116: Seccional Cali | E116: Facultad de Humanidades y Ciencias Sociales | F116: Pregrado | G116: Carrera de Psicología | H116: 63 | I116: 53 | J116: 49
B117: 2008 | C117: Semestre I | D117: Seccional Cali | E117: Facultad de Humanidades y Ciencias Sociales | F117: Posgrado | G117: Especialización Cultura de Paz Derecho Internacional Humanitario | H117: 29 | I117: 29 | J117: 27
B118: 2008 | C118: Semestre I | D118: Seccional Cali | E118: Facultad de Humanidades y Ciencias Sociales | F118: Posgrado | G118: Especialización en Derecho Comercial | H118: 18 | I118: 15 | J118: 13
B119: 2008 | C119: Semestre I | D119: Seccional Cali | E119: Facultad de Humanidades y Ciencias Sociales | F119: Posgrado | G119: Especialización en Mediación de Conflicto | H119: 1 | I119: 0 | J119: 0
B120: 2008 | C120: Semestre I | D120: Seccional Cali | E120: Facultad de Humanidades y Ciencias Sociales | F120: Posgrado | G120: Especialización en Familia | H120: 5 | I120: 3 | J120: 1
B121: 2008 | C121: Semestre I | D121: Seccional Cali | E121: Facultad de Ingeniería | F121: Pregrado | G121: Carrera de Ingeniería Civil | H121: 39 | I121: 35 | J121: 22
B122: 2008 | C122: Semestre I | D122: Seccional Cali | E122: Facultad de Ingeniería | F122: Pregrado | G122: Carrera de Ingeniería de Sistemas | H122: 22 | I122: 22 | J122: 19
B123: 2008 | C123: Semestre I | D123: Seccional Cali | E123: Facultad de Ingeniería | F123: Pregrado | G123: Carrera de Ingeniería Electrónica | H123: 24 | I123: 23 | J123: 18
B124: 2008 | C124: Semestre I | D124: Seccional Cali | E124: Facultad de Ingeniería | F124: Pregrado | G124: Carrera de Ingeniería Industrial | H124: 96 | I124: 87 | J124: 70
B125: 2008 | C125: Semestre I | D125: Seccional Cali | E125: Facultad de Ingeniería | F125: Posgrado | G125: Especialización en Logística Integral | H125: 18 | I125: 18 | J125: 11
B126: 2008 | C126: Semestre I | D126: Seccional Cali | E126: Facultad de Ingeniería | F126: Posgrado | G126: Especialización Gerencia de Construcción | H126: 21 | I126: 21 | J126: 19
B127: 2008 | C127: Semestre I | D127: Seccional Cali | E127: Facultad de Ingeniería | F127: Posgrado | G127: Especialización Sistemas Gerenciales de Ingeniería | H127: 24 | I127: 23 | J127: 17
B128: 2008 | C128: Semestre I | D128: Seccional Cali | E128: Facultad de Ingeniería | F128: Posgrado | G128: Especialización Sistemas Gerenciales Énfasis Informática | H128: 10 | I128: 10 | J128: 9
B129: 2008 | C129: Semestre I | D129: Seccional Cali | E129: Facultad de Ingeniería | F129: Posgrado | G129: Maestría en Ingeniería | H129: 21 | I129: 20 | J129: 18
B130: 2008 | C130: Semestre II | D130: Seccional Cali | E130: Facultad de Ciencias Económicas y Administrativas | F130: Pregrado | G130: Carrera de Administración de Empresas | H130: 310 | I130: 280 | J130: 223
B131: 2008 | C131: Semestre II | D131: Seccional Cali | E131: Facultad de Ciencias Económicas y Administrativas | F131: Pregrado | G131: Carrera de Contaduría Pública | H131: 73 | I131: 69 | J131: 57
B132: 2008 | C132: Semestre II | D132: Seccional Cali | E132: Facultad de Ciencias Económicas y Administrativas | F132: Pregrado | G132: Carrera de Economía | H132: 69 | I132: 66 | J132: 50
B133: 2008 | C133: Semestre II | D133: Seccional Cali | E133: Facultad de Ciencias Económicas y Administrativas | F133: Posgrado | G133: Especialización en Administración de Salud | H133: 33 | I133: 32 | J133: 29
B134: 2008 | C134: Semestre II | D134: Seccional Cali | E134: Facultad de Ciencias Económicas y Administrativas | F134: Posgrado | G134: Especialización en Gestión Tributaria | H134: 15 | I134: 15 | J134: 13
B135: 2008 | C135: Semestre II | D135: Seccional Cali | E135: Facultad de Ciencias Económicas y Administrativas | F135: Posgrado | G135: Especialización en Finanzas | H135: 42 | I135: 26 | J135: 17
B136: 2008 | C136: Semestre II | D136: Seccional Cali | E136: Facultad de Ciencias Económicas y Administrativas | F136: Posgrado | G136: Especialización en Mercadeo | H136: 9 | I136: 9 | J136: 7
B137: 2008 | C137: Semestre II | D137: Seccional Cali | E137: Facultad de Ciencias Económicas y Administrativas | F137: Posgrado | G137: Especialización Gerencia Social | H137: 21 | I137: 21 | J137: 19
B138: 2008 | C138: Semestre II | D138: Seccional Cali | E138: Facultad de Ciencias Económicas y Administrativas | F138: Posgrado | G138: Maestría en Administración de Empresas | H138: 43 | I138: 35 | J138: 27
B139: 2008 | C139: Semestre II | D139: Seccional Cali | E139: Facultad de Ciencias Económicas y Administrativas | F139: Posgrado | G139: Maestría en Economía | H139: 35 | I139: 35 | J139: 29
B140: 2008 | C140: Semestre II | D140: Seccional Cali | E140: Facultad de Humanidades y Ciencias Sociales | F140: Pregrado | G140: Carrera de Artes Visuales | H140: 39 | I140: 36 | J140: 32
B141: 2008 | C141: Semestre II | D141: Seccional Cali | E141: Facultad de Humanidades y Ciencias Sociales | F141: Pregrado | G141: Carrera de Ciencia Política | H141: 29 | I141: 27 | J141: 23
B142: 2008 | C142: Semestre II | D142: Seccional Cali | E142: Facultad de Humanidades y Ciencias Sociales | F142: Pregrado | G142: Carrera de Comunicación | H142: 87 | I142: 87 | J142: 75
B143: 2008 | C143: Semestre II | D143: Seccional Cali | E143: Facultad de Humanidades y Ciencias Sociales | F143: Pregrado | G143: Carrera de Derecho | H143: 108 | I143: 88 | J143: 68
B144: 2008 | C144: Semestre II | D144: Seccional Cali | E144: Facultad de Humanidades y Ciencias Sociales | F144: Pregrado | G144: Carrera de Diseño de Comunicación Visual | H144: 76 | I144: 64 | J144: 58
B145: 2008 | C145: Semestre II | D145: Seccional Cali | E145: Facultad de Humanidades y Ciencias Sociales | F145: Pregrado | G145: Carrera de Psicología | H145: 89 | I145: 75 | J145: 62
B146: 2008 | C146: Semestre II | D146: Seccional Cali | E146: Facultad de Humanidades y Ciencias Sociales | F146: Posgrado | G146: Especialización Cultura de Paz Derecho Internacional Humanitario | H146: 18 | I146: 18 | J146: 16
B147: 2008 | C147: Semestre II | D147: Seccional Cali | E147: Facultad de Humanidades y Ciencias Sociales | F147: Posgrado | G147: Especialización en Derecho Comercial | H147: 13 | I147: 13 | J147: 12
B148: 2008 | C148: Semestre II | D148: Seccional Cali | E148: Facultad de Humanidades y Ciencias Sociales | F148: Posgrado | G148: Especialización en Mediación de Conflicto | H148: 2 | I148: 0 | J148: 0
B149: 2008 | C149: Semestre II | D149: Seccional Cali | E149: Facultad de Humanidades y Ciencias Sociales | F149: Posgrado | G149: Especialización en Familia | H149: 21 | I149: 20 | J149: 17
B150: 2008 | C150: Semestre II | D150: Seccional Cali | E150: Facultad de Ingeniería | F150: Pregrado | G150: Carrera de Ingeniería Civil | H150: 86 | I150: 83 | J150: 59
B151: 2008 | C151: Semestre II | D151: Seccional Cali | E151: Facultad de Ingeniería | F151: Pregrado | G151: Carrera de Ingeniería de Sistemas | H151: 40 | I151: 36 | J151: 28
B152: 2008 | C152: Semestre II | D152: Seccional Cali | E152: Facultad de Ingeniería | F152: Pregrado | G152: Carrera de Ingeniería Electrónica | H152: 49 | I152: 46 | J152: 33
B153: 2008 | C153: Semestre II | D153: Seccional Cali | E153: Facultad de Ingeniería | F153: Pregrado | G153: Carrera de Ingeniería Industrial | H153: 166 | I153: 155 | J153: 123
B154: 2008 | C154: Semestre II | D154: Seccional Cali | E154: Facultad de Ingeniería | F154: Pregrado | G154: Carrera de Matemáticas Aplicadas | H154: 7 | I154: 6 | J154: 6
B155: 2008 | C155: Semestre II | D155: Seccional Cali | E155: Facultad de Ingeniería | F155: Posgrado | G155: Especialización en Logística Integral | H155: 18 | I155: 17 | J155: 17
B156: 2008 | C156: Semestre II | D156: Seccional Cali | E156: Facultad de Ingeniería | F156: Posgrado | G156: Especialización Gerencia de Construcción | H156: 22 | I156: 20 | J156: 17
B157: 2008 | C157: Semestre II | D157: Seccional Cali | E157: Facultad de Ingeniería | F157: Posgrado | G157: Especialización Sistemas Gerenciales de Ingeniería | H157: 29 | I157: 25 | J157: 22
B158: 2008 | C158: Semestre II | D158: Seccional Cali | E158: Facultad de Ingeniería | F158: Posgrado | G158: Especialización Sistemas Gerenciales Énfasis Informática | H158: 5 | I158: 5 | J158: 5
B159: 2008 | C159: Semestre II | D159: Seccional Cali | E159: Facultad de Ingeniería | F159: Posgrado | G159: Especialización en Modelación y Simulación | H159: 1 | I159: 1 | J159: 0
B160: 2008 | C160: Semestre II | D160: Seccional Cali | E160: Facultad de Ingeniería | F160: Posgrado | G160: Maestría en Ingeniería | H160: 21 | I160: 19 | J160: 18
B161: 2009 | C161: Semestre I | D161: Sede Central | E161: Facultad de Arquitectura y Diseño | F161: Pregrado | G161: Cantidad por Facultad | H161: 518 | J161: 161
B162: 2009 | C162: Semestre I | D162: Sede Central | E162: Facultad de Artes | F162: Pregrado | G162: Cantidad por Facultad | H162: 247 | J162: 90
B163: 2009 | C163: Semestre I | D163: Sede Central | E163: Facultad de Ciencias | F163: Pregrado | G163: Cantidad por Facultad | H163: 227 | J163: 151
B164: 2009 | C164: Semestre I | D164: Sede Central | E164: Facultad de Ciencias Económicas y Administrativas | F164: Pregrado | G164: Cantidad por Facultad | H164: 739 | J164: 399
B165: 2009 | C165: Semestre I | D165: Sede Central | E165: Facultad de Ciencias Jurídicas | F165: Pregrado | G165: Carrera de Derecho | H165: 274 | J165: 86
B166: 2009 | C166: Semestre I | D166: Sede Central | E166: Facultad de Ciencias Políticas y Relaciones Internacionales | F166: Pregrado | G166: Cantidad por Facultad | H166: 124 | J166: 61
B167: 2009 | C167: Semestre I | D167: Sede Central | E167: Facultad de Ciencias Sociales | F167: Pregrado | G167: Cantidad por Facultad | H167: 110 | J167: 75
B168: 2009 | C168: Semestre I | D168: Sede Central | E168: Facultad de Comunicación y Lenguaje | F168: Pregrado | G168: Cantidad por Facultad | H168: 352 | J168: 186
B169: 2009 | C169: Semestre I | D169: Sede Central | E169: Facultad de Educación | F169: Pregrado | G169: Licenciatura en Pedagogía Infantil | H169: 69 | J169: 50
B170: 2009 | C170: Semestre I | D170: Sede Central | E170: Facultad de Enfermería | F170: Pregrado | G170: Carrera de Enfermería | H170: 101 | J170: 69
B171: 2009 | C171: Semestre I | D171: Sede Central | E171: Facultad de Estudios Ambientales y Rurales | F171: Pregrado | G171: Carrera de Ecología | H171: 59 | J171: 43
B172: 2009 | C172: Semestre I | D172: Sede Central | E172: Facultad de Filosofía | F172: Pregrado | G172: Cantidad por Facultad | H172: 33 | J172: 24
B173: 2009 | C173: Semestre I | D173: Sede Central | E173: Facultad de Ingeniería | F173: Pregrado | G173: Cantidad por Facultad | H173: 812 | J173: 292
B174: 2009 | C174: Semestre I | D174: Sede Central | E174: Facultad de Medicina | F174: Pregrado | G174: Carrera de Medicina | H174: 397 | J174: 57
B175: 2009 | C175: Semestre I | D175: Sede Central | E175: Facultad de Odontología | F175: Pregrado | G175: Carrera de Odontología | H175: 101 | J175: 68
B176: 2009 | C176: Semestre I | D176: Sede Central | E176: Facultad de Psicología | F176: Pregrado | G176: Carrera de Psicología | H176: 140 | J176: 58
B177: 2009 | C177: Semestre I | D177: Sede Central | E177: Facultad de Teología | F177: Pregrado | G177: Cantidad por Facultad | H177: 186 | J177: 166
B178: 2009 | C178: Semestre II | D178: Sede Central | E178: Facultad de Arquitectura y Diseño | F178: Pregrado | G178: Cantidad por Facultad | H178: 594 | J178: 260
B179: 2009 | C179: Semestre II | D179: Sede Central | E179: Facultad de Artes | F179: Pregrado | G179: Cantidad por Facultad | H179: 291 | J179: 122
B180: 2009 | C180: Semestre II | D180: Sede Central | E180: Facultad de Ciencias | F180: Pregrado | G180: Cantidad por Facultad | H180: 204 | J180: 150
B181: 2009 | C181: Semestre II | D181: Sede Central | E181: Facultad de Ciencias Económicas y Administrativas | F181: Pregrado | G181: Cantidad por Facultad | H181: 798 | J181: 412
B182: 2009 | C182: Semestre II | D182: Sede Central | E182: Facultad de Ciencias Jurídicas | F182: Pregrado | G182: Carrera de Derecho | H182: 314 | J182: 100
B183: 2009 | C183: Semestre II | D183: Sede Central | E183: Facultad de Ciencias Políticas y Relaciones Internacionales | F183: Pregrado | G183: Cantidad por Facultad | H183: 146 | J183: 67
B184: 2009 | C184: Semestre II | D184: Sede Central | E184: Facultad de Ciencias Sociales | F184: Pregrado | G184: Cantidad por Facultad | H184: 109 | J184: 75
B185: 2009 | C185: Semestre II | D185: Sede Central | E185: Facultad de Comunicación y Lenguaje | F185: Pregrado | G185: Cantidad por Facultad | H185: 446 | J185: 215
B186: 2009 | C186: Semestre II | D186: Sede Central | E186: Facultad de Educación | F186: Pregrado | G186: Licenciatura en Pedagogía Infantil | H186: 101 | J186: 69
B187: 2009 | C187: Semestre II | D187: Sede Central | E187: Facultad de Enfermería | F187: Pregrado | G187: Carrera de Enfermería | H187: 76 | J187: 45
B188: 2009 | C188: Semestre II | D188: Sede Central | E188: Facultad de Estudios Ambientales y Rurales | F188: Pregrado | G188: Carrera de Ecología | H188: 48 | J188: 28
B189: 2009 | C189: Semestre II | D189: Sede Central | E189: Facultad de Filosofía | F189: Pregrado | G189: Cantidad por Facultad | H189: 34 | J189: 25
B190: 2009 | C190: Semestre II | D190: Sede Central | E190: Facultad de Ingeniería | F190: Pregrado | G190: Cantidad por Facultad | H190: 684 | J190: 305
B191: 2009 | C191: Semestre II | D191: Sede Central | E191: Facultad de Medicina | F191: Pregrado | G191: Carrera de Medicina | H191: 389 | J191: 77
B192: 2009 | C192: Semestre II | D192: Sede Central | E192: Facultad de Odontología | F192: Pregrado | G192: Carrera de Odontología | H192: 111 | J192: 67
B193: 2009 | C193: Semestre II | D193: Sede Central | E193: Facultad de Psicología | F193: Pregrado | G193: Carrera de Psicología | H193: 190 | J193: 110
B194: 2009 | C194: Semestre II | D194: Sede Central | E194: Facultad de Teología | F194: Pregrado | G194: Cantidad por Facultad | H194: 78 | J194: 75
B195: 2009 | C195: Semestre I | D195: Seccional Cali | E195: Facultad de Ciencias Económicas y Administrativas | F195: Pregrado | G195: Carrera de Administración de Empresas | H195: 203 | I195: 186 | J195: 153
B196: 2009 | C196: Semestre I | D196: Seccional Cali | E196: Facultad de Ciencias Económicas y Administrativas | F196: Pregrado | G196: Carrera de Contaduría Pública | H196: 50 | I196: 56 | J196: 46
B197: 2009 | C197: Semestre I | D197: Seccional Cali | E197: Facultad de Ciencias Económicas y Administrativas | F197: Pregrado | G197: Carrera de Economía | H197: 63 | I197: 43 | J197: 38
B198: 2009 | C198: Semestre I | D198: Seccional Cali | E198: Facultad de Ciencias Económicas y Administrativas | F198: Posgrado | G198: Especialización en Administración de Salud | H198: 31 | I198: 29 | J198: 22
B199: 2009 | C199: Semestre I | D199: Seccional Cali | E199: Facultad de Ciencias Económicas y Administrativas | F199: Posgrado | G199: Especialización en Gestión Tributaria | H199: 17 | I199: 17 | J199: 17
B200: 2009 | C200: Semestre I | D200: Seccional Cali | E200: Facultad de Ciencias Económicas y Administrativas | F200: Posgrado | G200: Especialización en Finanzas | H200: 40 | I200: 25 | J200: 19
B201: 2009 | C201: Semestre I | D201: Seccional Cali | E201: Facultad de Ciencias Económicas y Administrativas | F201: Posgrado | G201: Especialización en Mercadeo | H201: 17 | I201: 15 | J201: 14
B202: 2009 | C202: Semestre I | D202: Seccional Cali | E202: Facultad de Ciencias Económicas y Administrativas | F202: Posgrado | G202: Especialización Gerencia Social | H202: 29 | I202: 29 | J202: 24
... 1749 more rows

Sheet TABLA B-2
B2: =+CONCATENATE("<< Tabla B-",RIGHT(B4,1)-1) -> << Tabla B-1 | D2: =+CONCATENATE("Tabla B-",RIGHT(B4,1)+1," >>") -> Tabla B-3 >>
B4: =+(MID(ÍNDICE!C21,1,9)) -> Tabla B-2
A5: Estudiantes | B5: Tasas de selección y absorción en programas académicos por facultad. Sede Central y Seccional Cali.
B6: Fuente: Sistema de Administración de Estudiantes SIU-SAE. Procesamiento de la Secretaría de Planeación, Rectoría, Sede Central. Oficina de Registro Académico, Vicerrectoría Académica, Seccional Cali.
B7: Nota: -> A para el año 2014 en adelante se incluyen los programas de posgrado para la Sede Central.
C8: Año / Período
C9: 2016 | G9: 2015
C10: Semestre I | E10: Semestre II | G10: Semestre I | I10: Semestre II
B11: Sede | C11: Tasa de Selección | D11: Tasa de Absorción | E11: Tasa de Selección | F11: Tasa de Absorción | G11: Tasa de Selección | H11: Tasa de Absorción | I11: Tasa de Selección | J11: Tasa de Absorción
B12: Sede Central | C12: 98.90620991 | D12: 118.1008764 | E12: 95.59509816 | F12: 102.1598329 | G12: 102.4828595 | H12: 117.1653171 | I12: 96.80811198 | J12: 109.5197446
B13: Seccional Cali | C13: 13.88918671 | D13: 13.93713995 | E13: 15.56154571 | F13: 16.84443745 | G13: 15.19239396 | H13: 15.74583726 | I13: 14.41179009 | J13: 15.70850987

Sheet F-TABLA B-2 (hidden)
B1: Tabla B-2. Tasas de selección y absorción en programas académicos por facultad. Sede Central y Seccional Cali.
B3: Fuente: Sistema de Administración de Estudiantes SIU-SAE. Procesamiento de la Secretaría de Planeación, Rectoría, Sede Central. Oficina de Registro Académico, Vicerrectoría Académica, Seccional Cali.
B4: Nota: A para el año 2014 en adelante se incluyen los programas de posgrado para la Sede Central.
B6: AÑO | C6: PERÍODO | D6: SEDE | E6: FACULTAD | F6: NIVEL | G6: PROGRAMA | H6: TASA DE SELECCIÓN | I6: TASA DE ABSORCIÓN
B7: 2011 | C7: Semestre I | D7: Sede Central | E7: Facultad de Arquitectura y Diseño | F7: Pregrado | G7: Carrera de Arquitectura | H7: 0.3257261411 | I7: 0.7388535032
B8: 2011 | C8: Semestre I | D8: Sede Central | E8: Facultad de Arquitectura y Diseño | F8: Pregrado | G8: Carrera de Diseño Industrial | H8: 0.5399361022 | I8: 0.6923076923
B9: 2011 | C9: Semestre I | D9: Sede Central | E9: Facultad de Artes | F9: Pregrado | G9: Carrera de Artes Visuales | H9: 0.5688622754 | I9: 0.8210526316
B10: 2011 | C10: Semestre I | D10: Sede Central | E10: Facultad de Artes | F10: Pregrado | G10: Carrera de Estudios Musicales | H10: 0.3653846154 | I10: 0.8421052632
B11: 2011 | C11: Semestre I | D11: Sede Central | E11: Facultad de Ciencias | F11: Pregrado | G11: Carrera de Bacteriología | H11: 0.825 | I11: 0.8181818182
B12: 2011 | C12: Semestre I | D12: Sede Central | E12: Facultad de Ciencias | F12: Pregrado | G12: Carrera de Biología | H12: 0.8679245283 | I12: 0.7826086957
B13: 2011 | C13: Semestre I | D13: Sede Central | E13: Facultad de Ciencias | F13: Pregrado | G13: Carrera de Matemáticas | H13: 0.8823529412 | I13: 0.7333333333
B14: 2011 | C14: Semestre I | D14: Sede Central | E14: Facultad de Ciencias | F14: Pregrado | G14: Carrera de Microbiología Industrial | H14: 0.9710144928 | I14: 0.7313432836
B15: 2011 | C15: Semestre I | D15: Sede Central | E15: Facultad de Ciencias | F15: Pregrado | G15: Carrera de Nutrición y Dietética | H15: 0.9142857143 | I15: 0.796875
B16: 2011 | C16: Semestre I | D16: Sede Central | E16: Facultad de Ciencias Económicas y Administrativas | F16: Pregrado | G16: Carrera de Administración de Empresas | H16: 0.7228915663 | I16: 0.6638888889
B17: 2011 | C17: Semestre I | D17: Sede Central | E17: Facultad de Ciencias Económicas y Administrativas | F17: Pregrado | G17: Carrera de Contaduría Pública | H17: 0.9 | I17: 0.8641975309
B18: 2011 | C18: Semestre I | D18: Sede Central | E18: Facultad de Ciencias Económicas y Administrativas | F18: Pregrado | G18: Carrera de Economía | H18: 0.8130841121 | I18: 0.4597701149
B19: 2011 | C19: Semestre I | D19: Sede Central | E19: Facultad de Ciencias Jurídicas | F19: Pregrado | G19: Carrera de Derecho | H19: 0.5336658354 | I19: 0.6121495327
B20: 2011 | C20: Semestre I | D20: Sede Central | E20: Facultad de Ciencias Políticas y Relaciones Internacionales | F20: Pregrado | G20: Carrera de Ciencia Política | H20: 0.8021390374 | I20: 0.68
B21: 2011 | C21: Semestre I | D21: Sede Central | E21: Facultad de Ciencias Sociales | F21: Pregrado | G21: Carrera de Antropología | H21: 0.756097561 | I21: 0.7419354839
B22: 2011 | C22: Semestre I | D22: Sede Central | E22: Facultad de Ciencias Sociales | F22: Pregrado | G22: Carrera de Estudios Literarios | H22: 0.8 | I22: 0.775
B23: 2011 | C23: Semestre I | D23: Sede Central | E23: Facultad de Ciencias Sociales | F23: Pregrado | G23: Carrera de Historia | H23: 0.84 | I23: 0.7619047619
B24: 2011 | C24: Semestre I | D24: Sede Central | E24: Facultad de Ciencias Sociales | F24: Pregrado | G24: Carrera de Sociología | H24: 0.7 | I24: 0.5238095238
B25: 2011 | C25: Semestre I | D25: Sede Central | E25: Facultad de Comunicación y Lenguaje | F25: Pregrado | G25: Carrera de Ciencia de la Información - Bibliotecología | H25: 0.8793103448 | I25: 0.6078431373
B26: 2011 | C26: Semestre I | D26: Sede Central | E26: Facultad de Comunicación y Lenguaje | F26: Pregrado | G26: Carrera de Comunicación Social | H26: 0.5903614458 | I26: 0.7428571429
B27: 2011 | C27: Semestre I | D27: Sede Central | E27: Facultad de Comunicación y Lenguaje | F27: Pregrado | G27: Licenciatura en Lenguas Modernas | H27: 0.8071428571 | I27: 0.7345132743
B28: 2011 | C28: Semestre I | D28: Sede Central | E28: Facultad de Educación | F28: Pregrado | G28: Licenciatura en Educación Básica con énfasis en Humanidades y Lengua Castellana | H28: 0.935483871 | I28: 0.7413793103
B29: 2011 | C29: Semestre I | D29: Sede Central | E29: Facultad de Educación | F29: Pregrado | G29: Licenciatura en Pedagogía Infantil | H29: 0.85 | I29: 0.7843137255
B30: 2011 | C30: Semestre I | D30: Sede Central | E30: Facultad de Enfermería | F30: Pregrado | G30: Carrera de Enfermería | H30: 0.9444444444 | I30: 0.7176470588
B31: 2011 | C31: Semestre I | D31: Sede Central | E31: Facultad de Estudios Ambientales y Rurales | F31: Pregrado | G31: Carrera de Ecología | H31: 0.7586206897 | I31: 0.7272727273
B32: 2011 | C32: Semestre I | D32: Sede Central | E32: Facultad de Filosofía | F32: Pregrado | G32: Carrera de Filosofía | H32: 0.8571428571 | I32: 0.8
B33: 2011 | C33: Semestre I | D33: Sede Central | E33: Facultad de Filosofía | F33: Pregrado | G33: Licenciatura en Filosofía | H33: 0.8947368421 | I33: 1
B34: 2011 | C34: Semestre I | D34: Sede Central | E34: Facultad de Ingeniería | F34: Pregrado | G34: Carrera de Ingeniería Civil | H34: 0.7735042735 | I34: 0.5690607735
B35: 2011 | C35: Semestre I | D35: Sede Central | E35: Facultad de Ingeniería | F35: Pregrado | G35: Carrera de Ingeniería de Sistemas | H35: 0.9782608696 | I35: 0.7222222222
B36: 2011 | C36: Semestre I | D36: Sede Central | E36: Facultad de Ingeniería | F36: Pregrado | G36: Carrera de Ingeniería Electrónica | H36: 0.9137931034 | I36: 0.6037735849
B37: 2011 | C37: Semestre I | D37: Sede Central | E37: Facultad de Ingeniería | F37: Pregrado | G37: Carrera de Ingeniería Industrial | H37: 0.5759493671 | I37: 0.5567765568
B38: 2011 | C38: Semestre I | D38: Sede Central | E38: Facultad de Medicina | F38: Pregrado | G38: Carrera de Medicina | H38: 0.2144808743 | I38: 0.5732484076
B39: 2011 | C39: Semestre I | D39: Sede Central | E39: Facultad de Odontología | F39: Pregrado | G39: Carrera de Odontología | H39: 0.5874125874 | I39: 0.7738095238
B40: 2011 | C40: Semestre I | D40: Sede Central | E40: Facultad de Psicología | F40: Pregrado | G40: Carrera de Psicología | H40: 0.5537190083 | I40: 0.7313432836
B41: 2011 | C41: Semestre I | D41: Sede Central | E41: Facultad de Teología | F41: Pregrado | G41: Carrera de Teología | H41: 0.8518518519 | I41: 1
B42: 2011 | C42: Semestre I | D42: Sede Central | E42: Facultad de Teología | F42: Pregrado | G42: Licenciatura en Ciencias Religiosas | H42: 0.9479166667 | I42: 0.8021978022
B43: 2011 | C43: Semestre I | D43: Sede Central | E43: Facultad de Teología | F43: Pregrado | G43: Licenciatura en Teología | H43: 0.9 | I43: 0.8888888889
B44: 2011 | C44: Semestre II | D44: Sede Central | E44: Facultad de Arquitectura y Diseño | F44: Pregrado | G44: Carrera de Arquitectura | H44: 0.3406862745 | I44: 0.7338129496
B45: 2011 | C45: Semestre II | D45: Sede Central | E45: Facultad de Arquitectura y Diseño | F45: Pregrado | G45: Carrera de Diseño Industrial | H45: 0.4246153846 | I45: 0.7826086957
B46: 2011 | C46: Semestre II | D46: Sede Central | E46: Facultad de Artes | F46: Pregrado | G46: Carrera de Artes Visuales | H46: 0.578313253 | I46: 0.8125
B47: 2011 | C47: Semestre II | D47: Sede Central | E47: Facultad de Artes | F47: Pregrado | G47: Carrera de Estudios Musicales | H47: 0.3850574713 | I47: 0.9402985075
B48: 2011 | C48: Semestre II | D48: Sede Central | E48: Facultad de Ciencias | F48: Pregrado | G48: Carrera de Bacteriología | H48: 0.8461538462 | I48: 0.7272727273
B49: 2011 | C49: Semestre II | D49: Sede Central | E49: Facultad de Ciencias | F49: Pregrado | G49: Carrera de Biología | H49: 0.8474576271 | I49: 0.5
B50: 2011 | C50: Semestre II | D50: Sede Central | E50: Facultad de Ciencias | F50: Pregrado | G50: Carrera de Matemáticas | H50: 0.8888888889 | I50: 0.6875
B51: 2011 | C51: Semestre II | D51: Sede Central | E51: Facultad de Ciencias | F51: Pregrado | G51: Carrera de Microbiología Industrial | H51: 0.8918918919 | I51: 0.696969697
B52: 2011 | C52: Semestre II | D52: Sede Central | E52: Facultad de Ciencias | F52: Pregrado | G52: Carrera de Nutrición y Dietética | H52: 0.8644067797 | I52: 0.7647058824
B53: 2011 | C53: Semestre II | D53: Sede Central | E53: Facultad de Ciencias Económicas y Administrativas | F53: Pregrado | G53: Carrera de Administración de Empresas | H53: 0.6807017544 | I53: 0.7164948454
B54: 2011 | C54: Semestre II | D54: Sede Central | E54: Facultad de Ciencias Económicas y Administrativas | F54: Pregrado | G54: Carrera de Contaduría Pública | H54: 0.8861788618 | I54: 0.752293578
B55: 2011 | C55: Semestre II | D55: Sede Central | E55: Facultad de Ciencias Económicas y Administrativas | F55: Pregrado | G55: Carrera de Economía | H55: 0.9011627907 | I55: 0.4516129032
B56: 2011 | C56: Semestre II | D56: Sede Central | E56: Facultad de Ciencias Jurídicas | F56: Pregrado | G56: Carrera de Derecho | H56: 0.429769392 | I56: 0.6146341463
B57: 2011 | C57: Semestre II | D57: Sede Central | E57: Facultad de Ciencias Políticas y Relaciones Internacionales | F57: Pregrado | G57: Carrera de Ciencia Política | H57: 0.7391304348 | I57: 0.7529411765
B58: 2011 | C58: Semestre II | D58: Sede Central | E58: Facultad de Ciencias Políticas y Relaciones Internacionales | F58: Pregrado | G58: Carrera de Relaciones Internacionales | H58: 0.4561403509 | I58: 0.6346153846
B59: 2011 | C59: Semestre II | D59: Sede Central | E59: Facultad de Ciencias Sociales | F59: Pregrado | G59: Carrera de Antropología | H59: 0.5689655172 | I59: 0.6363636364
B60: 2011 | C60: Semestre II | D60: Sede Central | E60: Facultad de Ciencias Sociales | F60: Pregrado | G60: Carrera de Estudios Literarios | H60: 0.5901639344 | I60: 0.8611111111
B61: 2011 | C61: Semestre II | D61: Sede Central | E61: Facultad de Ciencias Sociales | F61: Pregrado | G61: Carrera de Historia | H61: 0.8947368421 | I61: 0.7941176471
B62: 2011 | C62: Semestre II | D62: Sede Central | E62: Facultad de Ciencias Sociales | F62: Pregrado | G62: Carrera de Sociología | H62: 0.64 | I62: 0.75
B63: 2011 | C63: Semestre II | D63: Sede Central | E63: Facultad de Comunicación y Lenguaje | F63: Pregrado | G63: Carrera de Ciencia de la Información - Bibliotecología | H63: 0.7096774194 | I63: 0.9090909091
B64: 2011 | C64: Semestre II | D64: Sede Central | E64: Facultad de Comunicación y Lenguaje | F64: Pregrado | G64: Carrera de Comunicación Social | H64: 0.6315789474 | I64: 0.7543859649
B65: 2011 | C65: Semestre II | D65: Sede Central | E65: Facultad de Comunicación y Lenguaje | F65: Pregrado | G65: Licenciatura en Lenguas Modernas | H65: 0.785046729 | I65: 0.8095238095
B66: 2011 | C66: Semestre II | D66: Sede Central | E66: Facultad de Educación | F66: Pregrado | G66: Licenciatura en Educación Básica con énfasis en Humanidades y Lengua Castellana | H66: 0.9655172414 | I66: 0.625
B67: 2011 | C67: Semestre II | D67: Sede Central | E67: Facultad de Educación | F67: Pregrado | G67: Licenciatura en Pedagogía Infantil | H67: 0.8275862069 | I67: 0.8333333333
B68: 2011 | C68: Semestre II | D68: Sede Central | E68: Facultad de Enfermería | F68: Pregrado | G68: Carrera de Enfermería | H68: 0.9210526316 | I68: 0.8
B69: 2011 | C69: Semestre II | D69: Sede Central | E69: Facultad de Estudios Ambientales y Rurales | F69: Pregrado | G69: Carrera de Ecología | H69: 0.7692307692 | I69: 0.75
B70: 2011 | C70: Semestre II | D70: Sede Central | E70: Facultad de Filosofía | F70: Pregrado | G70: Carrera de Filosofía | H70: 0.9 | I70: 0.6666666667
B71: 2011 | C71: Semestre II | D71: Sede Central | E71: Facultad de Filosofía | F71: Pregrado | G71: Licenciatura en Filosofía | H71: 1 | I71: 0
B72: 2011 | C72: Semestre II | D72: Sede Central | E72: Facultad de Ingeniería | F72: Pregrado | G72: Carrera de Ingeniería Civil | H72: 0.74375 | I72: 0.5546218487
B73: 2011 | C73: Semestre II | D73: Sede Central | E73: Facultad de Ingeniería | F73: Pregrado | G73: Carrera de Ingeniería de Sistemas | H73: 0.9259259259 | I73: 0.6
B74: 2011 | C74: Semestre II | D74: Sede Central | E74: Facultad de Ingeniería | F74: Pregrado | G74: Carrera de Ingeniería Electrónica | H74: 0.8902439024 | I74: 0.5890410959
B75: 2011 | C75: Semestre II | D75: Sede Central | E75: Facultad de Ingeniería | F75: Pregrado | G75: Carrera de Ingeniería Industrial | H75: 0.6353211009 | I75: 0.5162454874
B76: 2011 | C76: Semestre II | D76: Sede Central | E76: Facultad de Medicina | F76: Pregrado | G76: Carrera de Medicina | H76: 0.2275449102 | I76: 0.6118421053
B77: 2011 | C77: Semestre II | D77: Sede Central | E77: Facultad de Odontología | F77: Pregrado | G77: Carrera de Odontología | H77: 0.8586956522 | I77: 0.835443038
B78: 2011 | C78: Semestre II | D78: Sede Central | E78: Facultad de Psicología | F78: Pregrado | G78: Carrera de Psicología | H78: 0.480565371 | I78: 0.7352941176
B79: 2011 | C79: Semestre II | D79: Sede Central | E79: Facultad de Teología | F79: Pregrado | G79: Carrera de Teología | H79: 0.96 | I79: 0.875
B80: 2011 | C80: Semestre II | D80: Sede Central | E80: Facultad de Teología | F80: Pregrado | G80: Licenciatura en Ciencias Religiosas | H80: 0.8648648649 | I80: 0.875
B81: 2011 | C81: Semestre II | D81: Sede Central | E81: Facultad de Teología | F81: Pregrado | G81: Licenciatura en Teología | H81: 1 | I81: 1
B82: 2011 | C82: Semestre I | D82: Seccional Cali | E82: Facultad de Ciencias de la Salud | F82: Pregrado | G82: Carrera de Medicina | H82: 0.6746987952 | I82: 0.487
B83: 2011 | C83: Semestre I | D83: Seccional Cali | E83: Facultad de Ciencias Económicas y Administrativas | F83: Pregrado | G83: Carrera de Administración de Empresas | H83: 0.8818897638 | I83: 0.8271
B84: 2011 | C84: Semestre I | D84: Seccional Cali | E84: Facultad de Ciencias Económicas y Administrativas | F84: Pregrado | G84: Carrera de Contaduría Pública | H84: 0.8 | I84: 0.783
B85: 2011 | C85: Semestre I | D85: Seccional Cali | E85: Facultad de Ciencias Económicas y Administrativas | F85: Pregrado | G85: Carrera de Economía | H85: 0.8709677419 | I85: 0.8438
B86: 2011 | C86: Semestre I | D86: Seccional Cali | E86: Facultad de Humanidades y Ciencias Sociales | F86: Pregrado | G86: Carrera de Arquitectura | H86: 0.8529411765 | I86: 0.537
B87: 2011 | C87: Semestre I | D87: Seccional Cali | E87: Facultad de Humanidades y Ciencias Sociales | F87: Pregrado | G87: Carrera de Artes Visuales | H87: 0.9130434783 | I87: 0.875
B88: 2011 | C88: Semestre I | D88: Seccional Cali | E88: Facultad de Humanidades y Ciencias Sociales | F88: Pregrado | G88: Carrera de Ciencia Política | H88: 0.9047619048 | I88: 0.9048
B89: 2011 | C89: Semestre I | D89: Seccional Cali | E89: Facultad de Humanidades y Ciencias Sociales | F89: Pregrado | G89: Carrera de Comunicación | H89: 0.8846153846 | I89: 0.7667
B90: 2011 | C90: Semestre I | D90: Seccional Cali | E90: Facultad de Humanidades y Ciencias Sociales | F90: Pregrado | G90: Carrera de Derecho | H90: 0.7323943662 | I90: 0.5778
B91: 2011 | C91: Semestre I | D91: Seccional Cali | E91: Facultad de Humanidades y Ciencias Sociales | F91: Pregrado | G91: Carrera de Diseño de Comunicación Visual | H91: 0.8666666667 | I91: 0.7358
B92: 2011 | C92: Semestre I | D92: Seccional Cali | E92: Facultad de Humanidades y Ciencias Sociales | F92: Pregrado | G92: Carrera de Filosofía | H92: 0.5 | I92: 0.5
B93: 2011 | C93: Semestre I | D93: Seccional Cali | E93: Facultad de Humanidades y Ciencias Sociales | F93: Pregrado | G93: Carrera de Psicología | H93: 0.8181818182 | I93: 0.6429
B94: 2011 | C94: Semestre I | D94: Seccional Cali | E94: Facultad de Ingeniería | F94: Pregrado | G94: Carrera de Biología | H94: 0.6153846154 | I94: 0.5714
B95: 2011 | C95: Semestre I | D95: Seccional Cali | E95: Facultad de Ingeniería | F95: Pregrado | G95: Carrera de Ingeniería Civil | H95: 0.8431372549 | I95: 0.7544
B96: 2011 | C96: Semestre I | D96: Seccional Cali | E96: Facultad de Ingeniería | F96: Pregrado | G96: Carrera de Ingeniería de Sistemas | H96: 0.7857142857 | I96: 0.6875
B97: 2011 | C97: Semestre I | D97: Seccional Cali | E97: Facultad de Ingeniería | F97: Pregrado | G97: Carrera de Ingeniería Electrónica | H97: 0.7058823529 | I97: 0.7059
B98: 2011 | C98: Semestre I | D98: Seccional Cali | E98: Facultad de Ingeniería | F98: Pregrado | G98: Carrera de Ingeniería Industrial | H98: 0.8518518519 | I98: 0.7931
B99: 2011 | C99: Semestre I | D99: Seccional Cali | E99: Facultad de Ingeniería | F99: Pregrado | G99: Carrera de Matemáticas Aplicadas | H99: 0.5 | I99: 0.5
B100: 2011 | C100: Semestre II | D100: Seccional Cali | E100: Facultad de Ciencias de la Salud | F100: Pregrado | G100: Carrera de Medicina | H100: 0.6448598131 | I100: 0.2388
B101: 2011 | C101: Semestre II | D101: Seccional Cali | E101: Facultad de Ciencias Económicas y Administrativas | F101: Pregrado | G101: Carrera de Administración de Empresas | H101: 0.7857142857 | I101: 0.7167
B102: 2011 | C102: Semestre II | D102: Seccional Cali | E102: Facultad de Ciencias Económicas y Administrativas | F102: Pregrado | G102: Carrera de Contaduría Pública | H102: 0.85 | I102: 0.1911
B103: 2011 | C103: Semestre II | D103: Seccional Cali | E103: Facultad de Ciencias Económicas y Administrativas | F103: Pregrado | G103: Carrera de Economía | H103: 0.7066666667 | I103: 0.6883
B104: 2011 | C104: Semestre II | D104: Seccional Cali | E104: Facultad de Humanidades y Ciencias Sociales | F104: Pregrado | G104: Carrera de Arquitectura | H104: 0.6428571429 | I104: 0.3293
B105: 2011 | C105: Semestre II | D105: Seccional Cali | E105: Facultad de Humanidades y Ciencias Sociales | F105: Pregrado | G105: Carrera de Artes Visuales | H105: 0.8 | I105: 0.7273
B106: 2011 | C106: Semestre II | D106: Seccional Cali | E106: Facultad de Humanidades y Ciencias Sociales | F106: Pregrado | G106: Carrera de Ciencia Política | H106: 0.5555555556 | I106: 0.5357
B107: 2011 | C107: Semestre II | D107: Seccional Cali | E107: Facultad de Humanidades y Ciencias Sociales | F107: Pregrado | G107: Carrera de Comunicación | H107: 0.8823529412 | I107: 0.75
B108: 2011 | C108: Semestre II | D108: Seccional Cali | E108: Facultad de Humanidades y Ciencias Sociales | F108: Pregrado | G108: Carrera de Derecho | H108: 0.8725490196 | I108: 0.7595
B109: 2011 | C109: Semestre II | D109: Seccional Cali | E109: Facultad de Humanidades y Ciencias Sociales | F109: Pregrado | G109: Carrera de Diseño de Comunicación Visual | H109: 0.8936170213 | I109: 0.6774
B110: 2011 | C110: Semestre II | D110: Seccional Cali | E110: Facultad de Humanidades y Ciencias Sociales | F110: Pregrado | G110: Carrera de Filosofía | H110: 1 | I110: 1
B111: 2011 | C111: Semestre II | D111: Seccional Cali | E111: Facultad de Humanidades y Ciencias Sociales | F111: Pregrado | G111: Carrera de Psicología | H111: 0.8 | I111: 0.5057
B112: 2011 | C112: Semestre II | D112: Seccional Cali | E112: Facultad de Ingeniería | F112: Pregrado | G112: Carrera de Biología | H112: 0.619047619 | I112: 0.5909
B113: 2011 | C113: Semestre II | D113: Seccional Cali | E113: Facultad de Ingeniería | F113: Pregrado | G113: Carrera de Ingeniería Civil | H113: 0.7228915663 | I113: 0.6522
B114: 2011 | C114: Semestre II | D114: Seccional Cali | E114: Facultad de Ingeniería | F114: Pregrado | G114: Carrera de Ingeniería de Sistemas | H114: 0.6060606061 | I114: 0.5882
B115: 2011 | C115: Semestre II | D115: Seccional Cali | E115: Facultad de Ingeniería | F115: Pregrado | G115: Carrera de Ingeniería Electrónica | H115: 0.5882352941 | I115: 0.5714
B116: 2011 | C116: Semestre II | D116: Seccional Cali | E116: Facultad de Ingeniería | F116: Pregrado | G116: Carrera de Ingeniería Industrial | H116: 0.6506024096 | I116: 0.5745
B117: 2011 | C117: Semestre II | D117: Seccional Cali | E117: Facultad de Ingeniería | F117: Pregrado | G117: Carrera de Matemáticas Aplicadas | H117: 0.6 | I117: 0.6
B118: 2012 | C118: Semestre I | D118: Sede Central | E118: Facultad de Arquitectura y Diseño | F118: Pregrado | G118: Carrera de Arquitectura | H118: 0.3099173554 | I118: 0.6533333333
B119: 2012 | C119: Semestre I | D119: Sede Central | E119: Facultad de Arquitectura y Diseño | F119: Pregrado | G119: Carrera de Diseño Industrial | H119: 0.6676557864 | I119: 0.6755555556
B120: 2012 | C120: Semestre I | D120: Sede Central | E120: Facultad de Artes | F120: Pregrado | G120: Carrera de Artes Visuales | H120: 0.4731707317 | I120: 0.8762886598
B121: 2012 | C121: Semestre I | D121: Sede Central | E121: Facultad de Artes | F121: Pregrado | G121: Carrera de Estudios Musicales | H121: 0.4114832536 | I121: 0.8604651163
B122: 2012 | C122: Semestre I | D122: Sede Central | E122: Facultad de Ciencias | F122: Pregrado | G122: Carrera de Bacteriología | H122: 0.8125 | I122: 0.7307692308
B123: 2012 | C123: Semestre I | D123: Sede Central | E123: Facultad de Ciencias | F123: Pregrado | G123: Carrera de Biología | H123: 0.9230769231 | I123: 0.6904761905
B124: 2012 | C124: Semestre I | D124: Sede Central | E124: Facultad de Ciencias | F124: Pregrado | G124: Carrera de Matemáticas | H124: 1 | I124: 0.6842105263
B125: 2012 | C125: Semestre I | D125: Sede Central | E125: Facultad de Ciencias | F125: Pregrado | G125: Carrera de Microbiología Industrial | H125: 0.8815789474 | I125: 0.6567164179
B126: 2012 | C126: Semestre I | D126: Sede Central | E126: Facultad de Ciencias | F126: Pregrado | G126: Carrera de Nutrición y Dietética | H126: 0.8918918919 | I126: 0.7272727273
B127: 2012 | C127: Semestre I | D127: Sede Central | E127: Facultad de Ciencias Económicas y Administrativas | F127: Pregrado | G127: Carrera de Administración de Empresas | H127: 0.6114180479 | I127: 0.6927710843
B128: 2012 | C128: Semestre I | D128: Sede Central | E128: Facultad de Ciencias Económicas y Administrativas | F128: Pregrado | G128: Carrera de Contaduría Pública | H128: 0.8672985782 | I128: 0.781420765
B129: 2012 | C129: Semestre I | D129: Sede Central | E129: Facultad de Ciencias Económicas y Administrativas | F129: Pregrado | G129: Carrera de Economía | H129: 0.8017621145 | I129: 0.510989011
B130: 2012 | C130: Semestre I | D130: Sede Central | E130: Facultad de Ciencias Jurídicas | F130: Pregrado | G130: Carrera de Derecho | H130: 0.3712255773 | I130: 0.6172248804
B131: 2012 | C131: Semestre I | D131: Sede Central | E131: Facultad de Ciencias Políticas y Relaciones Internacionales | F131: Pregrado | G131: Carrera de Ciencia Política | H131: 0.7446808511 | I131: 0.6571428571
B132: 2012 | C132: Semestre I | D132: Sede Central | E132: Facultad de Ciencias Políticas y Relaciones Internacionales | F132: Pregrado | G132: Carrera de Relaciones Internacionales | H132: 0.3284313725 | I132: 0.8059701493
B133: 2012 | C133: Semestre I | D133: Sede Central | E133: Facultad de Ciencias Sociales | F133: Pregrado | G133: Carrera de Antropología | H133: 0.6481481481 | I133: 0.7142857143
B134: 2012 | C134: Semestre I | D134: Sede Central | E134: Facultad de Ciencias Sociales | F134: Pregrado | G134: Carrera de Estudios Literarios | H134: 0.5833333333 | I134: 0.7619047619
B135: 2012 | C135: Semestre I | D135: Sede Central | E135: Facultad de Ciencias Sociales | F135: Pregrado | G135: Carrera de Historia | H135: 0.8974358974 | I135: 0.8
B136: 2012 | C136: Semestre I | D136: Sede Central | E136: Facultad de Ciencias Sociales | F136: Pregrado | G136: Carrera de Sociología | H136: 0.8928571429 | I136: 0.84
B137: 2012 | C137: Semestre I | D137: Sede Central | E137: Facultad de Comunicación y Lenguaje | F137: Pregrado | G137: Carrera de Ciencia de la Información - Bibliotecología | H137: 0.6097560976 | I137: 0.92
B138: 2012 | C138: Semestre I | D138: Sede Central | E138: Facultad de Comunicación y Lenguaje | F138: Pregrado | G138: Carrera de Comunicación Social | H138: 0.458984375 | I138: 0.7063829787
B139: 2012 | C139: Semestre I | D139: Sede Central | E139: Facultad de Comunicación y Lenguaje | F139: Pregrado | G139: Licenciatura en Lenguas Modernas | H139: 0.7352941176 | I139: 0.8
B140: 2012 | C140: Semestre I | D140: Sede Central | E140: Facultad de Educación | F140: Pregrado | G140: Licenciatura en Educación Básica con énfasis en Humanidades y Lengua Castellana | H140: 0.9111111111 | I140: 0.756097561
B141: 2012 | C141: Semestre I | D141: Sede Central | E141: Facultad de Educación | F141: Pregrado | G141: Licenciatura en Pedagogía Infantil | H141: 0.9411764706 | I141: 0.875
B142: 2012 | C142: Semestre I | D142: Sede Central | E142: Facultad de Enfermería | F142: Pregrado | G142: Carrera de Enfermería | H142: 1 | I142: 0.6266666667
B143: 2012 | C143: Semestre I | D143: Sede Central | E143: Facultad de Estudios Ambientales y Rurales | F143: Pregrado | G143: Carrera de Ecología | H143: 0.7857142857 | I143: 0.7954545455
B144: 2012 | C144: Semestre I | D144: Sede Central | E144: Facultad de Filosofía | F144: Pregrado | G144: Carrera de Filosofía | H144: 0.9166666667 | I144: 0.7727272727
B145: 2012 | C145: Semestre I | D145: Sede Central | E145: Facultad de Filosofía | F145: Pregrado | G145: Licenciatura en Filosofía | H145: 0.875 | I145: 1
B146: 2012 | C146: Semestre I | D146: Sede Central | E146: Facultad de Ingeniería | F146: Pregrado | G146: Carrera de Ingeniería Civil | H146: 0.698630137 | I146: 0.431372549
B147: 2012 | C147: Semestre I | D147: Sede Central | E147: Facultad de Ingeniería | F147: Pregrado | G147: Carrera de Ingeniería de Sistemas | H147: 0.9270833333 | I147: 0.5280898876
B148: 2012 | C148: Semestre I | D148: Sede Central | E148: Facultad de Ingeniería | F148: Pregrado | G148: Carrera de Ingeniería Electrónica | H148: 0.9291338583 | I148: 0.5169491525
B149: 2012 | C149: Semestre I | D149: Sede Central | E149: Facultad de Ingeniería | F149: Pregrado | G149: Carrera de Ingeniería Industrial | H149: 0.5008517888 | I149: 0.4761904762
B150: 2012 | C150: Semestre I | D150: Sede Central | E150: Facultad de Medicina | F150: Pregrado | G150: Carrera de Medicina | H150: 0.1623093682 | I150: 0.6308724832
B151: 2012 | C151: Semestre I | D151: Sede Central | E151: Facultad de Odontología | F151: Pregrado | G151: Carrera de Odontología | H151: 0.4900662252 | I151: 0.7702702703
B152: 2012 | C152: Semestre I | D152: Sede Central | E152: Facultad de Psicología | F152: Pregrado | G152: Carrera de Psicología | H152: 0.5 | I152: 0.75
B153: 2012 | C153: Semestre I | D153: Sede Central | E153: Facultad de Teología | F153: Pregrado | G153: Carrera de Teología | H153: 0.9444444444 | I153: 0.7647058824
B154: 2012 | C154: Semestre I | D154: Sede Central | E154: Facultad de Teología | F154: Pregrado | G154: Licenciatura en Ciencias Religiosas | H154: 0.9565217391 | I154: 0.9545454545
B155: 2012 | C155: Semestre I | D155: Sede Central | E155: Facultad de Teología | F155: Pregrado | G155: Licenciatura en Teología | H155: 1 | I155: 0.95
B156: 2012 | C156: Semestre II | D156: Sede Central | E156: Facultad de Arquitectura y Diseño | F156: Pregrado | G156: Carrera de Arquitectura | H156: 0.4307692308 | I156: 0.6071428571
B157: 2012 | C157: Semestre II | D157: Sede Central | E157: Facultad de Arquitectura y Diseño | F157: Pregrado | G157: Carrera de Diseño Industrial | H157: 0.5367647059 | I157: 0.6712328767
B158: 2012 | C158: Semestre II | D158: Sede Central | E158: Facultad de Artes | F158: Pregrado | G158: Carrera de Artes Visuales | H158: 0.4299516908 | I158: 0.8314606742
B159: 2012 | C159: Semestre II | D159: Sede Central | E159: Facultad de Artes | F159: Pregrado | G159: Carrera de Estudios Musicales | H159: 0.3831775701 | I159: 0.8414634146
B160: 2012 | C160: Semestre II | D160: Sede Central | E160: Facultad de Ciencias | F160: Pregrado | G160: Carrera de Bacteriología | H160: 0.9642857143 | I160: 0.6666666667
B161: 2012 | C161: Semestre II | D161: Sede Central | E161: Facultad de Ciencias | F161: Pregrado | G161: Carrera de Biología | H161: 0.9433962264 | I161: 0.62
B162: 2012 | C162: Semestre II | D162: Sede Central | E162: Facultad de Ciencias | F162: Pregrado | G162: Carrera de Matemáticas | H162: 0.8666666667 | I162: 0.6923076923
B163: 2012 | C163: Semestre II | D163: Sede Central | E163: Facultad de Ciencias | F163: Pregrado | G163: Carrera de Microbiología Industrial | H163: 0.8 | I163: 0.825
B164: 2012 | C164: Semestre II | D164: Sede Central | E164: Facultad de Ciencias | F164: Pregrado | G164: Carrera de Nutrición y Dietética | H164: 0.8285714286 | I164: 0.7068965517
B165: 2012 | C165: Semestre II | D165: Sede Central | E165: Facultad de Ciencias Económicas y Administrativas | F165: Pregrado | G165: Carrera de Administración de Empresas | H165: 0.7329545455 | I165: 0.6744186047
B166: 2012 | C166: Semestre II | D166: Sede Central | E166: Facultad de Ciencias Económicas y Administrativas | F166: Pregrado | G166: Carrera de Contaduría Pública | H166: 0.954954955 | I166: 0.8396226415
B167: 2012 | C167: Semestre II | D167: Sede Central | E167: Facultad de Ciencias Económicas y Administrativas | F167: Pregrado | G167: Carrera de Economía | H167: 0.7117647059 | I167: 0.4958677686
B168: 2012 | C168: Semestre II | D168: Sede Central | E168: Facultad de Ciencias Jurídicas | F168: Pregrado | G168: Carrera de Derecho | H168: 0.4595744681 | I168: 0.4907407407
B169: 2012 | C169: Semestre II | D169: Sede Central | E169: Facultad de Ciencias Políticas y Relaciones Internacionales | F169: Pregrado | G169: Carrera de Ciencia Política | H169: 0.8155339806 | I169: 0.6547619048
B170: 2012 | C170: Semestre II | D170: Sede Central | E170: Facultad de Ciencias Políticas y Relaciones Internacionales | F170: Pregrado | G170: Carrera de Relaciones Internacionales | H170: 0.4534161491 | I170: 0.7123287671
B171: 2012 | C171: Semestre II | D171: Sede Central | E171: Facultad de Ciencias Sociales | F171: Pregrado | G171: Carrera de Antropología | H171: 0.6271186441 | I171: 0.6756756757
B172: 2012 | C172: Semestre II | D172: Sede Central | E172: Facultad de Ciencias Sociales | F172: Pregrado | G172: Carrera de Estudios Literarios | H172: 0.5925925926 | I172: 0.75
B173: 2012 | C173: Semestre II | D173: Sede Central | E173: Facultad de Ciencias Sociales | F173: Pregrado | G173: Carrera de Historia | H173: 0.9428571429 | I173: 0.6363636364
B174: 2012 | C174: Semestre II | D174: Sede Central | E174: Facultad de Ciencias Sociales | F174: Pregrado | G174: Carrera de Sociología | H174: 0.7567567568 | I174: 0.8571428571
B175: 2012 | C175: Semestre II | D175: Sede Central | E175: Facultad de Comunicación y Lenguaje | F175: Pregrado | G175: Carrera de Ciencia de la Información - Bibliotecología | H175: 0.7878787879 | I175: 0.9615384615
B176: 2012 | C176: Semestre II | D176: Sede Central | E176: Facultad de Comunicación y Lenguaje | F176: Pregrado | G176: Carrera de Comunicación Social | H176: 0.7161458333 | I176: 0.7309090909
B177: 2012 | C177: Semestre II | D177: Sede Central | E177: Facultad de Comunicación y Lenguaje | F177: Pregrado | G177: Licenciatura en Lenguas Modernas | H177: 0.8409090909 | I177: 0.8648648649
B178: 2012 | C178: Semestre II | D178: Sede Central | E178: Facultad de Educación | F178: Pregrado | G178: Licenciatura en Educación Básica con énfasis en Humanidades y Lengua Castellana | H178: 0.82 | I178: 0.7804878049
B179: 2012 | C179: Semestre II | D179: Sede Central | E179: Facultad de Educación | F179: Pregrado | G179: Licenciatura en Pedagogía Infantil | H179: 0.8064516129 | I179: 0.84
B180: 2012 | C180: Semestre II | D180: Sede Central | E180: Facultad de Enfermería | F180: Pregrado | G180: Carrera de Enfermería | H180: 1 | I180: 0.7
B181: 2012 | C181: Semestre II | D181: Sede Central | E181: Facultad de Estudios Ambientales y Rurales | F181: Pregrado | G181: Carrera de Ecología | H181: 0.8571428571 | I181: 0.7380952381
B182: 2012 | C182: Semestre II | D182: Sede Central | E182: Facultad de Filosofía | F182: Pregrado | G182: Carrera de Filosofía | H182: 0.8709677419 | I182: 0.8148148148
B183: 2012 | C183: Semestre II | D183: Sede Central | E183: Facultad de Filosofía | F183: Pregrado | G183: Licenciatura en Filosofía | H183: 1 | I183: 0.5714285714
B184: 2012 | C184: Semestre II | D184: Sede Central | E184: Facultad de Ingeniería | F184: Pregrado | G184: Carrera de Ingeniería Civil | H184: 0.687804878 | I184: 0.5886524823
B185: 2012 | C185: Semestre II | D185: Sede Central | E185: Facultad de Ingeniería | F185: Pregrado | G185: Carrera de Ingeniería de Sistemas | H185: 0.9333333333 | I185: 0.4464285714
B186: 2012 | C186: Semestre II | D186: Sede Central | E186: Facultad de Ingeniería | F186: Pregrado | G186: Carrera de Ingeniería Electrónica | H186: 0.9529411765 | I186: 0.5679012346
B187: 2012 | C187: Semestre II | D187: Sede Central | E187: Facultad de Ingeniería | F187: Pregrado | G187: Carrera de Ingeniería Industrial | H187: 0.7236533958 | I187: 0.4530744337
B188: 2012 | C188: Semestre II | D188: Sede Central | E188: Facultad de Medicina | F188: Pregrado | G188: Carrera de Medicina | H188: 0.1825503356 | I188: 0.6838235294
B189: 2012 | C189: Semestre II | D189: Sede Central | E189: Facultad de Odontología | F189: Pregrado | G189: Carrera de Odontología | H189: 0.7450980392 | I189: 0.8157894737
B190: 2012 | C190: Semestre II | D190: Sede Central | E190: Facultad de Psicología | F190: Pregrado | G190: Carrera de Psicología | H190: 0.46 | I190: 0.6811594203
B191: 2012 | C191: Semestre II | D191: Sede Central | E191: Facultad de Teología | F191: Pregrado | G191: Carrera de Teología | H191: 0.9791666667 | I191: 0.8936170213
B192: 2012 | C192: Semestre II | D192: Sede Central | E192: Facultad de Teología | F192: Pregrado | G192: Licenciatura en Ciencias Religiosas | H192: 1 | I192: 0.9444444444
B193: 2012 | C193: Semestre II | D193: Sede Central | E193: Facultad de Teología | F193: Pregrado | G193: Licenciatura en Teología | H193: 0.95 | I193: 0.9473684211
B194: 2012 | C194: Semestre I | D194: Seccional Cali | E194: Facultad de Ciencias de la Salud | F194: Pregrado | G194: Carrera de Medicina | H194: 0.6104651163 | I194: 0.7047619048
B195: 2012 | C195: Semestre I | D195: Seccional Cali | E195: Facultad de Ciencias Económicas y Administrativas | F195: Pregrado | G195: Carrera de Administración de Empresas | H195: 0.8731707317 | I195: 0.9162011173
B196: 2012 | C196: Semestre I | D196: Seccional Cali | E196: Facultad de Ciencias Económicas y Administrativas | F196: Pregrado | G196: Carrera de Contaduría Pública | H196: 0.9736842105 | I196: 0.7837837838
B197: 2012 | C197: Semestre I | D197: Seccional Cali | E197: Facultad de Ciencias Económicas y Administrativas | F197: Pregrado | G197: Carrera de Economía | H197: 0.9 | I197: 0.8222222222
B198: 2012 | C198: Semestre I | D198: Seccional Cali | E198: Facultad de Humanidades y Ciencias Sociales | F198: Pregrado | G198: Carrera de Arquitectura | H198: 0.671875 | I198: 0.7209302326
B199: 2012 | C199: Semestre I | D199: Seccional Cali | E199: Facultad de Humanidades y Ciencias Sociales | F199: Pregrado | G199: Carrera de Artes Visuales | H199: 0.7916666667 | I199: 0.8947368421
B200: 2012 | C200: Semestre I | D200: Seccional Cali | E200: Facultad de Humanidades y Ciencias Sociales | F200: Pregrado | G200: Carrera de Ciencia Política | H200: 0.9375 | I200: 0.8666666667
B201: 2012 | C201: Semestre I | D201: Seccional Cali | E201: Facultad de Humanidades y Ciencias Sociales | F201: Pregrado | G201: Carrera de Comunicación | H201: 0.9285714286 | I201: 0.8461538462
B202: 2012 | C202: Semestre I | D202: Seccional Cali | E202: Facultad de Humanidades y Ciencias Sociales | F202: Pregrado | G202: Carrera de Derecho | H202: 0.858974359 | I202: 0.9104477612
... 1097 more rows

Sheet TABLA B-3
B2: =+CONCATENATE("<< Tabla B-",RIGHT(B4,1)-1) -> << Tabla B-2 | E2: =+CONCATENATE("Tabla B-",RIGHT(B4,1)+1," >>") -> Tabla B-4 >>
B4: =+(MID(ÍNDICE!C22,1,9)) -> Tabla B-3
A5: Estudiantes | B5: Estudiantes matriculados según nivel de programa en metodología presencial por facultad o instituto. Sede Central y Seccional Cali.
B6: Fuente: Sistema de Administración de Estudiantes SIU-SAE. Procesamiento de la Secretaría de Planeación, Rectoría, Sede Central. Oficina de Registro Académico, Vicerrectoría Académica, Seccional Cali.
B7: Nota: En el nivel de pregrado no se contabilizan los casos de las licenciaturas de las Facultades de Educación y Teología en modalidad a Distancia y Virtual respectivamente. -> A partir del 2016 se discriminan las Especializaciones Clinica-Quirúrgicas.
C8: Año
C9: 2016 | I9: 2015
B10: Sede | C10: Pregrado | D10: Especialización | E10: Especialización Clinico/Quirúrgica | F10: Maestría | G10: Doctorado | H10: Total | I10: Pregrado | J10: Especialización | K10: Especialización Clinico/Quirúrgica | L10: Maestría | M10: Doctorado | N10: Total
B11: Sede Central | C11: 19682 | D11: 1801 | E11: 393 | F11: 2062 | G11: 208 | H11: 24146 | I11: 18645 | J11: 2204 | K11: -- | L11: 1881 | M11: 190 | N11: 22920
B12: Seccional Cali | C12: 6933 | D12: 745 | E12: -- | F12: 700 | G12: 6 | H12: 8384 | I12: 6518 | J12: 745 | K12: -- | L12: 507 | M12: 4 | N12: 7774
B13: Total general | C13: 26615 | D13: 2546 | E13: 393 | F13: 2762 | G13: 214 | H13: 32530 | I13: 25163 | J13: 2949 | K13: -- | L13: 2388 | M13: 194 | N13: 30694

Sheet F-TABLA B-3 (hidden)
B1: Tabla B-3. Estudiantes matriculados según nivel de programa en metodología presencial por facultad o instituto. Sede Central y Seccional Cali.
B3: Fuente: Sistema de Administración de Estudiantes SIU-SAE. Procesamiento de la Secretaría de Planeación, Rectoría, Sede Central. Oficina de Registro Académico, Vicerrectoría Académica, Seccional Cali.
B4: Nota: En el nivel de pregrado no se contabilizan los casos de las licenciaturas de las Facultades de Educación y Teología en modalidad a Distancia y Virtual respectivamente. -> A partir del 2016 se discriminan las Especializaciones Clínica-Quirúrgicas.
B6: AÑO | C6: SEDE | D6: FACULTAD O INSTITUTO | E6: PREGRADO | F6: ESPECIALIZACIÓN | G6: ESPECIALIZACIÓN CLÍNICA-QUIRÚRGICA | H6: MAESTRÍA | I6: DOCTORADO | J6: TOTAL
B7: 2007 | C7: Sede Central | D7: Facultad de Arquitectura y Diseño | E7: 1887 | F7: 14 | H7: 66 | J7: =+SUM(E7:I7) -> 1967
B8: 2007 | C8: Sede Central | D8: Facultad de Artes | E8: 982 | F8: 36 | J8: 1018
B9: 2007 | C9: Sede Central | D9: Facultad de Ciencias | E9: 1976 | F9: 59 | H9: 63 | I9: 40 | J9: 2138
B10: 2007 | C10: Sede Central | D10: Facultad de Ciencias Económicas y Administrativas | E10: 2963 | F10: 572 | H10: 108 | J10: 3643
B11: 2007 | C11: Sede Central | D11: Facultad de Ciencias Jurídicas | E11: 861 | F11: 127 | H11: 18 | J11: 1006
B12: 2007 | C12: Sede Central | D12: Facultad de Ciencias Políticas y Relaciones Internacionales | E12: 572 | F12: 84 | H12: 207 | J12: 863
B13: 2007 | C13: Sede Central | D13: Facultad de Ciencias Sociales | E13: 545 | F13: 11 | H13: 196 | J13: 752
B14: 2007 | C14: Sede Central | D14: Facultad de Comunicación y Lenguaje | E14: 1847 | F14: 52 | H14: 34 | J14: 1933
B15: 2007 | C15: Sede Central | D15: Facultad de Derecho Canónico | F15: 24 | H15: 24 | J15: 48
B16: 2007 | C16: Sede Central | D16: Facultad de Educación | E16: 253 | F16: 15 | H16: 220 | J16: 488
B17: 2007 | C17: Sede Central | D17: Facultad de Enfermería | E17: 558 | F17: 106 | J17: 664
B18: 2007 | C18: Sede Central | D18: Facultad de Estudios Ambientales y Rurales | E18: 231 | H18: 166 | J18: 397
B19: 2007 | C19: Sede Central | D19: Facultad de Filosofía | E19: 181 | H19: 67 | I19: 15 | J19: 263
B20: 2007 | C20: Sede Central | D20: Facultad de Ingeniería | E20: 2806 | F20: 235 | H20: 87 | J20: 3128
B21: 2007 | C21: Sede Central | D21: Facultad de Medicina | E21: 918 | F21: 349 | H21: 47 | J21: 1314
B22: 2007 | C22: Sede Central | D22: Facultad de Odontología | E22: 676 | F22: 191 | J22: 867
B23: 2007 | C23: Sede Central | D23: Facultad de Psicología | E23: 802 | F23: 39 | J23: 841
B24: 2007 | C24: Sede Central | D24: Facultad de Teología | E24: 265 | F24: 23 | H24: 60 | I24: 26 | J24: 374
B25: 2007 | C25: Sede Central | D25: Instituto de Bioética | F25: 5 | J25: 5
B26: 2007 | C26: Seccional Cali | D26: Facultad de Ciencias de la Salud | J26: 0
B27: 2007 | C27: Seccional Cali | D27: Facultad de Ciencias Económicas y Administrativas | J27: 0
B28: 2007 | C28: Seccional Cali | D28: Facultad de Humanidades y Ciencias Sociales | J28: 0
B29: 2007 | C29: Seccional Cali | D29: Facultad de Ingeniería | J29: 0
B30: 2008 | C30: Sede Central | D30: Facultad de Arquitectura y Diseño | E30: 1962 | F30: 27 | H30: 56 | J30: 2045
B31: 2008 | C31: Sede Central | D31: Facultad de Artes | E31: 976 | F31: 19 | J31: 995
B32: 2008 | C32: Sede Central | D32: Facultad de Ciencias | E32: 1786 | F32: 44 | H32: 60 | I32: 20 | J32: 1910
B33: 2008 | C33: Sede Central | D33: Facultad de Ciencias Económicas y Administrativas | E33: 3051 | F33: 330 | H33: 138 | J33: 3519
B34: 2008 | C34: Sede Central | D34: Facultad de Ciencias Jurídicas | E34: 875 | F34: 259 | H34: 12 | J34: 1146
B35: 2008 | C35: Sede Central | D35: Facultad de Ciencias Políticas y Relaciones Internacionales | E35: 531 | F35: 103 | H35: 201 | J35: 835
B36: 2008 | C36: Sede Central | D36: Facultad de Ciencias Sociales | E36: 549 | F36: 2 | H36: 187 | J36: 738
B37: 2008 | C37: Sede Central | D37: Facultad de Comunicación y Lenguaje | E37: 1834 | F37: 41 | H37: 38 | J37: 1913
B38: 2008 | C38: Sede Central | D38: Facultad de Derecho Canónico | F38: 3 | H38: 8 | J38: 11
B39: 2008 | C39: Sede Central | D39: Facultad de Educación | E39: 220 | F39: 11 | H39: 202 | J39: 433
B40: 2008 | C40: Sede Central | D40: Facultad de Enfermería | E40: 546 | F40: 61 | J40: 607
B41: 2008 | C41: Sede Central | D41: Facultad de Estudios Ambientales y Rurales | E41: 227 | H41: 121 | I41: 4 | J41: 352
B42: 2008 | C42: Sede Central | D42: Facultad de Filosofía | E42: 162 | H42: 75 | I42: 11 | J42: 248
B43: 2008 | C43: Sede Central | D43: Facultad de Ingeniería | E43: 2720 | F43: 239 | H43: 95 | J43: 3054
B44: 2008 | C44: Sede Central | D44: Facultad de Medicina | E44: 906 | F44: 312 | H44: 37 | J44: 1255
B45: 2008 | C45: Sede Central | D45: Facultad de Odontología | E45: 638 | F45: 150 | J45: 788
B46: 2008 | C46: Sede Central | D46: Facultad de Psicología | E46: 756 | F46: 14 | H46: 46 | J46: 816
B47: 2008 | C47: Sede Central | D47: Facultad de Teología | E47: 362 | F47: 26 | H47: 50 | I47: 18 | J47: 456
B48: 2008 | C48: Sede Central | D48: Instituto de Bioética | H48: 17 | J48: 17
B49: 2008 | C49: Seccional Cali | D49: Facultad de Ciencias de la Salud | J49: 0
B50: 2008 | C50: Seccional Cali | D50: Facultad de Ciencias Económicas y Administrativas | E50: 1906 | F50: 212 | H50: 162 | J50: 2280
B51: 2008 | C51: Seccional Cali | D51: Facultad de Humanidades y Ciencias Sociales | E51: 1706 | F51: 98 | H51: 4 | J51: 1808
B52: 2008 | C52: Seccional Cali | D52: Facultad de Ingeniería | E52: 1631 | F52: 179 | H52: 46 | J52: 1856
B53: 2009 | C53: Sede Central | D53: Facultad de Arquitectura y Diseño | E53: 2059 | F53: 35 | H53: 57 | J53: 2151
B54: 2009 | C54: Sede Central | D54: Facultad de Artes | E54: 946 | F54: 21 | J54: 967
B55: 2009 | C55: Sede Central | D55: Facultad de Ciencias | E55: 1608 | F55: 48 | H55: 89 | I55: 29 | J55: 1774
B56: 2009 | C56: Sede Central | D56: Facultad de Ciencias Económicas y Administrativas | E56: 3156 | F56: 478 | H56: 152 | J56: 3786
B57: 2009 | C57: Sede Central | D57: Facultad de Ciencias Jurídicas | E57: 854 | F57: 297 | H57: 43 | I57: 6 | J57: 1200
B58: 2009 | C58: Sede Central | D58: Facultad de Ciencias Políticas y Relaciones Internacionales | E58: 494 | F58: 82 | H58: 192 | J58: 768
B59: 2009 | C59: Sede Central | D59: Facultad de Ciencias Sociales | E59: 574 | F59: 1 | H59: 189 | I59: 22 | J59: 786
B60: 2009 | C60: Sede Central | D60: Facultad de Comunicación y Lenguaje | E60: 1846 | F60: 60 | H60: 32 | J60: 1938
B61: 2009 | C61: Sede Central | D61: Facultad de Derecho Canónico | F61: 1 | H61: 15 | I61: 9 | J61: 25
B62: 2009 | C62: Sede Central | D62: Facultad de Educación | E62: 208 | F62: 1 | H62: 202 | J62: 411
B63: 2009 | C63: Sede Central | D63: Facultad de Enfermería | E63: 545 | F63: 70 | J63: 615
B64: 2009 | C64: Sede Central | D64: Facultad de Estudios Ambientales y Rurales | E64: 249 | H64: 150 | I64: 8 | J64: 407
B65: 2009 | C65: Sede Central | D65: Facultad de Filosofía | E65: 159 | H65: 69 | I65: 21 | J65: 249
B66: 2009 | C66: Sede Central | D66: Facultad de Ingeniería | E66: 2633 | F66: 289 | H66: 133 | I66: 5 | J66: 3060
B67: 2009 | C67: Sede Central | D67: Facultad de Medicina | E67: 850 | F67: 309 | H67: 26 | J67: 1185
B68: 2009 | C68: Sede Central | D68: Facultad de Odontología | E68: 642 | F68: 168 | J68: 810
B69: 2009 | C69: Sede Central | D69: Facultad de Psicología | E69: 768 | F69: 6 | H69: 66 | J69: 840
B70: 2009 | C70: Sede Central | D70: Facultad de Teología | E70: 264 | F70: 17 | H70: 47 | I70: 20 | J70: 348
B71: 2009 | C71: Sede Central | D71: Instituto de Bioética | H71: 31 | J71: =+SUM(E71:I71) -> 31
B72: 2009 | C72: Seccional Cali | D72: Facultad de Ciencias de la Salud | J72: 0
B73: 2009 | C73: Seccional Cali | D73: Facultad de Ciencias Económicas y Administrativas | E73: 1828 | F73: 210 | H73: 160 | J73: 2198
B74: 2009 | C74: Seccional Cali | D74: Facultad de Humanidades y Ciencias Sociales | E74: 1740 | F74: 146 | H74: 4 | J74: 1890
B75: 2009 | C75: Seccional Cali | D75: Facultad de Ingeniería | E75: 1547 | F75: 174 | H75: 42 | J75: 1763
B76: 2010 | C76: Sede Central | D76: Facultad de Arquitectura y Diseño | E76: 2115 | F76: 31 | H76: 69 | J76: 2215
B77: 2010 | C77: Sede Central | D77: Facultad de Artes | E77: 947 | F77: 15 | J77: 962
B78: 2010 | C78: Sede Central | D78: Facultad de Ciencias | E78: 1302 | F78: 59 | H78: 83 | I78: 34 | J78: 1478
B79: 2010 | C79: Sede Central | D79: Facultad de Ciencias Económicas y Administrativas | E79: 3024 | F79: 512 | H79: 101 | J79: 3637
B80: 2010 | C80: Sede Central | D80: Facultad de Ciencias Jurídicas | E80: 892 | F80: 329 | H80: 35 | I80: 7 | J80: 1263
B81: 2010 | C81: Sede Central | D81: Facultad de Ciencias Políticas y Relaciones Internacionales | E81: 517 | F81: 105 | H81: 117 | J81: 739
B82: 2010 | C82: Sede Central | D82: Facultad de Ciencias Sociales | E82: 530 | H82: 167 | I82: 26 | J82: 723
B83: 2010 | C83: Sede Central | D83: Facultad de Comunicación y Lenguaje | E83: 1869 | F83: 66 | H83: 38 | J83: 1973
B84: 2010 | C84: Sede Central | D84: Facultad de Derecho Canónico | H84: 15 | I84: 3 | J84: 18
B85: 2010 | C85: Sede Central | D85: Facultad de Educación | E85: 195 | H85: 117 | J85: 312
B86: 2010 | C86: Sede Central | D86: Facultad de Enfermería | E86: 520 | F86: 94 | J86: 614
B87: 2010 | C87: Sede Central | D87: Facultad de Estudios Ambientales y Rurales | E87: 240 | F87: 10 | H87: 212 | I87: 8 | J87: 470
B88: 2010 | C88: Sede Central | D88: Facultad de Filosofía | E88: 134 | H88: 58 | I88: 14 | J88: 206
B89: 2010 | C89: Sede Central | D89: Facultad de Ingeniería | E89: 2643 | F89: 264 | H89: 186 | I89: 18 | J89: 3111
B90: 2010 | C90: Sede Central | D90: Facultad de Medicina | E90: 846 | F90: 293 | H90: 29 | J90: 1168
B91: 2010 | C91: Sede Central | D91: Facultad de Odontología | E91: 621 | F91: 163 | J91: 784
B92: 2010 | C92: Sede Central | D92: Facultad de Psicología | E92: 768 | H92: 79 | J92: 847
B93: 2010 | C93: Sede Central | D93: Facultad de Teología | E93: 251 | H93: 31 | I93: 15 | J93: 297
B94: 2010 | C94: Sede Central | D94: Instituto de Bioética | H94: 22 | J94: 22
B95: 2010 | C95: Seccional Cali | D95: Facultad de Ciencias de la Salud | E95: 131 | J95: 131
B96: 2010 | C96: Seccional Cali | D96: Facultad de Ciencias Económicas y Administrativas | E96: 1812 | F96: 241 | H96: 171 | J96: 2224
B97: 2010 | C97: Seccional Cali | D97: Facultad de Humanidades y Ciencias Sociales | E97: 1751 | F97: 239 | H97: 0 | J97: 1990
B98: 2010 | C98: Seccional Cali | D98: Facultad de Ingeniería | E98: 1509 | F98: 198 | H98: 37 | J98: 1744
B99: 2011 | C99: Sede Central | D99: Facultad de Arquitectura y Diseño | E99: 2082 | F99: 31 | H99: 77 | J99: 2190
B100: 2011 | C100: Sede Central | D100: Facultad de Artes | E100: 967 | F100: 11 | J100: 978
B101: 2011 | C101: Sede Central | D101: Facultad de Ciencias | E101: 1187 | F101: 53 | H101: 98 | I101: 53 | J101: 1391
B102: 2011 | C102: Sede Central | D102: Facultad de Ciencias Económicas y Administrativas | E102: 3041 | F102: 474 | H102: 105 | J102: 3620
B103: 2011 | C103: Sede Central | D103: Facultad de Ciencias Jurídicas | E103: 907 | F103: 385 | H103: 32 | I103: 11 | J103: 1335
B104: 2011 | C104: Sede Central | D104: Facultad de Ciencias Políticas y Relaciones Internacionales | E104: 534 | F104: 95 | H104: 206 | J104: 835
B105: 2011 | C105: Sede Central | D105: Facultad de Ciencias Sociales | E105: 574 | H105: 167 | I105: 39 | J105: 780
B106: 2011 | C106: Sede Central | D106: Facultad de Comunicación y Lenguaje | E106: 1948 | F106: 69 | H106: 44 | J106: 2061
B107: 2011 | C107: Sede Central | D107: Facultad de Derecho Canónico | H107: 19 | I107: 10 | J107: 29
B108: 2011 | C108: Sede Central | D108: Facultad de Educación | E108: 192 | H108: 156 | J108: 348
B109: 2011 | C109: Sede Central | D109: Facultad de Enfermería | E109: 493 | F109: 91 | J109: 584
B110: 2011 | C110: Sede Central | D110: Facultad de Estudios Ambientales y Rurales | E110: 246 | F110: 10 | H110: 201 | I110: 12 | J110: 469
B111: 2011 | C111: Sede Central | D111: Facultad de Filosofía | E111: 154 | H111: 46 | I111: 8 | J111: 208
B112: 2011 | C112: Sede Central | D112: Facultad de Ingeniería | E112: 2718 | F112: 281 | H112: 261 | I112: 31 | J112: 3291
B113: 2011 | C113: Sede Central | D113: Facultad de Medicina | E113: 884 | F113: 329 | H113: 27 | J113: 1240
B114: 2011 | C114: Sede Central | D114: Facultad de Odontología | E114: 666 | F114: 158 | J114: 824
B115: 2011 | C115: Sede Central | D115: Facultad de Psicología | E115: 789 | H115: 81 | J115: 870
B116: 2011 | C116: Sede Central | D116: Facultad de Teología | E116: 259 | H116: 45 | I116: 19 | J116: 323
B117: 2011 | C117: Sede Central | D117: Instituto de Bioética | H117: 32 | J117: 32
B118: 2011 | C118: Seccional Cali | D118: Facultad de Ciencias de la Salud | E118: 251 | J118: 251
B119: 2011 | C119: Seccional Cali | D119: Facultad de Ciencias Económicas y Administrativas | E119: 1833 | F119: 261 | H119: 179 | J119: 2273
B120: 2011 | C120: Seccional Cali | D120: Facultad de Humanidades y Ciencias Sociales | E120: 1893 | F120: 235 | H120: 28 | J120: 2156
B121: 2011 | C121: Seccional Cali | D121: Facultad de Ingeniería | E121: 1513 | F121: 207 | H121: 44 | J121: 1764
B122: 2012 | C122: Sede Central | D122: Facultad de Arquitectura y Diseño | E122: 2088 | F122: 23 | H122: 60 | J122: 2171
B123: 2012 | C123: Sede Central | D123: Facultad de Artes | E123: 1046 | F123: 13 | J123: 1059
B124: 2012 | C124: Sede Central | D124: Facultad de Ciencias | E124: 1188 | F124: 36 | H124: 79 | I124: 47 | J124: 1350
B125: 2012 | C125: Sede Central | D125: Facultad de Ciencias Económicas y Administrativas | E125: 2995 | F125: 495 | H125: 122 | J125: 3612
B126: 2012 | C126: Sede Central | D126: Facultad de Ciencias Jurídicas | E126: 923 | F126: 371 | H126: 43 | I126: 11 | J126: 1348
B127: 2012 | C127: Sede Central | D127: Facultad de Ciencias Políticas y Relaciones Internacionales | E127: 636 | F127: 95 | H127: 177 | J127: 908
B128: 2012 | C128: Sede Central | D128: Facultad de Ciencias Sociales | E128: 550 | H128: 155 | I128: 30 | J128: 735
B129: 2012 | C129: Sede Central | D129: Facultad de Comunicación y Lenguaje | E129: 2101 | F129: 55 | H129: 46 | J129: 2202
B130: 2012 | C130: Sede Central | D130: Facultad de Derecho Canónico | H130: 27 | I130: 6 | J130: 33
B131: 2012 | C131: Sede Central | D131: Facultad de Educación | E131: 200 | H131: 167 | J131: 367
B132: 2012 | C132: Sede Central | D132: Facultad de Enfermería | E132: 443 | F132: 97 | J132: 540
B133: 2012 | C133: Sede Central | D133: Facultad de Estudios Ambientales y Rurales | E133: 249 | F133: 13 | H133: 243 | I133: 13 | J133: 518
B134: 2012 | C134: Sede Central | D134: Facultad de Filosofía | E134: 133 | H134: 42 | I134: 6 | J134: 181
B135: 2012 | C135: Sede Central | D135: Facultad de Ingeniería | E135: 2673 | F135: 282 | H135: 267 | I135: 37 | J135: =+SUM(E135:I135) -> 3259
B136: 2012 | C136: Sede Central | D136: Facultad de Medicina | E136: 871 | F136: 339 | H136: 26 | J136: 1236
B137: 2012 | C137: Sede Central | D137: Facultad de Odontología | E137: 664 | F137: 139 | J137: 803
B138: 2012 | C138: Sede Central | D138: Facultad de Psicología | E138: 748 | F138: 3 | H138: 70 | J138: 821
B139: 2012 | C139: Sede Central | D139: Facultad de Teología | E139: 235 | H139: 47 | I139: 21 | J139: 303
B140: 2012 | C140: Sede Central | D140: Instituto de Bioética | H140: 30 | J140: 30
B141: 2012 | C141: Seccional Cali | D141: Facultad de Ciencias de la Salud | E141: 371 | J141: 371
B142: 2012 | C142: Seccional Cali | D142: Facultad de Ciencias Económicas y Administrativas | E142: 1820 | F142: 259 | H142: 200 | J142: 2279
B143: 2012 | C143: Seccional Cali | D143: Facultad de Humanidades y Ciencias Sociales | E143: 1967 | F143: 209 | H143: 65 | J143: 2241
B144: 2012 | C144: Seccional Cali | D144: Facultad de Ingeniería | E144: 1570 | F144: 190 | H144: 54 | J144: 1814
B145: 2013 | C145: Sede Central | D145: Facultad de Arquitectura y Diseño | E145: 2017 | F145: 21 | H145: 47 | J145: 2085
B146: 2013 | C146: Sede Central | D146: Facultad de Artes | E146: 1038 | F146: 21 | H146: 19 | J146: 1078
B147: 2013 | C147: Sede Central | D147: Facultad de Ciencias | E147: 1117 | F147: 22 | H147: 59 | I147: 46 | J147: 1244
B148: 2013 | C148: Sede Central | D148: Facultad de Ciencias Económicas y Administrativas | E148: 2925 | F148: 710 | H148: 162 | J148: 3797
B149: 2013 | C149: Sede Central | D149: Facultad de Ciencias Jurídicas | E149: 962 | F149: 367 | H149: 41 | I149: 11 | J149: 1381
B150: 2013 | C150: Sede Central | D150: Facultad de Ciencias Políticas y Relaciones Internacionales | E150: 674 | F150: 113 | H150: 185 | J150: 972
B151: 2013 | C151: Sede Central | D151: Facultad de Ciencias Sociales | E151: 602 | H151: 152 | I151: 41 | J151: 795
B152: 2013 | C152: Sede Central | D152: Facultad de Comunicación y Lenguaje | E152: 2256 | F152: 56 | H152: 94 | J152: 2406
B153: 2013 | C153: Sede Central | D153: Facultad de Derecho Canónico | H153: 34 | I153: 5 | J153: 39
B154: 2013 | C154: Sede Central | D154: Facultad de Educación | E154: 209 | F154: 1 | H154: 211 | J154: 421
B155: 2013 | C155: Sede Central | D155: Facultad de Enfermería | E155: 362 | F155: 101 | J155: 463
B156: 2013 | C156: Sede Central | D156: Facultad de Estudios Ambientales y Rurales | E156: 260 | F156: 12 | H156: 254 | I156: 14 | J156: 540
B157: 2013 | C157: Sede Central | D157: Facultad de Filosofía | E157: 141 | H157: 36 | I157: 8 | J157: 185
B158: 2013 | C158: Sede Central | D158: Facultad de Ingeniería | E158: 2702 | F158: 267 | H158: 264 | I158: 40 | J158: 3273
B159: 2013 | C159: Sede Central | D159: Facultad de Medicina | E159: 893 | F159: 327 | H159: 24 | J159: 1244
B160: 2013 | C160: Sede Central | D160: Facultad de Odontología | E160: 675 | F160: 133 | J160: 808
B161: 2013 | C161: Sede Central | D161: Facultad de Psicología | E161: 801 | F161: 2 | H161: 70 | J161: 873
B162: 2013 | C162: Sede Central | D162: Facultad de Teología | E162: 218 | H162: 34 | I162: 11 | J162: 263
B163: 2013 | C163: Sede Central | D163: Instituto de Bioética | H163: 27 | J163: 27
B164: 2013 | C164: Seccional Cali | D164: Facultad de Ciencias de la Salud | E164: 485 | J164: 485
B165: 2013 | C165: Seccional Cali | D165: Facultad de Ciencias Económicas y Administrativas | E165: 1782 | F165: 259 | H165: 180 | J165: 2221
B166: 2013 | C166: Seccional Cali | D166: Facultad de Humanidades y Ciencias Sociales | E166: 2051 | F166: 266 | H166: 144 | J166: 2461
B167: 2013 | C167: Seccional Cali | D167: Facultad de Ingeniería | E167: 1525 | F167: 176 | H167: 60 | J167: 1761
B168: 2014 | C168: Sede Central | D168: Facultad de Arquitectura y Diseño | E168: 2031 | F168: 17 | H168: 36 | I168: 0 | J168: 2084
B169: 2014 | C169: Sede Central | D169: Facultad de Artes | E169: 1131 | F169: 23 | H169: 28 | I169: 0 | J169: 1182
B170: 2014 | C170: Sede Central | D170: Facultad de Ciencias | E170: 1075 | F170: 34 | H170: 65 | I170: 42 | J170: 1216
B171: 2014 | C171: Sede Central | D171: Facultad de Ciencias Económicas y Administrativas | E171: 2775 | F171: 733 | H171: 217 | I171: 0 | J171: 3725
B172: 2014 | C172: Sede Central | D172: Facultad de Ciencias Jurídicas | E172: 1031 | F172: 368 | H172: 29 | I172: 17 | J172: 1445
B173: 2014 | C173: Sede Central | D173: Facultad de Ciencias Políticas y Relaciones Internacionales | E173: 796 | F173: 106 | H173: 192 | I173: 0 | J173: 1094
B174: 2014 | C174: Sede Central | D174: Facultad de Ciencias Sociales | E174: 623 | F174: 0 | H174: 157 | I174: 43 | J174: 823
B175: 2014 | C175: Sede Central | D175: Facultad de Comunicación y Lenguaje | E175: 2347 | F175: 52 | H175: 114 | I175: 0 | J175: 2513
B176: 2014 | C176: Sede Central | D176: Facultad de Derecho Canónico | E176: 0 | F176: 0 | H176: 18 | I176: 4 | J176: 22
B177: 2014 | C177: Sede Central | D177: Facultad de Educación | E177: 199 | F177: 0 | H177: 410 | I177: 0 | J177: 609
B178: 2014 | C178: Sede Central | D178: Facultad de Enfermería | E178: 322 | F178: 105 | H178: 0 | I178: 0 | J178: 427
B179: 2014 | C179: Sede Central | D179: Facultad de Estudios Ambientales y Rurales | E179: 244 | F179: 7 | H179: 230 | I179: 12 | J179: 493
B180: 2014 | C180: Sede Central | D180: Facultad de Filosofía | E180: 145 | F180: 0 | H180: 41 | I180: 9 | J180: 195
B181: 2014 | C181: Sede Central | D181: Facultad de Ingeniería | E181: 2758 | F181: 235 | H181: 282 | I181: 43 | J181: 3318
B182: 2014 | C182: Sede Central | D182: Facultad de Medicina | E182: 939 | F182: 351 | H182: 29 | I182: 0 | J182: 1319
B183: 2014 | C183: Sede Central | D183: Facultad de Odontología | E183: 650 | F183: 145 | H183: 0 | I183: 0 | J183: 795
B184: 2014 | C184: Sede Central | D184: Facultad de Psicología | E184: 822 | F184: 2 | H184: 71 | I184: 0 | J184: 895
B185: 2014 | C185: Sede Central | D185: Facultad de Teología | E185: 203 | F185: 0 | H185: 29 | I185: 14 | J185: 246
B186: 2014 | C186: Sede Central | D186: Instituto de Bioética | E186: 0 | F186: 0 | H186: 36 | I186: 0 | J186: 36
B187: 2014 | C187: Seccional Cali | D187: Facultad de Ciencias de la Salud | E187: 583 | H187: 24 | J187: 607
B188: 2014 | C188: Seccional Cali | D188: Facultad de Ciencias Económicas y Administrativas | E188: 1823 | F188: 383 | H188: 162 | J188: 2368
B189: 2014 | C189: Seccional Cali | D189: Facultad de Humanidades y Ciencias Sociales | E189: 2183 | F189: 278 | H189: 134 | J189: 2595
B190: 2014 | C190: Seccional Cali | D190: Facultad de Ingeniería | E190: 1572 | F190: 167 | H190: 62 | J190: 1801
B191: 2015 | C191: Sede Central | D191: Facultad de Arquitectura y Diseño | E191: 1952 | F191: 12 | H191: 33 | I191: 0 | J191: 1997
B192: 2015 | C192: Sede Central | D192: Facultad de Artes | E192: 1231 | F192: 7 | H192: 43 | I192: 0 | J192: 1281
B193: 2015 | C193: Sede Central | D193: Facultad de Ciencias | E193: 1124 | F193: 30 | H193: 73 | I193: 38 | J193: 1265
B194: 2015 | C194: Sede Central | D194: Facultad de Ciencias Económicas y Administrativas | E194: 2842 | F194: 758 | H194: 212 | I194: 0 | J194: 3812
B195: 2015 | C195: Sede Central | D195: Facultad de Ciencias Jurídicas | E195: 1112 | F195: 367 | H195: 28 | I195: 18 | J195: 1525
B196: 2015 | C196: Sede Central | D196: Facultad de Ciencias Políticas y Relaciones Internacionales | E196: 887 | F196: 127 | H196: 163 | I196: 0 | J196: 1177
B197: 2015 | C197: Sede Central | D197: Facultad de Ciencias Sociales | E197: 659 | F197: 0 | H197: 138 | I197: 38 | J197: 835
B198: 2015 | C198: Sede Central | D198: Facultad de Comunicación y Lenguaje | E198: 2455 | F198: 54 | H198: 94 | I198: 0 | J198: 2603
B199: 2015 | C199: Sede Central | D199: Facultad de Derecho Canónico | E199: 0 | F199: 0 | H199: 19 | I199: 7 | J199: =+SUM(E199:I199) -> 26
B200: 2015 | C200: Sede Central | D200: Facultad de Educación | E200: 191 | F200: 0 | H200: 435 | I200: 0 | J200: 626
B201: 2015 | C201: Sede Central | D201: Facultad de Enfermería | E201: 335 | F201: 98 | H201: 0 | I201: 0 | J201: 433
B202: 2015 | C202: Sede Central | D202: Facultad de Estudios Ambientales y Rurales | E202: 250 | F202: 9 | H202: 201 | I202: 18 | J202: 478
... 34 more rows

Sheet TABLA B-4
B2: =+CONCATENATE("<< Tabla B-",RIGHT(B4,1)-1) -> << Tabla B-3 | C2: =+CONCATENATE("Tabla B-",RIGHT(B4,1)+1," >>") -> Tabla B-5 >>
B4: =+(MID(ÍNDICE!C23,1,9)) -> Tabla B-4
A5: Estudiantes | B5: Estudiantes matriculados en programas académicos según metodología por facultad o instituto. Sede Central y Seccional Cali.
B6: Fuente: Sistema de Administración de Estudiantes SIU-SAE. Procesamiento de la Secretaría de Planeación, Rectoría, Sede Central. Oficina de Registro Académico, Vicerrectoría Académica, Seccional Cali.
C7: Metodología
C8: Presencial | F8: Distancia | I8: Virtual
B9: Sede | C9: 2016 | D9: 2015 | E9: 2014 | F9: 2016 | G9: 2015 | H9: 2014 | I9: 2016 | J9: 2015 | K9: 2014
B10: Sede Central | C10: 24146 | D10: 22920 | E10: 22437 | F10: 151 | G10: 208 | H10: 243 | I10: 128 | J10: 142 | K10: 114
B11: Seccional Cali | C11: 8384 | D11: 7774 | E11: 7371 | F11: -- | G11: -- | H11: -- | I11: -- | J11: -- | K11: --
B12: Total general | C12: 32530 | D12: 30694 | E12: 29808 | F12: 151 | G12: 208 | H12: 243 | I12: 128 | J12: 142 | K12: 114

Sheet F-TABLA B-4 (hidden)
B1: Tabla B-4. Estudiantes matriculados en programas académicos según metodología por facultad o instituto. Sede Central y Seccional Cali.
B3: Fuente: Sistema de Administración de Estudiantes SIU-SAE. Procesamiento de la Secretaría de Planeación, Rectoría, Sede Central. Oficina de Registro Académico, Vicerrectoría Académica, Seccional Cali.
B5: SEDE | C5: FACULTAD O INSTITUTO | D5: NIVEL | E5: PROGRAMA | F5: METODOLOGÍA | G5: 2014 | H5: 2015 | I5: 2016
B6: Sede Central | C6: Facultad de Educación | D6: Pregrado | E6: Licenciatura en Educación Básica con énfasis en Humanidades y Lengua Castellana | F6: Distancia | G6: 243 | H6: 208 | I6: 151
B7: Sede Central | C7: Facultad de Arquitectura y Diseño | D7: Pregrado | E7: Carrera de Arquitectura | F7: Presencial | G7: 949 | H7: 915 | I7: 925
B8: Sede Central | C8: Facultad de Arquitectura y Diseño | D8: Pregrado | E8: Carrera de Diseño Industrial | F8: Presencial | G8: 1082 | H8: 1037 | I8: 1037
B9: Sede Central | C9: Facultad de Artes | D9: Pregrado | E9: Carrera de Artes Escénicas | F9: Presencial | G9: 25 | H9: 93 | I9: 204
B10: Sede Central | C10: Facultad de Artes | D10: Pregrado | E10: Carrera de Artes Visuales | F10: Presencial | G10: 585 | H10: 612 | I10: 618
B11: Sede Central | C11: Facultad de Artes | D11: Pregrado | E11: Carrera de Estudios Musicales | F11: Presencial | G11: 521 | H11: 526 | I11: 515
B12: Sede Central | C12: Facultad de Ciencias | D12: Pregrado | E12: Carrera de Bacteriología | F12: Presencial | G12: 141 | H12: 154 | I12: 175
B13: Sede Central | C13: Facultad de Ciencias | D13: Pregrado | E13: Carrera de Biología | F13: Presencial | G13: 261 | H13: 279 | I13: 300
B14: Sede Central | C14: Facultad de Ciencias | D14: Pregrado | E14: Carrera de Matemáticas | F14: Presencial | G14: 25 | H14: 49 | I14: 72
B15: Sede Central | C15: Facultad de Ciencias | D15: Pregrado | E15: Carrera de Microbiología Agrícola y Veterinaria | F15: Presencial | G15: 5 | H15: 1 | I15: 0
B16: Sede Central | C16: Facultad de Ciencias | D16: Pregrado | E16: Carrera de Microbiología Industrial | F16: Presencial | G16: 325 | H16: 316 | I16: 300
B17: Sede Central | C17: Facultad de Ciencias | D17: Pregrado | E17: Carrera de Nutrición y Dietética | F17: Presencial | G17: 318 | H17: 325 | I17: 347
B18: Sede Central | C18: Facultad de Ciencias Económicas y Administrativas | D18: Pregrado | E18: Carrera de Administración de Empresas | F18: Presencial | G18: 1573 | H18: 1590 | I18: 1632
B19: Sede Central | C19: Facultad de Ciencias Económicas y Administrativas | D19: Pregrado | E19: Carrera de Contaduría Pública | F19: Presencial | G19: 731 | H19: 703 | I19: 642
B20: Sede Central | C20: Facultad de Ciencias Económicas y Administrativas | D20: Pregrado | E20: Carrera de Economía | F20: Presencial | G20: 471 | H20: 549 | I20: 585
B21: Sede Central | C21: Facultad de Ciencias Jurídicas | D21: Pregrado | E21: Carrera de Derecho | F21: Presencial | G21: 1031 | H21: 1112 | I21: 1195
B22: Sede Central | C22: Facultad de Ciencias Políticas y Relaciones Internacionales | D22: Pregrado | E22: Carrera de Ciencia Política | F22: Presencial | G22: 516 | H22: 490 | I22: 553
B23: Sede Central | C23: Facultad de Ciencias Políticas y Relaciones Internacionales | D23: Pregrado | E23: Carrera de Relaciones Internacionales | F23: Presencial | G23: 280 | H23: 397 | I23: 525
B24: Sede Central | C24: Facultad de Ciencias Sociales | D24: Pregrado | E24: Carrera de Antropología | F24: Presencial | G24: 182 | H24: 187 | I24: 217
B25: Sede Central | C25: Facultad de Ciencias Sociales | D25: Pregrado | E25: Carrera de Estudios Literarios | F25: Presencial | G25: 219 | H25: 232 | I25: 293
B26: Sede Central | C26: Facultad de Ciencias Sociales | D26: Pregrado | E26: Carrera de Historia | F26: Presencial | G26: 121 | H26: 131 | I26: 172
B27: Sede Central | C27: Facultad de Ciencias Sociales | D27: Pregrado | E27: Carrera de Sociología | F27: Presencial | G27: 101 | H27: 109 | I27: 163
B28: Sede Central | C28: Facultad de Comunicación y Lenguaje | D28: Pregrado | E28: Carrera de Ciencia de la Información-Bibliotecología | F28: Presencial | G28: 206 | H28: 210 | I28: 191
B29: Sede Central | C29: Facultad de Comunicación y Lenguaje | D29: Pregrado | E29: Carrera de Comunicación Social | F29: Presencial | G29: 1613 | H29: 1685 | I29: 1709
B30: Sede Central | C30: Facultad de Comunicación y Lenguaje | D30: Pregrado | E30: Licenciatura en Lenguas Modernas | F30: Presencial | G30: 528 | H30: 560 | I30: 607
B31: Sede Central | C31: Facultad de Educación | D31: Pregrado | E31: Licenciatura en Pedagogía Infantil | F31: Presencial | G31: 199 | H31: 191 | I31: 198
B32: Sede Central | C32: Facultad de Enfermería | D32: Pregrado | E32: Carrera de Enfermería | F32: Presencial | G32: 322 | H32: 335 | I32: 359
B33: Sede Central | C33: Facultad de Estudios Ambientales y Rurales | D33: Pregrado | E33: Carrera de Ecología | F33: Presencial | G33: 244 | H33: 250 | I33: 252
B34: Sede Central | C34: Facultad de Filosofía | D34: Pregrado | E34: Carrera de Filosofía | F34: Presencial | G34: 109 | H34: 114 | I34: 135
B35: Sede Central | C35: Facultad de Filosofía | D35: Pregrado | E35: Licenciatura en Filosofía | F35: Presencial | G35: 36 | H35: 28 | I35: 30
B36: Sede Central | C36: Facultad de Ingeniería | D36: Pregrado | E36: Carrera de Ingeniería Civil | F36: Presencial | G36: 621 | H36: 713 | I36: 836
B37: Sede Central | C37: Facultad de Ingeniería | D37: Pregrado | E37: Carrera de Ingeniería de Sistemas | F37: Presencial | G37: 293 | H37: 311 | I37: 352
B38: Sede Central | C38: Facultad de Ingeniería | D38: Pregrado | E38: Carrera de Ingeniería Electrónica | F38: Presencial | G38: 513 | H38: 510 | I38: 543
B39: Sede Central | C39: Facultad de Ingeniería | D39: Pregrado | E39: Carrera de Ingeniería Industrial | F39: Presencial | G39: 1331 | H39: 1382 | I39: 1366
B40: Sede Central | C40: Facultad de Medicina | D40: Pregrado | E40: Carrera de Medicina | F40: Presencial | G40: 939 | H40: 961 | I40: 992
B41: Sede Central | C41: Facultad de Odontología | D41: Pregrado | E41: Carrera de Odontología | F41: Presencial | G41: 650 | H41: 588 | I41: 550
B42: Sede Central | C42: Facultad de Psicología | D42: Pregrado | E42: Carrera de Psicología | F42: Presencial | G42: 822 | H42: 824 | I42: 920
B43: Sede Central | C43: Facultad de Teología | D43: Pregrado | E43: Carrera de Teología | F43: Presencial | G43: 115 | H43: 96 | I43: 91
B44: Sede Central | C44: Facultad de Teología | D44: Pregrado | E44: Licenciatura en Teología | F44: Presencial | G44: 88 | H44: 80 | I44: 81
B45: Sede Central | C45: Facultad de Arquitectura y Diseño | D45: Posgrado | E45: Especialización en Diseño y Gerencia de Producto para la Exportación | F45: Presencial | G45: 17 | H45: 12 | I45: 16
B46: Sede Central | C46: Facultad de Arquitectura y Diseño | D46: Posgrado | E46: Maestría en Patrimonio Cultural y Territorio | F46: Presencial | G46: 2 | H46: 0 | I46: 0
B47: Sede Central | C47: Facultad de Arquitectura y Diseño | D47: Posgrado | E47: Maestría en Planeación Urbana y Regional | F47: Presencial | G47: 34 | H47: 33 | I47: 34
B48: Sede Central | C48: Facultad de Artes | D48: Posgrado | E48: Especialización en Dirección de Coros Infantiles y Juveniles | F48: Presencial | G48: 23 | H48: 7 | I48: 0
B49: Sede Central | C49: Facultad de Artes | D49: Posgrado | E49: Maestría en Creación Audiovisual | F49: Presencial | G49: 0 | H49: 0 | I49: 20
B50: Sede Central | C50: Facultad de Artes | D50: Posgrado | E50: Maestría en Música | F50: Presencial | G50: 28 | H50: 43 | I50: 47
B51: Sede Central | C51: Facultad de Ciencias | D51: Posgrado | E51: Doctorado en Ciencias Biológicas | F51: Presencial | G51: 42 | H51: 38 | I51: 38
B52: Sede Central | C52: Facultad de Ciencias | D52: Posgrado | E52: Especialización en Análisis Químico Instrumental | F52: Presencial | G52: 10 | H52: 13 | I52: 7
B53: Sede Central | C53: Facultad de Ciencias | D53: Posgrado | E53: Especialización en Hematología en el Laboratorio Clínico y Manejo del Banco de Sangre | F53: Presencial | G53: 9 | H53: 10 | I53: 5
B54: Sede Central | C54: Facultad de Ciencias | D54: Posgrado | E54: Especialización en Microbiología Médica | F54: Presencial | G54: 15 | H54: 7 | I54: 5
B55: Sede Central | C55: Facultad de Ciencias | D55: Posgrado | E55: Maestría en Ciencias Biológicas | F55: Presencial | G55: 48 | H55: 52 | I55: 57
B56: Sede Central | C56: Facultad de Ciencias | D56: Posgrado | E56: Maestría en Física Médica | F56: Presencial | G56: 17 | H56: 21 | I56: 20
B57: Sede Central | C57: Facultad de Ciencias Económicas y Administrativas | D57: Posgrado | E57: Especialización en Administración de Salud con énfasis en Seguridad Social | F57: Presencial | G57: 28 | H57: 19 | I57: 19
B58: Sede Central | C58: Facultad de Ciencias Económicas y Administrativas | D58: Posgrado | E58: Especialización en Aseguramiento y Control Interno | F58: Presencial | G58: 105 | H58: 118 | I58: 123
B59: Sede Central | C59: Facultad de Ciencias Económicas y Administrativas | D59: Posgrado | E59: Especialización en Contabilidad Financiera Internacional | F59: Presencial | G59: 207 | H59: 211 | I59: 215
B60: Sede Central | C60: Facultad de Ciencias Económicas y Administrativas | D60: Posgrado | E60: Especialización en Contabilidad Gerencial | F60: Presencial | G60: 39 | H60: 34 | I60: 24
B61: Sede Central | C61: Facultad de Ciencias Económicas y Administrativas | D61: Posgrado | E61: Especialización en Economía para no Economistas | F61: Presencial | G61: 16 | H61: 21 | I61: 26
B62: Sede Central | C62: Facultad de Ciencias Económicas y Administrativas | D62: Posgrado | E62: Especialización en Gerencia de la Calidad de los Servicios de Salud | F62: Presencial | G62: 38 | H62: 21 | I62: 16
B63: Sede Central | C63: Facultad de Ciencias Económicas y Administrativas | D63: Posgrado | E63: Especialización en Gerencia de Mercadeo | F63: Presencial | G63: 85 | H63: 82 | I63: 66
B64: Sede Central | C64: Facultad de Ciencias Económicas y Administrativas | D64: Posgrado | E64: Especialización en Gerencia del Talento Humano | F64: Presencial | G64: 61 | H64: 63 | I64: 58
B65: Sede Central | C65: Facultad de Ciencias Económicas y Administrativas | D65: Posgrado | E65: Especialización en Gerencia Financiera | F65: Presencial | G65: 62 | H65: 107 | I65: 105
B66: Sede Central | C66: Facultad de Ciencias Económicas y Administrativas | D66: Posgrado | E66: Especialización en Gerencia Hospitalaria | F66: Presencial | G66: 14 | H66: 16 | I66: 12
B67: Sede Central | C67: Facultad de Ciencias Económicas y Administrativas | D67: Posgrado | E67: Especialización en Gerencia Internacional | F67: Presencial | G67: 35 | H67: 34 | I67: 35
B68: Sede Central | C68: Facultad de Ciencias Económicas y Administrativas | D68: Posgrado | E68: Especialización en Gestión Tecnológica | F68: Presencial | G68: 25 | H68: 16 | I68: 7
B69: Sede Central | C69: Facultad de Ciencias Económicas y Administrativas | D69: Posgrado | E69: Maestría en Gerencia de la Responsabilidad Social y Sostenibilidad Empresarial | F69: Presencial | G69: 0 | H69: 0 | I69: 7
B70: Sede Central | C70: Facultad de Ciencias Económicas y Administrativas | D70: Posgrado | E70: Especialización en Revisoría Fiscal | F70: Presencial | G70: 18 | H70: 16 | I70: 32
B71: Sede Central | C71: Facultad de Ciencias Económicas y Administrativas | D71: Posgrado | E71: Maestría en Administración | F71: Presencial | G71: 77 | H71: 102 | I71: 117
B72: Sede Central | C72: Facultad de Ciencias Económicas y Administrativas | D72: Posgrado | E72: Maestría en Administración de Salud | F72: Presencial | G72: 30 | H72: 26 | I72: 19
B73: Sede Central | C73: Facultad de Ciencias Económicas y Administrativas | D73: Posgrado | E73: Maestría en Economía | F73: Presencial | G73: 87 | H73: 70 | I73: 50
B74: Sede Central | C74: Facultad de Ciencias Económicas y Administrativas | D74: Posgrado | E74: Maestría en Salud Pública | F74: Presencial | G74: 23 | H74: 14 | I74: 17
B75: Sede Central | C75: Facultad de Ciencias Jurídicas | D75: Posgrado | E75: Doctorado en Ciencias Jurídicas | F75: Presencial | G75: 17 | H75: 18 | I75: 14
B76: Sede Central | C76: Facultad de Ciencias Jurídicas | D76: Posgrado | E76: Especialización en Derecho Administrativo | F76: Presencial | G76: 87 | H76: 75 | I76: 78
B77: Sede Central | C77: Facultad de Ciencias Jurídicas | D77: Posgrado | E77: Especialización en Derecho Comercial | F77: Presencial | G77: 68 | H77: 57 | I77: 65
B78: Sede Central | C78: Facultad de Ciencias Jurídicas | D78: Posgrado | E78: Especialización en Derecho de Familia | F78: Presencial | G78: 0 | H78: 5 | I78: 0
B79: Sede Central | C79: Facultad de Ciencias Jurídicas | D79: Posgrado | E79: Especialización en Derecho de la Competencia y del Libre Comercio | F79: Presencial | G79: 6 | H79: 9 | I79: 11
B80: Sede Central | C80: Facultad de Ciencias Jurídicas | D80: Posgrado | E80: Especialización en Derecho de la Seguridad Social | F80: Presencial | G80: 12 | H80: 15 | I80: 16
B81: Sede Central | C81: Facultad de Ciencias Jurídicas | D81: Posgrado | E81: Especialización en Derecho de Seguros | F81: Presencial | G81: 59 | H81: 32 | I81: 30
B82: Sede Central | C82: Facultad de Ciencias Jurídicas | D82: Posgrado | E82: Especialización en Derecho de Sociedades | F82: Presencial | G82: 12 | H82: 12 | I82: 15
B83: Sede Central | C83: Facultad de Ciencias Jurídicas | D83: Posgrado | E83: Especialización en Derecho del Mercado de Capitales | F83: Presencial | G83: 15 | H83: 10 | I83: 14
B84: Sede Central | C84: Facultad de Ciencias Jurídicas | D84: Posgrado | E84: Especialización en Derecho Laboral | F84: Presencial | G84: 31 | H84: 37 | I84: 50
B85: Sede Central | C85: Facultad de Ciencias Jurídicas | D85: Posgrado | E85: Especialización en Derecho Médico | F85: Presencial | G85: 10 | H85: 12 | I85: 0
B86: Sede Central | C86: Facultad de Ciencias Jurídicas | D86: Posgrado | E86: Especialización en Derecho Sustantivo y Contencioso Constitucional | F86: Presencial | G86: 17 | H86: 17 | I86: 15
B87: Sede Central | C87: Facultad de Ciencias Jurídicas | D87: Posgrado | E87: Especialización en Derecho Tributario | F87: Presencial | G87: 30 | H87: 58 | I87: 56
B88: Sede Central | C88: Facultad de Ciencias Jurídicas | D88: Posgrado | E88: Especialización en Derecho Urbanístico | F88: Presencial | G88: 21 | H88: 28 | I88: 17
B89: Sede Central | C89: Facultad de Ciencias Jurídicas | D89: Posgrado | E89: Maestría en Derecho de Seguros | F89: Presencial | G89: 6 | H89: 0 | I89: 0
B90: Sede Central | C90: Facultad de Ciencias Jurídicas | D90: Posgrado | E90: Maestría en Derecho Económico | F90: Presencial | G90: 23 | H90: 28 | I90: 27
B91: Sede Central | C91: Facultad de Ciencias Jurídicas | D91: Posgrado | E91: Maestría en Derecho Administrativo | F91: Presencial | G91: 0 | H91: 0 | I91: 27
B92: Sede Central | C92: Facultad de Ciencias Jurídicas | D92: Posgrado | E92: Maestría en Derecho Constitucional | F92: Presencial | G92: 0 | H92: 0 | I92: 26
B93: Sede Central | C93: Facultad de Ciencias Políticas y Relaciones Internacionales | D93: Posgrado | E93: Especialización en Gobierno y Gestión Pública Territoriales | F93: Presencial | G93: 52 | H93: 50 | I93: 68
B94: Sede Central | C94: Facultad de Ciencias Políticas y Relaciones Internacionales | D94: Posgrado | E94: Especialización en Opinión Pública y Mercadeo Político | F94: Presencial | G94: 27 | H94: 35 | I94: 18
B95: Sede Central | C95: Facultad de Ciencias Políticas y Relaciones Internacionales | D95: Posgrado | E95: Especialización en Resolución de Conflictos | F95: Presencial | G95: 27 | H95: 42 | I95: 29
B96: Sede Central | C96: Facultad de Ciencias Políticas y Relaciones Internacionales | D96: Posgrado | E96: Maestría en Estudios de Paz y Resolución de Conflictos | F96: Presencial | G96: 0 | H96: 0 | I96: 68
B97: Sede Central | C97: Facultad de Ciencias Políticas y Relaciones Internacionales | D97: Posgrado | E97: Maestría en Gobierno del Territorio y Gestión Pública | F97: Presencial | G97: 0 | H97: 0 | I97: 17
B98: Sede Central | C98: Facultad de Ciencias Políticas y Relaciones Internacionales | D98: Posgrado | E98: Maestría en Estudios Latinoamericanos | F98: Presencial | G98: 21 | H98: 14 | I98: 8
B99: Sede Central | C99: Facultad de Ciencias Políticas y Relaciones Internacionales | D99: Posgrado | E99: Maestría en Estudios Políticos | F99: Presencial | G99: 65 | H99: 51 | I99: 44
B100: Sede Central | C100: Facultad de Ciencias Políticas y Relaciones Internacionales | D100: Posgrado | E100: Maestría en Política Social | F100: Presencial | G100: 62 | H100: 56 | I100: 54
B101: Sede Central | C101: Facultad de Ciencias Políticas y Relaciones Internacionales | D101: Posgrado | E101: Maestría en Relaciones Internacionales | F101: Presencial | G101: 44 | H101: 42 | I101: 43
B102: Sede Central | C102: Facultad de Ciencias Sociales | D102: Posgrado | E102: Doctorado en Ciencias Sociales y Humanas | F102: Presencial | G102: 43 | H102: 38 | I102: 38
B103: Sede Central | C103: Facultad de Ciencias Sociales | D103: Posgrado | E103: Maestría en Estudios Culturales | F103: Presencial | G103: 60 | H103: 49 | I103: 49
B104: Sede Central | C104: Facultad de Ciencias Sociales | D104: Posgrado | E104: Maestría en Historia | F104: Presencial | G104: 38 | H104: 33 | I104: 27
B105: Sede Central | C105: Facultad de Ciencias Sociales | D105: Posgrado | E105: Maestría en Literatura | F105: Presencial | G105: 59 | H105: 56 | I105: 44
B106: Sede Central | C106: Facultad de Comunicación y Lenguaje | D106: Posgrado | E106: Especialización en Comunicación Organizacional | F106: Presencial | G106: 37 | H106: 37 | I106: 28
B107: Sede Central | C107: Facultad de Comunicación y Lenguaje | D107: Posgrado | E107: Especialización en Televisión | F107: Presencial | G107: 15 | H107: 17 | I107: 13
B108: Sede Central | C108: Facultad de Comunicación y Lenguaje | D108: Posgrado | E108: Maestría en Comunicación | F108: Presencial | G108: 28 | H108: 27 | I108: 18
B109: Sede Central | C109: Facultad de Comunicación y Lenguaje | D109: Posgrado | E109: Maestría en Archivística Histórica y Memoria | F109: Presencial | G109: 0 | H109: 0 | I109: 17
B110: Sede Central | C110: Facultad de Comunicación y Lenguaje | D110: Posgrado | E110: Maestría en Lingüística Aplicada del Español como Lengua Extranjera | F110: Presencial | G110: 86 | H110: 67 | I110: 61
B111: Sede Central | C111: Facultad de Derecho Canónico | D111: Posgrado | E111: Doctorado en Derecho Canónico | F111: Presencial | G111: 4 | H111: 7 | I111: 8
B112: Sede Central | C112: Facultad de Derecho Canónico | D112: Posgrado | E112: Maestría en Derecho Canónico | F112: Presencial | G112: 18 | H112: 19 | I112: 21
B113: Sede Central | C113: Facultad de Educación | D113: Posgrado | E113: Maestría en Educación | F113: Presencial | G113: 410 | H113: 435 | I113: 479
B114: Sede Central | C114: Facultad de Enfermería | D114: Posgrado | E114: Especialización en Enfermería en Cuidado Crítico | F114: Presencial | G114: 21 | H114: 18 | I114: 25
B115: Sede Central | C115: Facultad de Enfermería | D115: Posgrado | E115: Especialización en Enfermería Oncológica | F115: Presencial | G115: 27 | H115: 16 | I115: 0
B116: Sede Central | C116: Facultad de Enfermería | D116: Posgrado | E116: Especialización en Enfermería Pediátrica | F116: Presencial | G116: 0 | H116: 5 | I116: 6
B117: Sede Central | C117: Facultad de Enfermería | D117: Posgrado | E117: Especialización en Salud Ocupacional | F117: Presencial | G117: 57 | H117: 59 | I117: 53
B118: Sede Central | C118: Facultad de Enfermería | D118: Posgrado | E118: Maestría en Cuidado De Enfermería al Adulto Mayor | F118: Presencial | G118: 0 | H118: 0 | I118: 4
B119: Sede Central | C119: Facultad de Estudios Ambientales y Rurales | D119: Posgrado | E119: Doctorado en Estudios Ambientales y Rurales | F119: Presencial | G119: 12 | H119: 18 | I119: 21
B120: Sede Central | C120: Facultad de Estudios Ambientales y Rurales | D120: Posgrado | E120: Especialización en Gestión de Empresas del Sector Solidario | F120: Presencial | G120: 7 | H120: 9 | I120: 0
B121: Sede Central | C121: Facultad de Estudios Ambientales y Rurales | D121: Posgrado | E121: Maestría en Conservación y Uso de Biodiversidad | F121: Presencial | G121: 46 | H121: 49 | I121: 64
B122: Sede Central | C122: Facultad de Estudios Ambientales y Rurales | D122: Posgrado | E122: Maestría en Desarrollo Rural | F122: Presencial | G122: 101 | H122: 82 | I122: 79
B123: Sede Central | C123: Facultad de Estudios Ambientales y Rurales | D123: Posgrado | E123: Maestría en Gestión Ambiental | F123: Presencial | G123: 83 | H123: 70 | I123: 73
B124: Sede Central | C124: Facultad de Filosofía | D124: Posgrado | E124: Doctorado en Filosofía | F124: Presencial | G124: 9 | H124: 8 | I124: 7
B125: Sede Central | C125: Facultad de Filosofía | D125: Posgrado | E125: Maestría en Filosofía | F125: Presencial | G125: 41 | H125: 42 | I125: 24
B126: Sede Central | C126: Facultad de Ingeniería | D126: Posgrado | E126: Doctorado en Ingeniería | F126: Presencial | G126: 43 | H126: 53 | I126: 64
B127: Sede Central | C127: Facultad de Ingeniería | D127: Posgrado | E127: Especialización en Arquitectura Empresarial de Software | F127: Presencial | G127: 40 | H127: 43 | I127: 73
B128: Sede Central | C128: Facultad de Ingeniería | D128: Posgrado | E128: Especialización en Geotecnia Vial y Pavimentos | F128: Presencial | G128: 36 | H128: 39 | I128: 42
B129: Sede Central | C129: Facultad de Ingeniería | D129: Posgrado | E129: Especialización en Gerencia de Construcciones | F129: Presencial | G129: 61 | H129: 78 | I129: 59
B130: Sede Central | C130: Facultad de Ingeniería | D130: Posgrado | E130: Especialización en Ingeniería de Operaciones en Manufactura y Servicios | F130: Presencial | G130: 32 | H130: 30 | I130: 30
B131: Sede Central | C131: Facultad de Ingeniería | D131: Posgrado | E131: Especialización en Sistemas Gerenciales de Ingeniería | F131: Presencial | G131: 33 | H131: 31 | I131: 60
B132: Sede Central | C132: Facultad de Ingeniería | D132: Posgrado | E132: Especialización en Tecnología de la Construcción en Edificaciones | F132: Presencial | G132: 33 | H132: 28 | I132: 42
B133: Sede Central | C133: Facultad de Ingeniería | D133: Posgrado | E133: Maestría en Hidrosistemas | F133: Presencial | G133: 22 | H133: 26 | I133: 23
B134: Sede Central | C134: Facultad de Ingeniería | D134: Posgrado | E134: Maestría en Ingeniería Civil | F134: Presencial | G134: 93 | H134: 87 | I134: 104
B135: Sede Central | C135: Facultad de Ingeniería | D135: Posgrado | E135: Maestría en Ingeniería de Sistemas y Computación | F135: Presencial | G135: 62 | H135: 58 | I135: 46
B136: Sede Central | C136: Facultad de Ingeniería | D136: Posgrado | E136: Maestría en Ingeniería Electrónica | F136: Presencial | G136: 65 | H136: 64 | I136: 59
B137: Sede Central | C137: Facultad de Ingeniería | D137: Posgrado | E137: Maestría en Ingeniería Industrial | F137: Presencial | G137: 40 | H137: 39 | I137: 43
B138: Sede Central | C138: Facultad de Ingeniería | D138: Posgrado | E138: Maestría en Analítica Inteligencia de Negocios | F138: Presencial | G138: 0 | H138: 0 | I138: 18
B139: Sede Central | C139: Facultad de Ingeniería | D139: Posgrado | E139: Maestría en Bioingeniería | F139: Presencial | G139: 0 | H139: 0 | I139: 4
B140: Sede Central | C140: Facultad de Medicina | D140: Posgrado | E140: Doctorado en Epidemiología Clínica | F140: Presencial | G140: 0 | H140: 0 | I140: 5
B141: Sede Central | C141: Facultad de Medicina | D141: Posgrado | E141: Especialización en Anestesiología | F141: Presencial | G141: 18 | H141: 18 | I141: 18
B142: Sede Central | C142: Facultad de Medicina | D142: Posgrado | E142: Especialización en Cardiología | F142: Presencial | G142: 5 | H142: 6 | I142: 7
B143: Sede Central | C143: Facultad de Medicina | D143: Posgrado | E143: Especialización en Cirugía Cardiovascular | F143: Presencial | G143: 2 | H143: 2 | I143: 2
B144: Sede Central | C144: Facultad de Medicina | D144: Posgrado | E144: Especialización en Cirugía General | F144: Presencial | G144: 22 | H144: 25 | I144: 21
B145: Sede Central | C145: Facultad de Medicina | D145: Posgrado | E145: Especialización en Cirugía Maxilofacial | F145: Presencial | G145: 0 | H145: 16 | I145: 15
B146: Sede Central | C146: Facultad de Medicina | D146: Posgrado | E146: Especialización en Cirugía Plástica | F146: Presencial | G146: 8 | H146: 8 | I146: 7
B147: Sede Central | C147: Facultad de Medicina | D147: Posgrado | E147: Especialización en Electrofisiología Clínica, Estimulación y Arritmias Cardiacas | F147: Presencial | G147: 2 | H147: 0 | I147: 0
B148: Sede Central | C148: Facultad de Medicina | D148: Posgrado | E148: Especialización en Endocrinología | F148: Presencial | G148: 4 | H148: 4 | I148: 4
B149: Sede Central | C149: Facultad de Medicina | D149: Posgrado | E149: Especialización en Gastroenterología y Endoscopia Digestiva | F149: Presencial | G149: 6 | H149: 8 | I149: 8
B150: Sede Central | C150: Facultad de Medicina | D150: Posgrado | E150: Especialización en Genética Médica | F150: Presencial | G150: 6 | H150: 6 | I150: 5
B151: Sede Central | C151: Facultad de Medicina | D151: Posgrado | E151: Especialización en Geriatría | F151: Presencial | G151: 17 | H151: 21 | I151: 20
B152: Sede Central | C152: Facultad de Medicina | D152: Posgrado | E152: Especialización en Ginecología y Obstetricia | F152: Presencial | G152: 16 | H152: 17 | I152: 16
B153: Sede Central | C153: Facultad de Medicina | D153: Posgrado | E153: Especialización en Hemodinamia y Cardiología Intervencionista | F153: Presencial | G153: 2 | H153: 2 | I153: 2
B154: Sede Central | C154: Facultad de Medicina | D154: Posgrado | E154: Especialización en Medicina Crítica y Cuidado Intensivo | F154: Presencial | G154: 4 | H154: 1 | I154: 2
B155: Sede Central | C155: Facultad de Medicina | D155: Posgrado | E155: Especialización en Medicina de Urgencias | F155: Presencial | G155: 18 | H155: 18 | I155: 19
B156: Sede Central | C156: Facultad de Medicina | D156: Posgrado | E156: Especialización en Medicina Familiar | F156: Presencial | G156: 18 | H156: 19 | I156: 22
B157: Sede Central | C157: Facultad de Medicina | D157: Posgrado | E157: Especialización en Medicina Interna | F157: Presencial | G157: 40 | H157: 42 | I157: 49
B158: Sede Central | C158: Facultad de Medicina | D158: Posgrado | E158: Especialización en Nefrología | F158: Presencial | G158: 3 | H158: 4 | I158: 4
B159: Sede Central | C159: Facultad de Medicina | D159: Posgrado | E159: Especialización en Neumología | F159: Presencial | G159: 1 | H159: 2 | I159: 3
B160: Sede Central | C160: Facultad de Medicina | D160: Posgrado | E160: Especialización en Neurocirugía | F160: Presencial | G160: 6 | H160: 6 | I160: 5
B161: Sede Central | C161: Facultad de Medicina | D161: Posgrado | E161: Especialización en Neurología | F161: Presencial | G161: 10 | H161: 8 | I161: 8
B162: Sede Central | C162: Facultad de Medicina | D162: Posgrado | E162: Especialización en Oftalmología | F162: Presencial | G162: 4 | H162: 5 | I162: 6
B163: Sede Central | C163: Facultad de Medicina | D163: Posgrado | E163: Especialización en Ortopedia Infantil | F163: Presencial | G163: 2 | H163: 1 | I163: 1
B164: Sede Central | C164: Facultad de Medicina | D164: Posgrado | E164: Especialización en Ortopedia y Traumatología | F164: Presencial | G164: 22 | H164: 24 | I164: 26
B165: Sede Central | C165: Facultad de Medicina | D165: Posgrado | E165: Especialización en Otorrinolaringología | F165: Presencial | G165: 6 | H165: 6 | I165: 6
B166: Sede Central | C166: Facultad de Medicina | D166: Posgrado | E166: Especialización en Patología | F166: Presencial | G166: 6 | H166: 6 | I166: 6
B167: Sede Central | C167: Facultad de Medicina | D167: Posgrado | E167: Especialización en Pediatría | F167: Presencial | G167: 36 | H167: 34 | I167: 48
B168: Sede Central | C168: Facultad de Medicina | D168: Posgrado | E168: Especialización en Psiquiatría de Enlace | F168: Presencial | G168: 7 | H168: 4 | I168: 3
B169: Sede Central | C169: Facultad de Medicina | D169: Posgrado | E169: Especialización en Psiquiatría de Niños y Adolescentes | F169: Presencial | G169: 1 | H169: 3 | I169: 7
B170: Sede Central | C170: Facultad de Medicina | D170: Posgrado | E170: Especialización en Psiquiatría General | F170: Presencial | G170: 31 | H170: 28 | I170: 30
B171: Sede Central | C171: Facultad de Medicina | D171: Posgrado | E171: Especialización en Radiología | F171: Presencial | G171: 20 | H171: 18 | I171: 17
B172: Sede Central | C172: Facultad de Medicina | D172: Posgrado | E172: Especialización en Urología | F172: Presencial | G172: 8 | H172: 8 | I172: 8
B173: Sede Central | C173: Facultad de Medicina | D173: Posgrado | E173: Maestría en Epidemiología Clínica | F173: Presencial | G173: 29 | H173: 19 | I173: 19
B174: Sede Central | C174: Facultad de Medicina | D174: Posgrado | E174: Maestría en Bioestadística | F174: Presencial | G174: 0 | H174: 0 | I174: 2
B175: Sede Central | C175: Facultad de Odontología | D175: Posgrado | E175: Especialización en Cirugía Maxilofacial | F175: Presencial | G175: 22 | H175: 0 | I175: 0
B176: Sede Central | C176: Facultad de Odontología | D176: Posgrado | E176: Especialización en Endodoncia | F176: Presencial | G176: 14 | H176: 16 | I176: 10
B177: Sede Central | C177: Facultad de Odontología | D177: Posgrado | E177: Especialización en Odontopediatría | F177: Presencial | G177: 7 | H177: 9 | I177: 9
B178: Sede Central | C178: Facultad de Odontología | D178: Posgrado | E178: Especialización en Ortodoncia | F178: Presencial | G178: 31 | H178: 29 | I178: 24
B179: Sede Central | C179: Facultad de Odontología | D179: Posgrado | E179: Especialización en Patología y Cirugía Bucal | F179: Presencial | G179: 18 | H179: 20 | I179: 21
B180: Sede Central | C180: Facultad de Odontología | D180: Posgrado | E180: Especialización en Periodoncia | F180: Presencial | G180: 23 | H180: 24 | I180: 22
B181: Sede Central | C181: Facultad de Odontología | D181: Posgrado | E181: Especialización en Rehabilitación Oral | F181: Presencial | G181: 30 | H181: 25 | I181: 29
B182: Sede Central | C182: Facultad de Psicología | D182: Posgrado | E182: Especialización en Terapia Sistémica | F182: Presencial | G182: 2 | H182: 0 | I182: 0
B183: Sede Central | C183: Facultad de Psicología | D183: Posgrado | E183: Maestría en Psicología Clínica | F183: Presencial | G183: 71 | H183: 49 | I183: 35
B184: Sede Central | C184: Facultad de Teología | D184: Posgrado | E184: Doctorado en Teología | F184: Presencial | G184: 14 | H184: 10 | I184: 13
B185: Sede Central | C185: Facultad de Teología | D185: Posgrado | E185: Maestría en Teología | F185: Presencial | G185: 29 | H185: 26 | I185: 18
B186: Sede Central | C186: Instituto de Bioética | D186: Posgrado | E186: Maestría en Bioética | F186: Presencial | G186: 36 | H186: 32 | I186: 29
B187: Sede Central | C187: Facultad de Teología | D187: Pregrado | E187: Licenciatura en Ciencias Religiosas | F187: Virtual | G187: 114 | H187: 142 | I187: 128
B188: Seccional Cali | C188: Facultad de Ciencias de la Salud | D188: Pregrado | E188: Carrera de Medicina | F188: Presencial | G188: 583 | H188: 684 | I188: 764
B189: Seccional Cali | C189: Facultad de Ciencias Económicas y Administrativas | D189: Pregrado | E189: Carrera de Administración de Empresas | F189: Presencial | G189: 1117 | H189: 1060 | I189: 1019
B190: Seccional Cali | C190: Facultad de Ciencias Económicas y Administrativas | D190: Pregrado | E190: Carrera de Contaduría Pública | F190: Presencial | G190: 244 | H190: 209 | I190: 188
B191: Seccional Cali | C191: Facultad de Ciencias Económicas y Administrativas | D191: Pregrado | E191: Carrera de Economía | F191: Presencial | G191: 260 | H191: 257 | I191: 246
B192: Seccional Cali | C192: Facultad de Ciencias Económicas y Administrativas | D192: Pregrado | E192: Carrera de Negocios Internacionales | F192: Presencial | G192: 202 | H192: 313 | I192: 389
B193: Seccional Cali | C193: Facultad de Humanidades y Ciencias Sociales | D193: Pregrado | E193: Carrera de Arquitectura | F193: Presencial | G193: 256 | H193: 318 | I193: 356
B194: Seccional Cali | C194: Facultad de Humanidades y Ciencias Sociales | D194: Pregrado | E194: Carrera de Artes Visuales | F194: Presencial | G194: 157 | H194: 164 | I194: 159
B195: Seccional Cali | C195: Facultad de Humanidades y Ciencias Sociales | D195: Pregrado | E195: Carrera de Ciencia Política | F195: Presencial | G195: 133 | H195: 165 | I195: 181
B196: Seccional Cali | C196: Facultad de Humanidades y Ciencias Sociales | D196: Pregrado | E196: Carrera de Comunicación | F196: Presencial | G196: 263 | H196: 246 | I196: 265
B197: Seccional Cali | C197: Facultad de Humanidades y Ciencias Sociales | D197: Pregrado | E197: Carrera de Derecho | F197: Presencial | G197: 637 | H197: 671 | I197: 757
B198: Seccional Cali | C198: Facultad de Humanidades y Ciencias Sociales | D198: Pregrado | E198: Carrera de Diseño de Comunicación Visual | F198: Presencial | G198: 292 | H198: 282 | I198: 261
B199: Seccional Cali | C199: Facultad de Humanidades y Ciencias Sociales | D199: Pregrado | E199: Carrera de Filosofía | F199: Presencial | G199: 24 | H199: 29 | I199: 36
B200: Seccional Cali | C200: Facultad de Humanidades y Ciencias Sociales | D200: Pregrado | E200: Carrera de Psicología | F200: Presencial | G200: 421 | H200: 455 | I200: 519
B201: Seccional Cali | C201: Facultad de Ingeniería | D201: Pregrado | E201: Carrera de Biología | F201: Presencial | G201: 67 | H201: 88 | I201: 123
B202: Seccional Cali | C202: Facultad de Ingeniería | D202: Pregrado | E202: Carrera de Ingeniería Civil | F202: Presencial | G202: 485 | H202: 554 | I202: 631
... 44 more rows

Sheet TABLA B-5
B2: =+CONCATENATE("<< Tabla B-",RIGHT(B4,1)-1) -> << Tabla B-4 | C2: =+CONCATENATE("Tabla B-",RIGHT(B4,1)+1," >>") -> Tabla B-6 >>
B4: =+(MID(ÍNDICE!C24,1,9)) -> Tabla B-5
A5: Estudiantes | B5: Estudiantes matriculados en dos o más programas académicos de pregrado según programa principal por facultad. Sede Central y Seccional Cali.
B6: Fuente: Sistema de Administración de Estudiantes SIU-SAE. Procesamiento de la Oficina de Admisiones y Registro Académico, Rectoría, Sede Central. Oficina de Registro Académico, Vicerrectoría Académica, Seccional Cali.
B7: Nota: Corresponde a los estudiantes matriculados en el segundo periodo académico semestral del año.
B8: Sede | C8: 2016 | D8: 2015 | E8: 2014 | F8: 2013 | G8: 2012 | H8: 2011
B9: Sede Central | C9: 950 | D9: 915 | E9: 870 | F9: 816 | G9: 687 | H9: 479
B10: Seccional Cali | C10: 185 | D10: 224 | E10: 154 | F10: 141 | G10: 149 | H10: --
B11: Total general | C11: 1135 | D11: 1139 | E11: 1024 | F11: 957 | G11: 836 | H11: 479

Sheet F-TABLA B-5 (hidden)
B1: Tabla B-5. Estudiantes matriculados en dos o más programas académicos de pregrado según programa principal por facultad. Sede Central y Seccional Cali.
B3: Fuente: Sistema de Administración de Estudiantes SIU-SAE. Procesamiento de la Oficina de Admisiones y Registro Académico, Rectoría, Sede Central. Oficina de Registro Académico, Vicerrectoría Académica, Seccional Cali.
B4: Nota: Corresponde a los estudiantes matriculados en el segundo periodo académico semestral del año.
B6: SEDE | C6: FACULTAD | D6: PROGRAMA ACADÉMICO | E6: 2011 | F6: 2012 | G6: 2013 | H6: 2014 | I6: 2015 | J6: 2016
B7: Sede Central | C7: Facultad de Arquitectura y Diseño | D7: Carrera de Arquitectura | E7: 18 | F7: 26 | G7: 33 | H7: 33 | I7: 24 | J7: 28
B8: Sede Central | C8: Facultad de Arquitectura y Diseño | D8: Carrera de Diseño Industrial | E8: 35 | F8: 59 | G8: 68 | H8: 76 | I8: 82 | J8: 64
B9: Sede Central | C9: Facultad de Artes | D9: Carrera de Artes Escénicas | I9: 3 | J9: 7
B10: Sede Central | C10: Facultad de Artes | D10: Carrera de Artes Visuales | E10: 15 | F10: 23 | G10: 29 | H10: 37 | I10: 36 | J10: 33
B11: Sede Central | C11: Facultad de Artes | D11: Carrera de Estudios Musicales | E11: 2 | F11: 12 | G11: 20 | H11: 25 | I11: 25 | J11: 19
B12: Sede Central | C12: Facultad de Ciencias | D12: Carrera de Bacteriología | E12: 9 | F12: 15 | G12: 13 | H12: 14 | I12: 8 | J12: 7
B13: Sede Central | C13: Facultad de Ciencias | D13: Carrera de Biología | E13: 19 | F13: 25 | G13: 21 | H13: 28 | I13: 27 | J13: 26
B14: Sede Central | C14: Facultad de Ciencias | D14: Carrera de Informática Matemática | E14: 2 | G14: 0 | H14: 0 | I14: 0 | J14: 0
B15: Sede Central | C15: Facultad de Ciencias | D15: Carrera de Matemáticas | E15: 2 | F15: 4 | G15: 2 | H15: 1 | I15: 1 | J15: 0
B16: Sede Central | C16: Facultad de Ciencias | D16: Carrera de Microbiología Agrícola y Veterinaria | E16: 5 | F16: 3 | G16: 3 | H16: 1 | I16: 0 | J16: 0
B17: Sede Central | C17: Facultad de Ciencias | D17: Carrera de Microbiología Industrial | E17: 39 | F17: 38 | G17: 36 | H17: 20 | I17: 12 | J17: 11
B18: Sede Central | C18: Facultad de Ciencias | D18: Carrera de Nutrición y Dietética | E18: 2 | F18: 4 | G18: 7 | H18: 6 | I18: 3 | J18: 2
B19: Sede Central | C19: Facultad de Ciencias Económicas y Administrativas | D19: Carrera de Administración de Empresas | E19: 32 | F19: 41 | G19: 50 | H19: 50 | I19: 46 | J19: 45
B20: Sede Central | C20: Facultad de Ciencias Económicas y Administrativas | D20: Carrera de Contaduría Pública | E20: 4 | F20: 7 | G20: 8 | H20: 10 | I20: 6 | J20: 12
B21: Sede Central | C21: Facultad de Ciencias Económicas y Administrativas | D21: Carrera de Economía | E21: 24 | F21: 26 | G21: 24 | H21: 22 | I21: 24 | J21: 20
B22: Sede Central | C22: Facultad de Ciencias Jurídicas | D22: Carrera de Derecho | E22: 20 | F22: 20 | G22: 25 | H22: 30 | I22: 34 | J22: 39
B23: Sede Central | C23: Facultad de Ciencias Políticas y Relaciones Internacionales | D23: Carrera de Ciencia Política | E23: 35 | F23: 54 | G23: 76 | H23: 47 | I23: 39 | J23: 43
B24: Sede Central | C24: Facultad de Ciencias Políticas y Relaciones Internacionales | D24: Carrera de Relaciones Internacionales | F24: 6 | G24: 16 | H24: 32 | I24: 42 | J24: 44
B25: Sede Central | C25: Facultad de Ciencias Sociales | D25: Carrera de Antropología | E25: 3 | F25: 7 | G25: 5 | H25: 9 | I25: 9 | J25: 12
B26: Sede Central | C26: Facultad de Ciencias Sociales | D26: Carrera de Estudios Literarios | E26: 9 | F26: 14 | G26: 15 | H26: 24 | I26: 29 | J26: 35
B27: Sede Central | C27: Facultad de Ciencias Sociales | D27: Carrera de Historia | E27: 3 | F27: 6 | G27: 10 | H27: 11 | I27: 14 | J27: 18
B28: Sede Central | C28: Facultad de Ciencias Sociales | D28: Carrera de Sociología | E28: 6 | F28: 7 | G28: 8 | H28: 9 | I28: 4 | J28: 6
B29: Sede Central | C29: Facultad de Comunicación y Lenguaje | D29: Carrera de Comunicación Social | E29: 74 | F29: 116 | G29: 150 | H29: 164 | I29: 211 | J29: 242
B30: Sede Central | C30: Facultad de Comunicación y Lenguaje | D30: Carrera de Ciencia de la Información y Bibliotecología | H30: 1 | I30: 3 | J30: 3
B31: Sede Central | C31: Facultad de Comunicación y Lenguaje | D31: Licenciatura en Lenguas Modernas | E31: 7 | F31: 18 | G31: 19 | H31: 24 | I31: 35 | J31: 26
B32: Sede Central | C32: Facultad de Educación | D32: Licenciatura en Educación Básica con énfasis en Humanidades y Lengua Castellana | E32: 1 | F32: 1 | G32: 1 | H32: 0 | I32: 2 | J32: 1
B33: Sede Central | C33: Facultad de Educación | D33: Licenciatura en Pedagogía Infantil | E33: 2 | F33: 4 | G33: 8 | H33: 7 | I33: 7 | J33: 6
B34: Sede Central | C34: Facultad de Enfermería | D34: Carrera de Enfermería | E34: 2 | G34: 2 | H34: 0 | I34: 0 | J34: 1
B35: Sede Central | C35: Facultad de Estudios Ambientales y Rurales | D35: Carrera de Ecología | E35: 5 | F35: 18 | G35: 16 | H35: 20 | I35: 18 | J35: 18
B36: Sede Central | C36: Facultad de Filosofía | D36: Carrera de Filosofía | E36: 7 | F36: 8 | G36: 6 | H36: 8 | I36: 11 | J36: 9
B37: Sede Central | C37: Facultad de Filosofía | D37: Licenciatura en Filosofía | E37: 1 | F37: 1 | G37: 0 | H37: 0 | I37: 0 | J37: 0
B38: Sede Central | C38: Facultad de Ingeniería | D38: Carrera de Ingeniería Civil | E38: 7 | F38: 14 | G38: 9 | H38: 9 | I38: 11 | J38: 11
B39: Sede Central | C39: Facultad de Ingeniería | D39: Carrera de Ingeniería de Sistemas | E39: 11 | F39: 14 | G39: 15 | H39: 19 | I39: 19 | J39: 19
B40: Sede Central | C40: Facultad de Ingeniería | D40: Carrera de Ingeniería Electrónica | E40: 19 | F40: 31 | G40: 41 | H40: 45 | I40: 34 | J40: 38
B41: Sede Central | C41: Facultad de Ingeniería | D41: Carrera de Ingeniería Industrial | E41: 34 | F41: 32 | G41: 37 | H41: 37 | I41: 43 | J41: 47
B42: Sede Central | C42: Facultad de Medicina | D42: Carrera de Medicina | F42: 1 | G42: 0 | H42: 2 | I42: 3 | J42: 1
B43: Sede Central | C43: Facultad de Odontología | D43: Carrera de Odontología | E43: 1 | F43: 1 | G43: 3 | H43: 2 | I43: 1 | J43: 1
B44: Sede Central | C44: Facultad de Psicología | D44: Carrera de Psicología | E44: 22 | F44: 26 | G44: 36 | H44: 46 | I44: 43 | J44: 46
B45: Sede Central | C45: Facultad de Teología | D45: Carrera de Teología | E45: 1 | F45: 1 | G45: 2 | H45: 1 | I45: 1 | J45: 5
B46: Sede Central | C46: Facultad de Teología | D46: Licenciatura en Ciencias Religiosas | I46: 1 | J46: 0
B47: Sede Central | C47: Facultad de Teología | D47: Licenciatura en Teología | E47: 1 | F47: 4 | G47: 2 | H47: 0 | I47: 4 | J47: 5
B48: Seccional Cali | C48: Facultad de Ciencias Económicas y Administrativas | D48: Carrera de Administración de Empresas | F48: 30 | G48: 24 | H48: 20 | I48: 27 | J48: 12
B49: Seccional Cali | C49: Facultad de Ciencias Económicas y Administrativas | D49: Carrera de Contaduría Pública | F49: 6 | G49: 11 | H49: 12 | I49: 22 | J49: 9
B50: Seccional Cali | C50: Facultad de Ciencias Económicas y Administrativas | D50: Carrera de Economía | F50: 11 | G50: 15 | H50: 18 | I50: 1 | J50: 2
B51: Seccional Cali | C51: Facultad de Ciencias Económicas y Administrativas | D51: Carrera de Negocios Internacionales | I51: 5 | J51: 6
B52: Seccional Cali | C52: Facultad de Humanidades y Ciencias Sociales | D52: Carrera de Arquitectura | G52: 1 | H52: 2 | I52: 3 | J52: 5
B53: Seccional Cali | C53: Facultad de Humanidades y Ciencias Sociales | D53: Carrera de Artes Visuales | F53: 3 | G53: 12 | H53: 14 | I53: 17 | J53: 15
B54: Seccional Cali | C54: Facultad de Humanidades y Ciencias Sociales | D54: Carrera de Ciencia Política | F54: 3 | G54: 2 | H54: 4 | I54: 4 | J54: 8
B55: Seccional Cali | C55: Facultad de Humanidades y Ciencias Sociales | D55: Carrera de Comunicación | F55: 12 | G55: 15 | H55: 14 | I55: 0 | J55: 0
B56: Seccional Cali | C56: Facultad de Humanidades y Ciencias Sociales | D56: Carrera de Derecho | F56: 14 | G56: 7 | H56: 14 | I56: 33 | J56: 25
B57: Seccional Cali | C57: Facultad de Humanidades y Ciencias Sociales | D57: Carrera de Diseño de Comunicación Visual | F57: 22 | G57: 11 | H57: 12 | I57: 27 | J57: 31
B58: Seccional Cali | C58: Facultad de Humanidades y Ciencias Sociales | D58: Carrera de Psicología | F58: 8 | G58: 8 | H58: 8 | I58: 19 | J58: 19
B59: Seccional Cali | C59: Facultad de Humanidades y Ciencias Sociales | D59: Carrera de Filosofía | I59: 5 | J59: 6
B60: Seccional Cali | C60: Facultad de Ingeniería | D60: Carrera de Biología | F60: 1 | G60: 2 | H60: 2 | I60: 3 | J60: 2
B61: Seccional Cali | C61: Facultad de Ingeniería | D61: Carrera de Ingeniería Civil | F61: 3 | G61: 2 | H61: 7 | I61: 8 | J61: 8
B62: Seccional Cali | C62: Facultad de Ingeniería | D62: Carrera de Ingeniería de Sistemas | F62: 5 | G62: 5 | H62: 4 | I62: 2 | J62: 1
B63: Seccional Cali | C63: Facultad de Ingeniería | D63: Carrera de Ingeniería Electrónica | F63: 9 | G63: 7 | H63: 10 | I63: 4 | J63: 1
B64: Seccional Cali | C64: Facultad de Ingeniería | D64: Carrera de Ingeniería Industrial | F64: 21 | G64: 19 | H64: 12 | I64: 37 | J64: 29
B65: Seccional Cali | C65: Facultad de Ingeniería | D65: Carrera de Matemáticas Aplicadas | F65: 1 | G65: 0 | H65: 1 | I65: 7 | J65: 6

Sheet TABLA B-6
B2: =+CONCATENATE("<< Tabla B-",RIGHT(B4,1)-1) -> << Tabla B-5 | C2: =+CONCATENATE("Tabla B-",RIGHT(B4,1)+1," >>") -> Tabla B-7 >>
B4: =+(MID(ÍNDICE!C25,1,9)) -> Tabla B-6
A5: Estudiantes | B5: Estudiantes matriculados en dos o más programas académicos de pregrado según programa principal y programas secundarios. Sede Central.
B6: Fuente: Sistema de Administración de Estudiantes SIU-SAE. Procesamiento de la Oficina de Admisiones y Registro Académico, Rectoría, Sede Central.
B7: Año | C7: 2016
B9: Matriculados | C9: Facultad Secundaria
C10: Facultad de Arquitectura y Diseño | E10: Facultad de Artes | H10: Facultad de Ciencias | M10: Facultad de Ciencias Económicas y Administrativas | P10: Facultad de Ciencias Jurídicas | Q10: Facultad de Ciencias Políticas y Relaciones Internacionales | S10: Facultad de Ciencias Sociales | W10: Facultad de Comunicación y Lenguaje | Y10: Facultad de Educación | AA10: Facultad de Enfermería | AB10: Facultad de Estudios Ambientales y Rurales | AC10: Facultad de Filosofía | AE10: Facultad de Ingeniería | AI10: Facultad de Psicología | AJ10: Facultad de Teología | AL10: Total general
B11: Facultad Principal | C11: Arquitectura | D11: Diseño Industrial | E11: Artes Escénicas | F11: Artes Visuales | G11: Estudios Musicales | H11: Bacteriología | I11: Biología | J11: Matemáticas | K11: Microbiología Industrial | L11: Nutrición y Dietética | M11: Administración de Empresas | N11: Contaduría Pública | O11: Economía | P11: Derecho | Q11: Ciencia Política | R11: Relaciones Internacionales | S11: Antropología | T11: Estudios Literarios | U11: Historia | V11: Sociología | W11: Comunicación Social | X11: Licenciatura Lenguas Modernas | Y11: Licenciatura en Educación Básica con énfasis en Humanidades y Lengua Castellana | Z11: Licenciatura en Pedagogía Infantil | AA11: Enfermería | AB11: Ecología | AC11: Filosofía | AD11: Licenciatura en Filosofía | AE11: Ingeniería de Sistemas | AF11: Ingeniería Electrónica | AG11: Ingeniería Industrial | AH11: Ingeniería Civil | AI11: Psicología | AJ11: Licenciatura en Teología | AK11: Teología
B12: Facultad de Arquitectura y Diseño | C12: 26 | D12: 8 | E12: 3 | F12: 18 | G12: -- | H12: -- | I12: -- | J12: 1 | K12: -- | L12: -- | M12: 5 | N12: -- | O12: -- | P12: -- | Q12: 2 | R12: -- | S12: -- | T12: 2 | U12: -- | V12: 1 | W12: 2 | X12: 1 | Y12: -- | Z12: -- | AA12: -- | AB12: 1 | AC12: 2 | AD12: -- | AE12: -- | AF12: 1 | AG12: 8 | AH12: 9 | AI12: 2 | AJ12: -- | AK12: -- | AL12: 92
B13: Facultad de Artes | C13: 3 | D13: 2 | E13: 8 | F13: 2 | G13: 1 | H13: -- | I13: 1 | J13: 1 | K13: -- | L13: -- | M13: 6 | N13: -- | O13: 1 | P13: -- | Q13: -- | R13: -- | S13: 1 | T13: 5 | U13: 3 | V13: 1 | W13: 3 | X13: 3 | Y13: -- | Z13: -- | AA13: -- | AB13: -- | AC13: 4 | AD13: -- | AE13: 1 | AF13: 2 | AG13: -- | AH13: 1 | AI13: 10 | AJ13: -- | AK13: -- | AL13: 59
B14: Facultad de Ciencias | C14: 1 | D14: -- | E14: -- | F14: 1 | G14: -- | H14: 1 | I14: 2 | J14: 1 | K14: 8 | L14: 5 | M14: -- | N14: -- | O14: -- | P14: -- | Q14: 1 | R14: 1 | S14: 2 | T14: 1 | U14: -- | V14: 1 | W14: -- | X14: 1 | Y14: -- | Z14: -- | AA14: 1 | AB14: 14 | AC14: 1 | AD14: -- | AE14: 1 | AF14: -- | AG14: -- | AH14: -- | AI14: 3 | AJ14: -- | AK14: -- | AL14: 46
B15: Facultad de Ciencias Económicas y Administrativas | C15: -- | D15: 5 | E15: 1 | F15: -- | G15: 2 | H15: -- | I15: -- | J15: 1 | K15: -- | L15: -- | M15: 14 | N15: 7 | O15: 6 | P15: 11 | Q15: 2 | R15: 8 | S15: 1 | T15: 2 | U15: -- | V15: -- | W15: 4 | X15: 1 | Y15: -- | Z15: -- | AA15: -- | AB15: -- | AC15: -- | AD15: -- | AE15: -- | AF15: -- | AG15: 5 | AH15: 2 | AI15: 5 | AJ15: -- | AK15: -- | AL15: 77
B16: Facultad de Ciencias Jurídicas | C16: -- | D16: -- | E16: 1 | F16: -- | G16: -- | H16: -- | I16: -- | J16: -- | K16: -- | L16: -- | M16: 4 | N16: 2 | O16: 2 | P16: -- | Q16: 2 | R16: 9 | S16: 1 | T16: 2 | U16: 5 | V16: 3 | W16: -- | X16: -- | Y16: -- | Z16: -- | AA16: -- | AB16: 1 | AC16: 6 | AD16: -- | AE16: -- | AF16: -- | AG16: -- | AH16: -- | AI16: 1 | AJ16: -- | AK16: -- | AL16: 39
B17: Facultad de Ciencias Políticas y Relaciones Internacionales | C17: -- | D17: -- | E17: -- | F17: -- | G17: 1 | H17: -- | I17: -- | J17: -- | K17: -- | L17: -- | M17: 8 | N17: -- | O17: 6 | P17: 11 | Q17: 7 | R17: 6 | S17: 9 | T17: 1 | U17: 6 | V17: 10 | W17: 6 | X17: 1 | Y17: -- | Z17: 1 | AA17: -- | AB17: 3 | AC17: 3 | AD17: -- | AE17: -- | AF17: -- | AG17: -- | AH17: -- | AI17: 8 | AJ17: -- | AK17: -- | AL17: 87
B18: Facultad de Ciencias Sociales | C18: 1 | D18: -- | E18: 5 | F18: 4 | G18: 1 | H18: 1 | I18: -- | J18: -- | K18: -- | L18: -- | M18: -- | N18: -- | O18: 1 | P18: 2 | Q18: 7 | R18: 2 | S18: 4 | T18: 3 | U18: 5 | V18: 3 | W18: -- | X18: 10 | Y18: -- | Z18: 2 | AA18: 1 | AB18: -- | AC18: 12 | AD18: 1 | AE18: -- | AF18: -- | AG18: -- | AH18: -- | AI18: 5 | AJ18: -- | AK18: 1 | AL18: 71
B19: Facultad de Comunicación y Lenguaje | C19: -- | D19: 6 | E19: 17 | F19: 8 | G19: 1 | H19: -- | I19: -- | J19: -- | K19: -- | L19: 1 | M19: 38 | N19: -- | O19: 5 | P19: 9 | Q19: 47 | R19: 27 | S19: 13 | T19: 36 | U19: 7 | V19: 14 | W19: -- | X19: 5 | Y19: -- | Z19: 4 | AA19: -- | AB19: 1 | AC19: 2 | AD19: 1 | AE19: 1 | AF19: -- | AG19: 1 | AH19: -- | AI19: 26 | AJ19: -- | AK19: 1 | AL19: 271
B20: Facultad de Educación | C20: -- | D20: -- | E20: -- | F20: -- | G20: -- | H20: -- | I20: -- | J20: -- | K20: -- | L20: -- | M20: -- | N20: -- | O20: -- | P20: -- | Q20: -- | R20: -- | S20: -- | T20: -- | U20: -- | V20: -- | W20: -- | X20: 1 | Y20: 1 | Z20: -- | AA20: 1 | AB20: -- | AC20: -- | AD20: -- | AE20: -- | AF20: -- | AG20: -- | AH20: -- | AI20: 4 | AJ20: -- | AK20: -- | AL20: 7
B21: Facultad de Estudios Ambientales y Rurales | C21: -- | D21: 1 | E21: 1 | F21: 1 | G21: 1 | H21: -- | I21: 7 | J21: -- | K21: 1 | L21: -- | M21: 1 | N21: -- | O21: -- | P21: -- | Q21: -- | R21: -- | S21: 4 | T21: -- | U21: -- | V21: 1 | W21: -- | X21: -- | Y21: -- | Z21: -- | AA21: -- | AB21: -- | AC21: -- | AD21: -- | AE21: -- | AF21: -- | AG21: -- | AH21: -- | AI21: -- | AJ21: -- | AK21: -- | AL21: 18
B22: Facultad de Ingeniería | C22: 2 | D22: 10 | E22: -- | F22: 1 | G22: 2 | H22: -- | I22: -- | J22: 2 | K22: -- | L22: -- | M22: 18 | N22: 1 | O22: 15 | P22: 2 | Q22: 1 | R22: -- | S22: -- | T22: 2 | U22: 1 | V22: -- | W22: 1 | X22: 2 | Y22: -- | Z22: -- | AA22: -- | AB22: 1 | AC22: 2 | AD22: -- | AE22: 17 | AF22: -- | AG22: 23 | AH22: 12 | AI22: -- | AJ22: -- | AK22: -- | AL22: 115
B23: Facultad de Medicina | C23: -- | D23: -- | E23: 1 | F23: -- | G23: -- | H23: -- | I23: -- | J23: -- | K23: -- | L23: -- | M23: -- | N23: -- | O23: -- | P23: -- | Q23: -- | R23: -- | S23: -- | T23: -- | U23: -- | V23: -- | W23: -- | X23: -- | Y23: -- | Z23: -- | AA23: -- | AB23: -- | AC23: -- | AD23: -- | AE23: -- | AF23: -- | AG23: -- | AH23: -- | AI23: -- | AJ23: -- | AK23: -- | AL23: 1
B24: Facultad de Odontología | C24: -- | D24: -- | E24: -- | F24: -- | G24: -- | H24: -- | I24: -- | J24: -- | K24: -- | L24: -- | M24: 1 | N24: -- | O24: -- | P24: -- | Q24: -- | R24: -- | S24: -- | T24: -- | U24: -- | V24: -- | W24: -- | X24: -- | Y24: -- | Z24: -- | AA24: -- | AB24: -- | AC24: -- | AD24: -- | AE24: -- | AF24: -- | AG24: -- | AH24: -- | AI24: -- | AJ24: -- | AK24: -- | AL24: 1
B25: Facultad de Psicología | C25: -- | D25: 1 | E25: 5 | F25: 2 | G25: -- | H25: -- | I25: -- | J25: -- | K25: -- | L25: 1 | M25: 1 | N25: 1 | O25: 1 | P25: 1 | Q25: -- | R25: 1 | S25: 4 | T25: 6 | U25: -- | V25: 7 | W25: 5 | X25: 1 | Y25: -- | Z25: 1 | AA25: -- | AB25: -- | AC25: 8 | AD25: -- | AE25: -- | AF25: -- | AG25: -- | AH25: -- | AI25: -- | AJ25: -- | AK25: -- | AL25: 46
B26: Facultad de Teología | C26: -- | D26: -- | E26: -- | F26: -- | G26: -- | H26: -- | I26: 1 | J26: -- | K26: -- | L26: -- | M26: -- | N26: -- | O26: -- | P26: -- | Q26: -- | R26: -- | S26: -- | T26: -- | U26: -- | V26: -- | W26: -- | X26: -- | Y26: -- | Z26: -- | AA26: -- | AB26: -- | AC26: -- | AD26: -- | AE26: -- | AF26: -- | AG26: -- | AH26: -- | AI26: -- | AJ26: 5 | AK26: 4 | AL26: 10
B27: Facultad de Enfermería | C27: -- | D27: -- | E27: -- | F27: -- | G27: -- | H27: 1 | I27: -- | J27: -- | K27: -- | L27: -- | M27: -- | N27: -- | O27: -- | P27: -- | Q27: -- | R27: -- | S27: -- | T27: -- | U27: -- | V27: -- | W27: -- | X27: -- | Y27: -- | Z27: -- | AA27: -- | AB27: -- | AC27: -- | AD27: -- | AE27: -- | AF27: -- | AG27: -- | AH27: -- | AI27: -- | AJ27: -- | AK27: -- | AL27: 1
B28: Total general | C28: 33 | D28: 33 | E28: 42 | F28: 37 | G28: 9 | H28: 3 | I28: 11 | J28: 6 | K28: 9 | L28: 7 | M28: 96 | N28: 11 | O28: 37 | P28: 36 | Q28: 69 | R28: 54 | S28: 39 | T28: 60 | U28: 27 | V28: 41 | W28: 21 | X28: 26 | Y28: 1 | Z28: 8 | AA28: 3 | AB28: 21 | AC28: 40 | AD28: 2 | AE28: 20 | AF28: 3 | AG28: 37 | AH28: 24 | AI28: 64 | AJ28: 5 | AK28: 6 | AL28: 941

Sheet F-TABLA B-6 (hidden)
B1: Tabla B-6. Estudiantes matriculados en dos o más programas académicos de pregrado según programa principal y programas secundarios. Sede Central.
B3: Fuente: Sistema de Administración de Estudiantes SIU-SAE. Procesamiento de la Oficina de Admisiones y Registro Académico, Rectoría, Sede Central.
B5: AÑO | C5: FACULTAD PRINCIPAL | D5: PROGRAMA ACADÉMICO PRINCIPAL | E5: FACULTAD SECUNDARIA | F5: PROGRAMA ACADÉMICO SECUNDARIO | G5: MATRICULADOS
B6: 2014 | C6: Facultad de Arquitectura y Diseño | D6: Arquitectura | E6: Facultad de Arquitectura y Diseño | F6: Diseño Industrial | G6: 8
B7: 2014 | C7: Facultad de Arquitectura y Diseño | D7: Arquitectura | E7: Facultad de Artes | F7: Artes Visuales | G7: 4
B8: 2014 | C8: Facultad de Arquitectura y Diseño | D8: Arquitectura | E8: Facultad de Ciencias Económicas y Administrativas | F8: Administración de Empresas | G8: 3
B9: 2014 | C9: Facultad de Arquitectura y Diseño | D9: Arquitectura | E9: Facultad de Ciencias Económicas y Administrativas | F9: Contaduría Pública | G9: 1
B10: 2014 | C10: Facultad de Arquitectura y Diseño | D10: Arquitectura | E10: Facultad de Ciencias Jurídicas | F10: Derecho | G10: 1
B11: 2014 | C11: Facultad de Arquitectura y Diseño | D11: Arquitectura | E11: Facultad de Ciencias Sociales | F11: Antropología | G11: 2
B12: 2014 | C12: Facultad de Arquitectura y Diseño | D12: Arquitectura | E12: Facultad de Ciencias Sociales | F12: Historia | G12: 2
B13: 2014 | C13: Facultad de Arquitectura y Diseño | D13: Arquitectura | E13: Facultad de Ciencias Sociales | F13: Sociología | G13: 1
B14: 2014 | C14: Facultad de Arquitectura y Diseño | D14: Arquitectura | E14: Facultad de Estudios Ambientales y Rurales | F14: Ecología | G14: 2
B15: 2014 | C15: Facultad de Arquitectura y Diseño | D15: Arquitectura | E15: Facultad de Ingeniería | F15: Ingeniería Civil | G15: 7
B16: 2014 | C16: Facultad de Arquitectura y Diseño | D16: Arquitectura | E16: Facultad de Psicología | F16: Psicología | G16: 2
B17: 2014 | C17: Facultad de Arquitectura y Diseño | D17: Diseño Industrial | E17: Facultad de Arquitectura y Diseño | F17: Arquitectura | G17: 29
B18: 2014 | C18: Facultad de Arquitectura y Diseño | D18: Diseño Industrial | E18: Facultad de Artes | F18: Artes Escénicas | G18: 3
B19: 2014 | C19: Facultad de Arquitectura y Diseño | D19: Diseño Industrial | E19: Facultad de Artes | F19: Artes Visuales | G19: 15
B20: 2014 | C20: Facultad de Arquitectura y Diseño | D20: Diseño Industrial | E20: Facultad de Artes | F20: Estudios Musicales | G20: 1
B21: 2014 | C21: Facultad de Arquitectura y Diseño | D21: Diseño Industrial | E21: Facultad de Ciencias Económicas y Administrativas | F21: Administración de Empresas | G21: 10
B22: 2014 | C22: Facultad de Arquitectura y Diseño | D22: Diseño Industrial | E22: Facultad de Ciencias Políticas y Relaciones Internacionales | F22: Ciencia Política | G22: 1
B23: 2014 | C23: Facultad de Arquitectura y Diseño | D23: Diseño Industrial | E23: Facultad de Comunicación y Lenguaje | F23: Comunicación Social | G23: 4
B24: 2014 | C24: Facultad de Arquitectura y Diseño | D24: Diseño Industrial | E24: Facultad de Comunicación y Lenguaje | F24: Licenciatura Lenguas Modernas | G24: 1
B25: 2014 | C25: Facultad de Arquitectura y Diseño | D25: Diseño Industrial | E25: Facultad de Estudios Ambientales y Rurales | F25: Ecología | G25: 2
B26: 2014 | C26: Facultad de Arquitectura y Diseño | D26: Diseño Industrial | E26: Facultad de Ingeniería | F26: Ingeniería Electrónica | G26: 1
B27: 2014 | C27: Facultad de Arquitectura y Diseño | D27: Diseño Industrial | E27: Facultad de Ingeniería | F27: Ingeniería Industrial | G27: 8
B28: 2014 | C28: Facultad de Arquitectura y Diseño | D28: Diseño Industrial | E28: Facultad de Psicología | F28: Psicología | G28: 1
B29: 2014 | C29: Facultad de Artes | D29: Artes Visuales | E29: Facultad de Arquitectura y Diseño | F29: Arquitectura | G29: 6
B30: 2014 | C30: Facultad de Artes | D30: Artes Visuales | E30: Facultad de Arquitectura y Diseño | F30: Diseño Industrial | G30: 2
B31: 2014 | C31: Facultad de Artes | D31: Artes Visuales | E31: Facultad de Artes | F31: Artes Escénicas | G31: 3
B32: 2014 | C32: Facultad de Artes | D32: Artes Visuales | E32: Facultad de Artes | F32: Estudios Musicales | G32: 1
B33: 2014 | C33: Facultad de Artes | D33: Artes Visuales | E33: Facultad de Ciencias Económicas y Administrativas | F33: Administración de Empresas | G33: 2
B34: 2014 | C34: Facultad de Artes | D34: Artes Visuales | E34: Facultad de Ciencias Sociales | F34: Antropología | G34: 1
B35: 2014 | C35: Facultad de Artes | D35: Artes Visuales | E35: Facultad de Ciencias Sociales | F35: Estudios Literarios | G35: 5
B36: 2014 | C36: Facultad de Artes | D36: Artes Visuales | E36: Facultad de Ciencias Sociales | F36: Sociología | G36: 2
B37: 2014 | C37: Facultad de Artes | D37: Artes Visuales | E37: Facultad de Comunicación y Lenguaje | F37: Comunicación Social | G37: 2
B38: 2014 | C38: Facultad de Artes | D38: Artes Visuales | E38: Facultad de Comunicación y Lenguaje | F38: Licenciatura Lenguas Modernas | G38: 5
B39: 2014 | C39: Facultad de Artes | D39: Artes Visuales | E39: Facultad de Estudios Ambientales y Rurales | F39: Ecología | G39: 1
B40: 2014 | C40: Facultad de Artes | D40: Artes Visuales | E40: Facultad de Filosofía | F40: Filosofía | G40: 1
B41: 2014 | C41: Facultad de Artes | D41: Artes Visuales | E41: Facultad de Filosofía | F41: Licenciatura en Filosofía | G41: 1
B42: 2014 | C42: Facultad de Artes | D42: Artes Visuales | E42: Facultad de Psicología | F42: Psicología | G42: 5
B43: 2014 | C43: Facultad de Artes | D43: Estudios Musicales | E43: Facultad de Arquitectura y Diseño | F43: Arquitectura | G43: 1
B44: 2014 | C44: Facultad de Artes | D44: Estudios Musicales | E44: Facultad de Arquitectura y Diseño | F44: Diseño Industrial | G44: 1
B45: 2014 | C45: Facultad de Artes | D45: Estudios Musicales | E45: Facultad de Artes | F45: Artes Escénicas | G45: 2
B46: 2014 | C46: Facultad de Artes | D46: Estudios Musicales | E46: Facultad de Artes | F46: Artes Visuales | G46: 2
B47: 2014 | C47: Facultad de Artes | D47: Estudios Musicales | E47: Facultad de Ciencias | F47: Matemáticas | G47: 1
B48: 2014 | C48: Facultad de Artes | D48: Estudios Musicales | E48: Facultad de Ciencias Económicas y Administrativas | F48: Administración de Empresas | G48: 2
B49: 2014 | C49: Facultad de Artes | D49: Estudios Musicales | E49: Facultad de Ciencias Jurídicas | F49: Derecho | G49: 1
B50: 2014 | C50: Facultad de Artes | D50: Estudios Musicales | E50: Facultad de Ciencias Sociales | F50: Antropología | G50: 2
B51: 2014 | C51: Facultad de Artes | D51: Estudios Musicales | E51: Facultad de Ciencias Sociales | F51: Estudios Literarios | G51: 3
B52: 2014 | C52: Facultad de Artes | D52: Estudios Musicales | E52: Facultad de Ciencias Sociales | F52: Historia | G52: 1
B53: 2014 | C53: Facultad de Artes | D53: Estudios Musicales | E53: Facultad de Comunicación y Lenguaje | F53: Comunicación Social | G53: 2
B54: 2014 | C54: Facultad de Artes | D54: Estudios Musicales | E54: Facultad de Comunicación y Lenguaje | F54: Licenciatura Lenguas Modernas | G54: 1
B55: 2014 | C55: Facultad de Artes | D55: Estudios Musicales | E55: Facultad de Ingeniería | F55: Ingeniería Electrónica | G55: 2
B56: 2014 | C56: Facultad de Artes | D56: Estudios Musicales | E56: Facultad de Psicología | F56: Psicología | G56: 4
B57: 2014 | C57: Facultad de Ciencias | D57: Bacteriología | E57: Facultad de Ciencias | F57: Microbiología Industrial | G57: 8
B58: 2014 | C58: Facultad de Ciencias | D58: Bacteriología | E58: Facultad de Ciencias | F58: Nutrición y Dietética | G58: 5
B59: 2014 | C59: Facultad de Ciencias | D59: Bacteriología | E59: Facultad de Ciencias Sociales | F59: Antropología | G59: 1
B60: 2014 | C60: Facultad de Ciencias | D60: Biología | E60: Facultad de Arquitectura y Diseño | F60: Arquitectura | G60: 1
B61: 2014 | C61: Facultad de Ciencias | D61: Biología | E61: Facultad de Ciencias | F61: Bacteriología | G61: 1
B62: 2014 | C62: Facultad de Ciencias | D62: Biología | E62: Facultad de Ciencias | F62: Microbiología Industrial | G62: 6
B63: 2014 | C63: Facultad de Ciencias | D63: Biología | E63: Facultad de Ciencias | F63: Nutrición y Dietética | G63: 2
B64: 2014 | C64: Facultad de Ciencias | D64: Biología | E64: Facultad de Ciencias Políticas y Relaciones Internacionales | F64: Ciencia Política | G64: 1
B65: 2014 | C65: Facultad de Ciencias | D65: Biología | E65: Facultad de Ciencias Políticas y Relaciones Internacionales | F65: Relaciones Internacionales | G65: 1
B66: 2014 | C66: Facultad de Ciencias | D66: Biología | E66: Facultad de Ciencias Sociales | F66: Antropología | G66: 1
B67: 2014 | C67: Facultad de Ciencias | D67: Biología | E67: Facultad de Ciencias Sociales | F67: Estudios Literarios | G67: 1
B68: 2014 | C68: Facultad de Ciencias | D68: Biología | E68: Facultad de Estudios Ambientales y Rurales | F68: Ecología | G68: 11
B69: 2014 | C69: Facultad de Ciencias | D69: Biología | E69: Facultad de Psicología | F69: Psicología | G69: 3
B70: 2014 | C70: Facultad de Ciencias | D70: Matemáticas | E70: Facultad de Ingeniería | F70: Ingeniería de Sistemas | G70: 1
B71: 2014 | C71: Facultad de Ciencias | D71: Microbiología Agricultura y Veterinaria | E71: Facultad de Estudios Ambientales y Rurales | F71: Ecología | G71: 1
B72: 2014 | C72: Facultad de Ciencias | D72: Microbiología Industrial | E72: Facultad de Ciencias | F72: Biología | G72: 12
B73: 2014 | C73: Facultad de Ciencias | D73: Microbiología Industrial | E73: Facultad de Ciencias | F73: Nutrición y Dietética | G73: 7
B74: 2014 | C74: Facultad de Ciencias | D74: Microbiología Industrial | E74: Facultad de Ciencias Políticas y Relaciones Internacionales | F74: Ciencia Política | G74: 1
B75: 2014 | C75: Facultad de Ciencias | D75: Nutrición y Dietética | E75: Facultad de Ciencias | F75: Bacteriología | G75: 2
B76: 2014 | C76: Facultad de Ciencias | D76: Nutrición y Dietética | E76: Facultad de Ciencias | F76: Biología | G76: 1
B77: 2014 | C77: Facultad de Ciencias | D77: Nutrición y Dietética | E77: Facultad de Ciencias | F77: Microbiología Industrial | G77: 1
B78: 2014 | C78: Facultad de Ciencias | D78: Nutrición y Dietética | E78: Facultad de Ciencias Sociales | F78: Antropología | G78: 1
B79: 2014 | C79: Facultad de Ciencias | D79: Nutrición y Dietética | E79: Facultad de Educación | F79: Licenciatura en Pedagogía Infantil | G79: 1
B80: 2014 | C80: Facultad de Ciencias Económicas y Administrativas | D80: Administración de Empresas | E80: Facultad de Arquitectura y Diseño | F80: Arquitectura | G80: 1
B81: 2014 | C81: Facultad de Ciencias Económicas y Administrativas | D81: Administración de Empresas | E81: Facultad de Arquitectura y Diseño | F81: Diseño Industrial | G81: 6
B82: 2014 | C82: Facultad de Ciencias Económicas y Administrativas | D82: Administración de Empresas | E82: Facultad de Artes | F82: Estudios Musicales | G82: 1
B83: 2014 | C83: Facultad de Ciencias Económicas y Administrativas | D83: Administración de Empresas | E83: Facultad de Ciencias Económicas y Administrativas | F83: Contaduría Pública | G83: 8
B84: 2014 | C84: Facultad de Ciencias Económicas y Administrativas | D84: Administración de Empresas | E84: Facultad de Ciencias Económicas y Administrativas | F84: Economía | G84: 8
B85: 2014 | C85: Facultad de Ciencias Económicas y Administrativas | D85: Administración de Empresas | E85: Facultad de Ciencias Jurídicas | F85: Derecho | G85: 5
B86: 2014 | C86: Facultad de Ciencias Económicas y Administrativas | D86: Administración de Empresas | E86: Facultad de Ciencias Políticas y Relaciones Internacionales | F86: Ciencia Política | G86: 3
B87: 2014 | C87: Facultad de Ciencias Económicas y Administrativas | D87: Administración de Empresas | E87: Facultad de Ciencias Políticas y Relaciones Internacionales | F87: Relaciones Internacionales | G87: 2
B88: 2014 | C88: Facultad de Ciencias Económicas y Administrativas | D88: Administración de Empresas | E88: Facultad de Ciencias Sociales | F88: Estudios Literarios | G88: 1
B89: 2014 | C89: Facultad de Ciencias Económicas y Administrativas | D89: Administración de Empresas | E89: Facultad de Ciencias Sociales | F89: Sociología | G89: 1
B90: 2014 | C90: Facultad de Ciencias Económicas y Administrativas | D90: Administración de Empresas | E90: Facultad de Comunicación y Lenguaje | F90: Comunicación Social | G90: 3
B91: 2014 | C91: Facultad de Ciencias Económicas y Administrativas | D91: Administración de Empresas | E91: Facultad de Ingeniería | F91: Ingeniería de Sistemas | G91: 1
B92: 2014 | C92: Facultad de Ciencias Económicas y Administrativas | D92: Administración de Empresas | E92: Facultad de Ingeniería | F92: Ingeniería Electrónica | G92: 1
B93: 2014 | C93: Facultad de Ciencias Económicas y Administrativas | D93: Administración de Empresas | E93: Facultad de Ingeniería | F93: Ingeniería Industrial | G93: 3
B94: 2014 | C94: Facultad de Ciencias Económicas y Administrativas | D94: Administración de Empresas | E94: Facultad de Psicología | F94: Psicología | G94: 6
B95: 2014 | C95: Facultad de Ciencias Económicas y Administrativas | D95: Contaduría Pública | E95: Facultad de Arquitectura y Diseño | F95: Diseño Industrial | G95: 1
B96: 2014 | C96: Facultad de Ciencias Económicas y Administrativas | D96: Contaduría Pública | E96: Facultad de Ciencias Económicas y Administrativas | F96: Administración de Empresas | G96: 3
B97: 2014 | C97: Facultad de Ciencias Económicas y Administrativas | D97: Contaduría Pública | E97: Facultad de Ciencias Jurídicas | F97: Derecho | G97: 3
B98: 2014 | C98: Facultad de Ciencias Económicas y Administrativas | D98: Contaduría Pública | E98: Facultad de Filosofía | F98: Filosofía | G98: 1
B99: 2014 | C99: Facultad de Ciencias Económicas y Administrativas | D99: Contaduría Pública | E99: Facultad de Ingeniería | F99: Ingeniería Industrial | G99: 2
B100: 2014 | C100: Facultad de Ciencias Económicas y Administrativas | D100: Economía | E100: Facultad de Arquitectura y Diseño | F100: Diseño Industrial | G100: 1
B101: 2014 | C101: Facultad de Ciencias Económicas y Administrativas | D101: Economía | E101: Facultad de Ciencias | F101: Matemáticas | G101: 1
B102: 2014 | C102: Facultad de Ciencias Económicas y Administrativas | D102: Economía | E102: Facultad de Ciencias Económicas y Administrativas | F102: Administración de Empresas | G102: 11
B103: 2014 | C103: Facultad de Ciencias Económicas y Administrativas | D103: Economía | E103: Facultad de Ciencias Económicas y Administrativas | F103: Contaduría Pública | G103: 1
B104: 2014 | C104: Facultad de Ciencias Económicas y Administrativas | D104: Economía | E104: Facultad de Ciencias Jurídicas | F104: Derecho | G104: 4
B105: 2014 | C105: Facultad de Ciencias Económicas y Administrativas | D105: Economía | E105: Facultad de Ciencias Políticas y Relaciones Internacionales | F105: Ciencia Política | G105: 1
B106: 2014 | C106: Facultad de Ciencias Económicas y Administrativas | D106: Economía | E106: Facultad de Ciencias Políticas y Relaciones Internacionales | F106: Relaciones Internacionales | G106: 1
B107: 2014 | C107: Facultad de Ciencias Económicas y Administrativas | D107: Economía | E107: Facultad de Ingeniería | F107: Ingeniería Industrial | G107: 2
B108: 2014 | C108: Facultad de Ciencias Jurídicas | D108: Derecho | E108: Facultad de Artes | F108: Artes Escénicas | G108: 1
B109: 2014 | C109: Facultad de Ciencias Jurídicas | D109: Derecho | E109: Facultad de Ciencias Económicas y Administrativas | F109: Administración de Empresas | G109: 3
B110: 2014 | C110: Facultad de Ciencias Jurídicas | D110: Derecho | E110: Facultad de Ciencias Económicas y Administrativas | F110: Economía | G110: 2
B111: 2014 | C111: Facultad de Ciencias Jurídicas | D111: Derecho | E111: Facultad de Ciencias Políticas y Relaciones Internacionales | F111: Ciencia Política | G111: 2
B112: 2014 | C112: Facultad de Ciencias Jurídicas | D112: Derecho | E112: Facultad de Ciencias Políticas y Relaciones Internacionales | F112: Relaciones Internacionales | G112: 4
B113: 2014 | C113: Facultad de Ciencias Jurídicas | D113: Derecho | E113: Facultad de Ciencias Sociales | F113: Antropología | G113: 1
B114: 2014 | C114: Facultad de Ciencias Jurídicas | D114: Derecho | E114: Facultad de Ciencias Sociales | F114: Estudios Literarios | G114: 2
B115: 2014 | C115: Facultad de Ciencias Jurídicas | D115: Derecho | E115: Facultad de Ciencias Sociales | F115: Historia | G115: 5
B116: 2014 | C116: Facultad de Ciencias Jurídicas | D116: Derecho | E116: Facultad de Ciencias Sociales | F116: Sociología | G116: 2
B117: 2014 | C117: Facultad de Ciencias Jurídicas | D117: Derecho | E117: Facultad de Comunicación y Lenguaje | F117: Comunicación Social | G117: 3
B118: 2014 | C118: Facultad de Ciencias Jurídicas | D118: Derecho | E118: Facultad de Filosofía | F118: Filosofía | G118: 3
B119: 2014 | C119: Facultad de Ciencias Jurídicas | D119: Derecho | E119: Facultad de Psicología | F119: Psicología | G119: 2
B120: 2014 | C120: Facultad de Ciencias Políticas y Relaciones Internacionales | D120: Ciencia Política | E120: Facultad de Arquitectura y Diseño | F120: Diseño Industrial | G120: 1
B121: 2014 | C121: Facultad de Ciencias Políticas y Relaciones Internacionales | D121: Ciencia Política | E121: Facultad de Ciencias Económicas y Administrativas | F121: Administración de Empresas | G121: 3
B122: 2014 | C122: Facultad de Ciencias Políticas y Relaciones Internacionales | D122: Ciencia Política | E122: Facultad de Ciencias Económicas y Administrativas | F122: Economía | G122: 1
B123: 2014 | C123: Facultad de Ciencias Políticas y Relaciones Internacionales | D123: Ciencia Política | E123: Facultad de Ciencias Jurídicas | F123: Derecho | G123: 10
B124: 2014 | C124: Facultad de Ciencias Políticas y Relaciones Internacionales | D124: Ciencia Política | E124: Facultad de Ciencias Políticas y Relaciones Internacionales | F124: Relaciones Internacionales | G124: 6
B125: 2014 | C125: Facultad de Ciencias Políticas y Relaciones Internacionales | D125: Ciencia Política | E125: Facultad de Ciencias Sociales | F125: Antropología | G125: 3
B126: 2014 | C126: Facultad de Ciencias Políticas y Relaciones Internacionales | D126: Ciencia Política | E126: Facultad de Ciencias Sociales | F126: Estudios Literarios | G126: 2
B127: 2014 | C127: Facultad de Ciencias Políticas y Relaciones Internacionales | D127: Ciencia Política | E127: Facultad de Ciencias Sociales | F127: Historia | G127: 4
B128: 2014 | C128: Facultad de Ciencias Políticas y Relaciones Internacionales | D128: Ciencia Política | E128: Facultad de Ciencias Sociales | F128: Sociología | G128: 8
B129: 2014 | C129: Facultad de Ciencias Políticas y Relaciones Internacionales | D129: Ciencia Política | E129: Facultad de Comunicación y Lenguaje | F129: Comunicación Social | G129: 4
B130: 2014 | C130: Facultad de Ciencias Políticas y Relaciones Internacionales | D130: Ciencia Política | E130: Facultad de Comunicación y Lenguaje | F130: Licenciatura Lenguas Modernas | G130: 1
B131: 2014 | C131: Facultad de Ciencias Políticas y Relaciones Internacionales | D131: Ciencia Política | E131: Facultad de Filosofía | F131: Filosofía | G131: 3
B132: 2014 | C132: Facultad de Ciencias Políticas y Relaciones Internacionales | D132: Ciencia Política | E132: Facultad de Psicología | F132: Psicología | G132: 1
B133: 2014 | C133: Facultad de Ciencias Políticas y Relaciones Internacionales | D133: Relaciones Internacionales | E133: Facultad de Ciencias Económicas y Administrativas | F133: Administración de Empresas | G133: 8
B134: 2014 | C134: Facultad de Ciencias Políticas y Relaciones Internacionales | D134: Relaciones Internacionales | E134: Facultad de Ciencias Económicas y Administrativas | F134: Economía | G134: 1
B135: 2014 | C135: Facultad de Ciencias Políticas y Relaciones Internacionales | D135: Relaciones Internacionales | E135: Facultad de Ciencias Jurídicas | F135: Derecho | G135: 6
B136: 2014 | C136: Facultad de Ciencias Políticas y Relaciones Internacionales | D136: Relaciones Internacionales | E136: Facultad de Ciencias Políticas y Relaciones Internacionales | F136: Ciencia Política | G136: 6
B137: 2014 | C137: Facultad de Ciencias Políticas y Relaciones Internacionales | D137: Relaciones Internacionales | E137: Facultad de Ciencias Sociales | F137: Antropología | G137: 2
B138: 2014 | C138: Facultad de Ciencias Políticas y Relaciones Internacionales | D138: Relaciones Internacionales | E138: Facultad de Ciencias Sociales | F138: Historia | G138: 1
B139: 2014 | C139: Facultad de Ciencias Políticas y Relaciones Internacionales | D139: Relaciones Internacionales | E139: Facultad de Ciencias Sociales | F139: Sociología | G139: 3
B140: 2014 | C140: Facultad de Ciencias Políticas y Relaciones Internacionales | D140: Relaciones Internacionales | E140: Facultad de Comunicación y Lenguaje | F140: Comunicación Social | G140: 1
B141: 2014 | C141: Facultad de Ciencias Políticas y Relaciones Internacionales | D141: Relaciones Internacionales | E141: Facultad de Estudios Ambientales y Rurales | F141: Ecología | G141: 1
B142: 2014 | C142: Facultad de Ciencias Políticas y Relaciones Internacionales | D142: Relaciones Internacionales | E142: Facultad de Psicología | F142: Psicología | G142: 3
B143: 2014 | C143: Facultad de Ciencias Sociales | D143: Antropología | E143: Facultad de Artes | F143: Artes Visuales | G143: 1
B144: 2014 | C144: Facultad de Ciencias Sociales | D144: Antropología | E144: Facultad de Ciencias Sociales | F144: Estudios Literarios | G144: 2
B145: 2014 | C145: Facultad de Ciencias Sociales | D145: Antropología | E145: Facultad de Enfermería | F145: Enfermería | G145: 1
B146: 2014 | C146: Facultad de Ciencias Sociales | D146: Antropología | E146: Facultad de Estudios Ambientales y Rurales | F146: Ecología | G146: 3
B147: 2014 | C147: Facultad de Ciencias Sociales | D147: Antropología | E147: Facultad de Filosofía | F147: Filosofía | G147: 2
B148: 2014 | C148: Facultad de Ciencias Sociales | D148: Estudios Literarios | E148: Facultad de Artes | F148: Artes Escénicas | G148: 2
B149: 2014 | C149: Facultad de Ciencias Sociales | D149: Estudios Literarios | E149: Facultad de Ciencias | F149: Biología | G149: 1
B150: 2014 | C150: Facultad de Ciencias Sociales | D150: Estudios Literarios | E150: Facultad de Ciencias Jurídicas | F150: Derecho | G150: 1
B151: 2014 | C151: Facultad de Ciencias Sociales | D151: Estudios Literarios | E151: Facultad de Ciencias Sociales | F151: Antropología | G151: 1
B152: 2014 | C152: Facultad de Ciencias Sociales | D152: Estudios Literarios | E152: Facultad de Ciencias Sociales | F152: Historia | G152: 3
B153: 2014 | C153: Facultad de Ciencias Sociales | D153: Estudios Literarios | E153: Facultad de Ciencias Sociales | F153: Sociología | G153: 1
B154: 2014 | C154: Facultad de Ciencias Sociales | D154: Estudios Literarios | E154: Facultad de Comunicación y Lenguaje | F154: Comunicación Social | G154: 2
B155: 2014 | C155: Facultad de Ciencias Sociales | D155: Estudios Literarios | E155: Facultad de Comunicación y Lenguaje | F155: Licenciatura Lenguas Modernas | G155: 5
B156: 2014 | C156: Facultad de Ciencias Sociales | D156: Estudios Literarios | E156: Facultad de Filosofía | F156: Filosofía | G156: 7
B157: 2014 | C157: Facultad de Ciencias Sociales | D157: Estudios Literarios | E157: Facultad de Psicología | F157: Psicología | G157: 1
B158: 2014 | C158: Facultad de Ciencias Sociales | D158: Historia | E158: Facultad de Ciencias Sociales | F158: Antropología | G158: 1
B159: 2014 | C159: Facultad de Ciencias Sociales | D159: Historia | E159: Facultad de Ciencias Sociales | F159: Estudios Literarios | G159: 6
B160: 2014 | C160: Facultad de Ciencias Sociales | D160: Historia | E160: Facultad de Ciencias Sociales | F160: Sociología | G160: 1
B161: 2014 | C161: Facultad de Ciencias Sociales | D161: Historia | E161: Facultad de Comunicación y Lenguaje | F161: Licenciatura Lenguas Modernas | G161: 1
B162: 2014 | C162: Facultad de Ciencias Sociales | D162: Historia | E162: Facultad de Filosofía | F162: Filosofía | G162: 2
B163: 2014 | C163: Facultad de Ciencias Sociales | D163: Sociología | E163: Facultad de Artes | F163: Artes Visuales | G163: 1
B164: 2014 | C164: Facultad de Ciencias Sociales | D164: Sociología | E164: Facultad de Artes | F164: Estudios Musicales | G164: 1
B165: 2014 | C165: Facultad de Ciencias Sociales | D165: Sociología | E165: Facultad de Ciencias Jurídicas | F165: Derecho | G165: 1
B166: 2014 | C166: Facultad de Ciencias Sociales | D166: Sociología | E166: Facultad de Ciencias Políticas y Relaciones Internacionales | F166: Relaciones Internacionales | G166: 1
B167: 2014 | C167: Facultad de Ciencias Sociales | D167: Sociología | E167: Facultad de Ciencias Sociales | F167: Historia | G167: 1
B168: 2014 | C168: Facultad de Ciencias Sociales | D168: Sociología | E168: Facultad de Comunicación y Lenguaje | F168: Comunicación Social | G168: 1
B169: 2014 | C169: Facultad de Ciencias Sociales | D169: Sociología | E169: Facultad de Psicología | F169: Psicología | G169: 2
B170: 2014 | C170: Facultad de Ciencias Sociales | D170: Sociología | E170: Facultad de Teología | F170: Teología | G170: 1
B171: 2014 | C171: Facultad de Comunicación y Lenguaje | D171: Ciencia de la Información y Bibliotecología | E171: Facultad de Teología | F171: Teología | G171: 1
B172: 2014 | C172: Facultad de Comunicación y Lenguaje | D172: Comunicación Social | E172: Facultad de Arquitectura y Diseño | F172: Diseño Industrial | G172: 8
B173: 2014 | C173: Facultad de Comunicación y Lenguaje | D173: Comunicación Social | E173: Facultad de Artes | F173: Artes Escénicas | G173: 9
B174: 2014 | C174: Facultad de Comunicación y Lenguaje | D174: Comunicación Social | E174: Facultad de Artes | F174: Artes Visuales | G174: 5
B175: 2014 | C175: Facultad de Comunicación y Lenguaje | D175: Comunicación Social | E175: Facultad de Ciencias Económicas y Administrativas | F175: Administración de Empresas | G175: 30
B176: 2014 | C176: Facultad de Comunicación y Lenguaje | D176: Comunicación Social | E176: Facultad de Ciencias Jurídicas | F176: Derecho | G176: 4
B177: 2014 | C177: Facultad de Comunicación y Lenguaje | D177: Comunicación Social | E177: Facultad de Ciencias Políticas y Relaciones Internacionales | F177: Ciencia Política | G177: 24
B178: 2014 | C178: Facultad de Comunicación y Lenguaje | D178: Comunicación Social | E178: Facultad de Ciencias Políticas y Relaciones Internacionales | F178: Relaciones Internacionales | G178: 10
B179: 2014 | C179: Facultad de Comunicación y Lenguaje | D179: Comunicación Social | E179: Facultad de Ciencias Sociales | F179: Antropología | G179: 3
B180: 2014 | C180: Facultad de Comunicación y Lenguaje | D180: Comunicación Social | E180: Facultad de Ciencias Sociales | F180: Estudios Literarios | G180: 32
B181: 2014 | C181: Facultad de Comunicación y Lenguaje | D181: Comunicación Social | E181: Facultad de Ciencias Sociales | F181: Historia | G181: 2
B182: 2014 | C182: Facultad de Comunicación y Lenguaje | D182: Comunicación Social | E182: Facultad de Ciencias Sociales | F182: Sociología | G182: 7
B183: 2014 | C183: Facultad de Comunicación y Lenguaje | D183: Comunicación Social | E183: Facultad de Comunicación y Lenguaje | F183: Licenciatura Lenguas Modernas | G183: 11
B184: 2014 | C184: Facultad de Comunicación y Lenguaje | D184: Comunicación Social | E184: Facultad de Filosofía | F184: Filosofía | G184: 1
B185: 2014 | C185: Facultad de Comunicación y Lenguaje | D185: Comunicación Social | E185: Facultad de Psicología | F185: Psicología | G185: 18
B186: 2014 | C186: Facultad de Comunicación y Lenguaje | D186: Licenciatura Lenguas Modernas | E186: Facultad de Arquitectura y Diseño | F186: Arquitectura | G186: 1
B187: 2014 | C187: Facultad de Comunicación y Lenguaje | D187: Licenciatura Lenguas Modernas | E187: Facultad de Ciencias Económicas y Administrativas | F187: Administración de Empresas | G187: 1
B188: 2014 | C188: Facultad de Comunicación y Lenguaje | D188: Licenciatura Lenguas Modernas | E188: Facultad de Ciencias Económicas y Administrativas | F188: Contaduría Pública | G188: 1
B189: 2014 | C189: Facultad de Comunicación y Lenguaje | D189: Licenciatura Lenguas Modernas | E189: Facultad de Ciencias Jurídicas | F189: Derecho | G189: 1
B190: 2014 | C190: Facultad de Comunicación y Lenguaje | D190: Licenciatura Lenguas Modernas | E190: Facultad de Ciencias Políticas y Relaciones Internacionales | F190: Ciencia Política | G190: 1
B191: 2014 | C191: Facultad de Comunicación y Lenguaje | D191: Licenciatura Lenguas Modernas | E191: Facultad de Ciencias Políticas y Relaciones Internacionales | F191: Relaciones Internacionales | G191: 3
B192: 2014 | C192: Facultad de Comunicación y Lenguaje | D192: Licenciatura Lenguas Modernas | E192: Facultad de Ciencias Sociales | F192: Antropología | G192: 1
B193: 2014 | C193: Facultad de Comunicación y Lenguaje | D193: Licenciatura Lenguas Modernas | E193: Facultad de Ciencias Sociales | F193: Estudios Literarios | G193: 5
B194: 2014 | C194: Facultad de Comunicación y Lenguaje | D194: Licenciatura Lenguas Modernas | E194: Facultad de Ciencias Sociales | F194: Historia | G194: 1
B195: 2014 | C195: Facultad de Comunicación y Lenguaje | D195: Licenciatura Lenguas Modernas | E195: Facultad de Ciencias Sociales | F195: Sociología | G195: 3
B196: 2014 | C196: Facultad de Comunicación y Lenguaje | D196: Licenciatura Lenguas Modernas | E196: Facultad de Comunicación y Lenguaje | F196: Comunicación Social | G196: 1
B197: 2014 | C197: Facultad de Comunicación y Lenguaje | D197: Licenciatura Lenguas Modernas | E197: Facultad de Educación | F197: Licenciatura en Pedagogía Infantil | G197: 1
B198: 2014 | C198: Facultad de Comunicación y Lenguaje | D198: Licenciatura Lenguas Modernas | E198: Facultad de Filosofía | F198: Licenciatura en Filosofía | G198: 1
B199: 2014 | C199: Facultad de Comunicación y Lenguaje | D199: Licenciatura Lenguas Modernas | E199: Facultad de Psicología | F199: Psicología | G199: 3
B200: 2014 | C200: Facultad de Educación | D200: Licenciatura en Pedagogía Infantil | E200: Facultad de Comunicación y Lenguaje | F200: Licenciatura Lenguas Modernas | G200: 1
B201: 2014 | C201: Facultad de Educación | D201: Licenciatura en Pedagogía Infantil | E201: Facultad de Educación | F201: Licenciatura en Educación Básica con énfasis en Humanidades y Lengua Castellana | G201: 2
B202: 2014 | C202: Facultad de Educación | D202: Licenciatura en Pedagogía Infantil | E202: Facultad de Psicología | F202: Psicología | G202: 4
... 620 more rows

Sheet TABLA B-7
B2: =+CONCATENATE("<< Tabla B-",RIGHT(B4,1)-1) -> << Tabla B-6 | D2: =+CONCATENATE("Tabla B-",RIGHT(B4,1)+1," >>") -> Tabla B-8 >>
B4: =+(MID(ÍNDICE!C26,1,9)) -> Tabla B-7
A5: Estudiantes | B5: Estudiantes matriculados en dos o más programas académicos de pregrado según programa principal y programas secundarios. Seccional Cali.
B6: Fuente: Oficina de Registro Académico, Vicerrectoría Académica, Seccional Cali.
B7: Año | C7: 2016
B9: Matriculados | C9: Facultad Secundaria
C10: Facultad de Ciencias Económicas y Administrativas | H10: Facultad de Humanidades y Ciencias Sociales | O10: Facultad de Ingeniería | P10: Total general
B11: Facultad Principal | C11: Administración de Empresas (Diurna) | D11: Administración de Empresas (Nocturna) | E11: Contaduría Pública (Diurna) | F11: Contaduría Pública (Nocturna) | G11: Economía | H11: Arquitectura | I11: Artes Visuales | J11: Ciencia Política | K11: Comunicación | L11: Derecho | M11: Filosofía | N11: Psicología
B12: Facultad de Ciencias Económicas y Administrativas | C12: 4 | D12: 5 | E12: 1 | F12: -- | G12: 11 | H12: -- | I12: -- | J12: -- | K12: 4 | L12: 3 | M12: -- | N12: 1 | O12: -- | P12: 29
B13: Facultad de Humanidades y Ciencias Sociales | C13: 16 | D13: 2 | E13: -- | F13: 1 | G13: 6 | H13: 7 | I13: 9 | J13: 14 | K13: 31 | L13: 6 | M13: 3 | N13: 8 | O13: 6 | P13: 109
B14: Facultad de Ingeniería | C14: 16 | D14: 2 | E14: -- | F14: 1 | G14: 5 | H14: -- | I14: -- | J14: 1 | K14: 1 | L14: 1 | M14: -- | N14: 2 | O14: 18 | P14: 47
B15: Total general | C15: 36 | D15: 9 | E15: 1 | F15: 2 | G15: 22 | H15: 7 | I15: 9 | J15: 15 | K15: 36 | L15: 10 | M15: 3 | N15: 11 | O15: 24 | P15: 185

Sheet F-TABLA B-7 (hidden)
B1: Tabla B-7. Estudiantes matriculados en dos o más programas académicos de pregrado según programa principal y programas secundarios. Seccional Cali.
B3: Fuente: Oficina de Registro Académico, Vicerrectoría Académica, Seccional Cali.
B5: AÑO | C5: FACULTAD PRINCIPAL | D5: PROGRAMA ACADÉMICO PRINCIPAL | E5: FACULTAD SECUNDARIA | F5: PROGRAMA ACADÉMICO SECUNDARIO | G5: MATRICULADOS
B6: 2014 | C6: Facultad de Ciencias Económicas y Administrativas | D6: Administración de Empresas | E6: Facultad de Ciencias Económicas y Administrativas | F6: Contaduría Pública | G6: 2
B7: 2014 | C7: Facultad de Ciencias Económicas y Administrativas | D7: Administración de Empresas | E7: Facultad de Ciencias Económicas y Administrativas | F7: Contaduría Pública Diurna | G7: 1
B8: 2014 | C8: Facultad de Ciencias Económicas y Administrativas | D8: Administración de Empresas | E8: Facultad de Ciencias Económicas y Administrativas | F8: Economía | G8: 7
B9: 2014 | C9: Facultad de Ciencias Económicas y Administrativas | D9: Administración de Empresas | E9: Facultad de Humanidades y Ciencias Sociales | F9: Comunicación | G9: 1
B10: 2014 | C10: Facultad de Ciencias Económicas y Administrativas | D10: Administración de Empresas | E10: Facultad de Humanidades y Ciencias Sociales | F10: Derecho | G10: 1
B11: 2014 | C11: Facultad de Ciencias Económicas y Administrativas | D11: Administración de Empresas | E11: Facultad de Humanidades y Ciencias Sociales | F11: Psicología | G11: 1
B12: 2014 | C12: Facultad de Ciencias Económicas y Administrativas | D12: Administración de Empresas | E12: Facultad de Ingeniería | F12: Biología | G12: 1
B13: 2014 | C13: Facultad de Ciencias Económicas y Administrativas | D13: Administración de Empresas | E13: Facultad de Ingeniería | F13: Ingeniería Industrial | G13: 2
B14: 2014 | C14: Facultad de Ciencias Económicas y Administrativas | D14: Administración de Empresas (Nocturna) | E14: Facultad de Ciencias Económicas y Administrativas | F14: Contaduría Pública | G14: 4
B15: 2014 | C15: Facultad de Ciencias Económicas y Administrativas | D15: Contaduría Pública | E15: Facultad de Ciencias Económicas y Administrativas | F15: Administración de Empresas nocturno | G15: 4
B16: 2014 | C16: Facultad de Ciencias Económicas y Administrativas | D16: Contaduría Pública | E16: Facultad de Ciencias Económicas y Administrativas | F16: Economía | G16: 2
B17: 2014 | C17: Facultad de Ciencias Económicas y Administrativas | D17: Contaduría Pública | E17: Facultad de Humanidades y Ciencias Sociales | F17: Arquitectura | G17: 1
B18: 2014 | C18: Facultad de Ciencias Económicas y Administrativas | D18: Contaduría Pública | E18: Facultad de Humanidades y Ciencias Sociales | F18: Derecho | G18: 1
B19: 2014 | C19: Facultad de Ciencias Económicas y Administrativas | D19: Contaduría Pública Diurna | E19: Facultad de Ciencias Económicas y Administrativas | F19: Administración de Empresas nocturno | G19: 2
B20: 2014 | C20: Facultad de Ciencias Económicas y Administrativas | D20: Contaduría Pública Diurna | E20: Facultad de Ingeniería | F20: Ingeniería Industrial | G20: 2
B21: 2014 | C21: Facultad de Ciencias Económicas y Administrativas | D21: Economía | E21: Facultad de Ciencias Económicas y Administrativas | F21: Administración de Empresas | G21: 14
B22: 2014 | C22: Facultad de Ciencias Económicas y Administrativas | D22: Economía | E22: Facultad de Ciencias Económicas y Administrativas | F22: Administración de Empresas nocturno | G22: 1
B23: 2014 | C23: Facultad de Ciencias Económicas y Administrativas | D23: Economía | E23: Facultad de Humanidades y Ciencias Sociales | F23: Derecho | G23: 3
B24: 2014 | C24: Facultad de Humanidades y Ciencias Sociales | D24: Arquitectura | E24: Facultad de Humanidades y Ciencias Sociales | F24: Diseño de Comunicación Visual | G24: 2
B25: 2014 | C25: Facultad de Humanidades y Ciencias Sociales | D25: Artes Visuales | E25: Facultad de Ciencias Económicas y Administrativas | F25: Administración de Empresas | G25: 2
B26: 2014 | C26: Facultad de Humanidades y Ciencias Sociales | D26: Artes Visuales | E26: Facultad de Humanidades y Ciencias Sociales | F26: Comunicación | G26: 3
B27: 2014 | C27: Facultad de Humanidades y Ciencias Sociales | D27: Artes Visuales | E27: Facultad de Humanidades y Ciencias Sociales | F27: Diseño de Comunicación Visual | G27: 5
B28: 2014 | C28: Facultad de Humanidades y Ciencias Sociales | D28: Artes Visuales | E28: Facultad de Humanidades y Ciencias Sociales | F28: Filosofía | G28: 2
B29: 2014 | C29: Facultad de Humanidades y Ciencias Sociales | D29: Artes Visuales | E29: Facultad de Humanidades y Ciencias Sociales | F29: Psicología | G29: 1
B30: 2014 | C30: Facultad de Humanidades y Ciencias Sociales | D30: Artes Visuales | E30: Facultad de Ingeniería | F30: Ingeniería de Sistemas y Computación | G30: 1
B31: 2014 | C31: Facultad de Humanidades y Ciencias Sociales | D31: Ciencia Política | E31: Facultad de Humanidades y Ciencias Sociales | F31: Derecho | G31: 4
B32: 2014 | C32: Facultad de Humanidades y Ciencias Sociales | D32: Comunicación | E32: Facultad de Humanidades y Ciencias Sociales | F32: Artes Visuales | G32: 1
B33: 2014 | C33: Facultad de Humanidades y Ciencias Sociales | D33: Comunicación | E33: Facultad de Humanidades y Ciencias Sociales | F33: Ciencia Política | G33: 2
B34: 2014 | C34: Facultad de Humanidades y Ciencias Sociales | D34: Comunicación | E34: Facultad de Humanidades y Ciencias Sociales | F34: Derecho | G34: 5
B35: 2014 | C35: Facultad de Humanidades y Ciencias Sociales | D35: Comunicación | E35: Facultad de Humanidades y Ciencias Sociales | F35: Diseño de Comunicación Visual | G35: 4
B36: 2014 | C36: Facultad de Humanidades y Ciencias Sociales | D36: Comunicación | E36: Facultad de Humanidades y Ciencias Sociales | F36: Psicología | G36: 2
B37: 2014 | C37: Facultad de Humanidades y Ciencias Sociales | D37: Derecho | E37: Facultad de Ciencias Económicas y Administrativas | F37: Administración de Empresas | G37: 4
B38: 2014 | C38: Facultad de Humanidades y Ciencias Sociales | D38: Derecho | E38: Facultad de Ciencias Económicas y Administrativas | F38: Contaduría Pública | G38: 1
B39: 2014 | C39: Facultad de Humanidades y Ciencias Sociales | D39: Derecho | E39: Facultad de Ciencias Económicas y Administrativas | F39: Economía | G39: 1
B40: 2014 | C40: Facultad de Humanidades y Ciencias Sociales | D40: Derecho | E40: Facultad de Humanidades y Ciencias Sociales | F40: Ciencia Política | G40: 5
B41: 2014 | C41: Facultad de Humanidades y Ciencias Sociales | D41: Derecho | E41: Facultad de Humanidades y Ciencias Sociales | F41: Comunicación | G41: 1
B42: 2014 | C42: Facultad de Humanidades y Ciencias Sociales | D42: Derecho | E42: Facultad de Humanidades y Ciencias Sociales | F42: Filosofía | G42: 2
B43: 2014 | C43: Facultad de Humanidades y Ciencias Sociales | D43: Diseño de Comunicación Visual | E43: Facultad de Humanidades y Ciencias Sociales | F43: Artes Visuales | G43: 8
B44: 2014 | C44: Facultad de Humanidades y Ciencias Sociales | D44: Diseño de Comunicación Visual | E44: Facultad de Humanidades y Ciencias Sociales | F44: Comunicación | G44: 3
B45: 2014 | C45: Facultad de Humanidades y Ciencias Sociales | D45: Diseño de Comunicación Visual | E45: Facultad de Humanidades y Ciencias Sociales | F45: Psicología | G45: 1
B46: 2014 | C46: Facultad de Humanidades y Ciencias Sociales | D46: Psicología | E46: Facultad de Ciencias Económicas y Administrativas | F46: Administración de Empresas | G46: 1
B47: 2014 | C47: Facultad de Humanidades y Ciencias Sociales | D47: Psicología | E47: Facultad de Ciencias Económicas y Administrativas | F47: Administración de Empresas nocturno | G47: 1
B48: 2014 | C48: Facultad de Humanidades y Ciencias Sociales | D48: Psicología | E48: Facultad de Humanidades y Ciencias Sociales | F48: Artes Visuales | G48: 1
B49: 2014 | C49: Facultad de Humanidades y Ciencias Sociales | D49: Psicología | E49: Facultad de Humanidades y Ciencias Sociales | F49: Ciencia Política | G49: 1
B50: 2014 | C50: Facultad de Humanidades y Ciencias Sociales | D50: Psicología | E50: Facultad de Humanidades y Ciencias Sociales | F50: Comunicación | G50: 2
B51: 2014 | C51: Facultad de Humanidades y Ciencias Sociales | D51: Psicología | E51: Facultad de Humanidades y Ciencias Sociales | F51: Filosofía | G51: 2
B52: 2014 | C52: Facultad de Ingeniería | D52: Biología | E52: Facultad de Humanidades y Ciencias Sociales | F52: Comunicación | G52: 1
B53: 2014 | C53: Facultad de Ingeniería | D53: Biología | E53: Facultad de Humanidades y Ciencias Sociales | F53: Derecho | G53: 1
B54: 2014 | C54: Facultad de Ingeniería | D54: Ingeniería Civil | E54: Facultad de Ciencias Económicas y Administrativas | F54: Administración de Empresas | G54: 5
B55: 2014 | C55: Facultad de Ingeniería | D55: Ingeniería Civil | E55: Facultad de Humanidades y Ciencias Sociales | F55: Arquitectura | G55: 1
B56: 2014 | C56: Facultad de Ingeniería | D56: Ingeniería Civil | E56: Facultad de Ingeniería | F56: Ingeniería Industrial | G56: 1
B57: 2014 | C57: Facultad de Ingeniería | D57: Ingeniería de Sistemas y Computación | E57: Facultad de Humanidades y Ciencias Sociales | F57: Diseño de Comunicación Visual | G57: 2
B58: 2014 | C58: Facultad de Ingeniería | D58: Ingeniería de Sistemas y Computación | E58: Facultad de Ingeniería | F58: Biología | G58: 1
B59: 2014 | C59: Facultad de Ingeniería | D59: Ingeniería de Sistemas y Computación | E59: Facultad de Ingeniería | F59: Ingeniería Industrial | G59: 1
B60: 2014 | C60: Facultad de Ingeniería | D60: Ingeniería Electrónica | E60: Facultad de Ciencias Económicas y Administrativas | F60: Administración de Empresas | G60: 4
B61: 2014 | C61: Facultad de Ingeniería | D61: Ingeniería Electrónica | E61: Facultad de Humanidades y Ciencias Sociales | F61: Artes Visuales | G61: 1
B62: 2014 | C62: Facultad de Ingeniería | D62: Ingeniería Electrónica | E62: Facultad de Ingeniería | F62: Ingeniería Civil | G62: 1
B63: 2014 | C63: Facultad de Ingeniería | D63: Ingeniería Electrónica | E63: Facultad de Ingeniería | F63: Ingeniería Industrial | G63: 1
B64: 2014 | C64: Facultad de Ingeniería | D64: Ingeniería Electrónica | E64: Facultad de Ingeniería | F64: Matemáticas Aplicadas | G64: 3
B65: 2014 | C65: Facultad de Ingeniería | D65: Ingeniería Industrial | E65: Facultad de Ciencias Económicas y Administrativas | F65: Administración de Empresas | G65: 8
B66: 2014 | C66: Facultad de Ingeniería | D66: Ingeniería Industrial | E66: Facultad de Ciencias Económicas y Administrativas | F66: Economía | G66: 1
B67: 2014 | C67: Facultad de Ingeniería | D67: Ingeniería Industrial | E67: Facultad de Ingeniería | F67: Biología | G67: 1
B68: 2014 | C68: Facultad de Ingeniería | D68: Ingeniería Industrial | E68: Facultad de Ingeniería | F68: Ingeniería Civil | G68: 1
B69: 2014 | C69: Facultad de Ingeniería | D69: Ingeniería Industrial | E69: Facultad de Ingeniería | F69: Matemáticas Aplicadas | G69: 1
B70: 2014 | C70: Facultad de Ingeniería | D70: Matemáticas Aplicadas | E70: Facultad de Ciencias Económicas y Administrativas | F70: Economía | G70: 1
B71: 2015 | C71: Facultad de Ciencias Económicas y Administrativas | D71: Administración de Empresas | E71: Facultad de Ciencias Económicas y Administrativas | F71: Economía | G71: 24
B72: 2015 | C72: Facultad de Ciencias Económicas y Administrativas | D72: Administración de Empresas | E72: Facultad de Humanidades y Ciencias Sociales | F72: Comunicación | G72: 2
B73: 2015 | C73: Facultad de Ciencias Económicas y Administrativas | D73: Administración de Empresas (Nocturna) | E73: Facultad de Humanidades y Ciencias Sociales | F73: Comunicación | G73: 1
B74: 2015 | C74: Facultad de Ciencias Económicas y Administrativas | D74: Contaduría Pública | E74: Facultad de Ciencias Económicas y Administrativas | F74: Administración de Empresas | G74: 1
B75: 2015 | C75: Facultad de Ciencias Económicas y Administrativas | D75: Contaduría Pública | E75: Facultad de Ciencias Económicas y Administrativas | F75: Administración de Empresas nocturno | G75: 8
B76: 2015 | C76: Facultad de Ciencias Económicas y Administrativas | D76: Contaduría Pública | E76: Facultad de Humanidades y Ciencias Sociales | F76: Derecho | G76: 2
B77: 2015 | C77: Facultad de Ciencias Económicas y Administrativas | D77: Contaduría Pública diurna | E77: Facultad de Ciencias Económicas y Administrativas | F77: Administración de Empresas | G77: 1
B78: 2015 | C78: Facultad de Ciencias Económicas y Administrativas | D78: Contaduría Pública diurna | E78: Facultad de Ciencias Económicas y Administrativas | F78: Administración de Empresas nocturno | G78: 4
B79: 2015 | C79: Facultad de Ciencias Económicas y Administrativas | D79: Contaduría Pública diurna | E79: Facultad de Ciencias Económicas y Administrativas | F79: Economía | G79: 3
B80: 2015 | C80: Facultad de Ciencias Económicas y Administrativas | D80: Contaduría Pública diurna | E80: Facultad de Humanidades y Ciencias Sociales | F80: Derecho | G80: 3
B81: 2015 | C81: Facultad de Ciencias Económicas y Administrativas | D81: Economía | E81: Facultad de Ciencias Económicas y Administrativas | F81: Administración de Empresas nocturno | G81: 1
B82: 2015 | C82: Facultad de Ciencias Económicas y Administrativas | D82: Negocios Internacionales | E82: Facultad de Ciencias Económicas y Administrativas | F82: Administración de Empresas | G82: 3
B83: 2015 | C83: Facultad de Ciencias Económicas y Administrativas | D83: Negocios Internacionales | E83: Facultad de Ciencias Económicas y Administrativas | F83: Economía | G83: 1
B84: 2015 | C84: Facultad de Ciencias Económicas y Administrativas | D84: Negocios Internacionales | E84: Facultad de Ingeniería | F84: Ingeniería Electrónica | G84: 1
B85: 2015 | C85: Facultad de Humanidades y Ciencias Sociales | D85: Arquitectura | E85: Facultad de Ciencias Económicas y Administrativas | F85: Contaduría Pública | G85: 1
B86: 2015 | C86: Facultad de Humanidades y Ciencias Sociales | D86: Arquitectura | E86: Facultad de Ingeniería | F86: Ingeniería Civil | G86: 2
B87: 2015 | C87: Facultad de Humanidades y Ciencias Sociales | D87: Artes Visuales | E87: Facultad de Ciencias Económicas y Administrativas | F87: Administración de Empresas | G87: 2
B88: 2015 | C88: Facultad de Humanidades y Ciencias Sociales | D88: Artes Visuales | E88: Facultad de Humanidades y Ciencias Sociales | F88: Comunicación | G88: 5
B89: 2015 | C89: Facultad de Humanidades y Ciencias Sociales | D89: Artes Visuales | E89: Facultad de Humanidades y Ciencias Sociales | F89: Derecho | G89: 1
B90: 2015 | C90: Facultad de Humanidades y Ciencias Sociales | D90: Artes Visuales | E90: Facultad de Humanidades y Ciencias Sociales | F90: Filosofía | G90: 4
B91: 2015 | C91: Facultad de Humanidades y Ciencias Sociales | D91: Artes Visuales | E91: Facultad de Humanidades y Ciencias Sociales | F91: Psicología | G91: 4
B92: 2015 | C92: Facultad de Humanidades y Ciencias Sociales | D92: Artes Visuales | E92: Facultad de Ingeniería | F92: Ingeniería de Sistemas y Computación | G92: 1
B93: 2015 | C93: Facultad de Humanidades y Ciencias Sociales | D93: Ciencia Política | E93: Facultad de Ciencias Económicas y Administrativas | F93: Economía | G93: 1
B94: 2015 | C94: Facultad de Humanidades y Ciencias Sociales | D94: Ciencia Política | E94: Facultad de Humanidades y Ciencias Sociales | F94: Comunicación | G94: 3
B95: 2015 | C95: Facultad de Humanidades y Ciencias Sociales | D95: Derecho | E95: Facultad de Ciencias Económicas y Administrativas | F95: Administración de Empresas | G95: 5
B96: 2015 | C96: Facultad de Humanidades y Ciencias Sociales | D96: Derecho | E96: Facultad de Ciencias Económicas y Administrativas | F96: Administración de Empresas nocturno | G96: 1
B97: 2015 | C97: Facultad de Humanidades y Ciencias Sociales | D97: Derecho | E97: Facultad de Ciencias Económicas y Administrativas | F97: Economía | G97: 8
B98: 2015 | C98: Facultad de Humanidades y Ciencias Sociales | D98: Derecho | E98: Facultad de Humanidades y Ciencias Sociales | F98: Ciencia Política | G98: 12
B99: 2015 | C99: Facultad de Humanidades y Ciencias Sociales | D99: Derecho | E99: Facultad de Humanidades y Ciencias Sociales | F99: Comunicación | G99: 7
B100: 2015 | C100: Facultad de Humanidades y Ciencias Sociales | D100: Diseño de Comunicación Visual | E100: Facultad de Ciencias Económicas y Administrativas | F100: Administración de Empresas | G100: 2
B101: 2015 | C101: Facultad de Humanidades y Ciencias Sociales | D101: Diseño de Comunicación Visual | E101: Facultad de Humanidades y Ciencias Sociales | F101: Arquitectura | G101: 2
B102: 2015 | C102: Facultad de Humanidades y Ciencias Sociales | D102: Diseño de Comunicación Visual | E102: Facultad de Humanidades y Ciencias Sociales | F102: Artes Visuales | G102: 14
B103: 2015 | C103: Facultad de Humanidades y Ciencias Sociales | D103: Diseño de Comunicación Visual | E103: Facultad de Humanidades y Ciencias Sociales | F103: Comunicación | G103: 6
B104: 2015 | C104: Facultad de Humanidades y Ciencias Sociales | D104: Diseño de Comunicación Visual | E104: Facultad de Humanidades y Ciencias Sociales | F104: Psicología | G104: 2
B105: 2015 | C105: Facultad de Humanidades y Ciencias Sociales | D105: Diseño de Comunicación Visual | E105: Facultad de Ingeniería | F105: Ingeniería de Sistemas y Computación | G105: 1
B106: 2015 | C106: Facultad de Humanidades y Ciencias Sociales | D106: Filosofía | E106: Facultad de Ciencias Económicas y Administrativas | F106: Economía | G106: 1
B107: 2015 | C107: Facultad de Humanidades y Ciencias Sociales | D107: Filosofía | E107: Facultad de Humanidades y Ciencias Sociales | F107: Derecho | G107: 2
B108: 2015 | C108: Facultad de Humanidades y Ciencias Sociales | D108: Filosofía | E108: Facultad de Humanidades y Ciencias Sociales | F108: Psicología | G108: 1
B109: 2015 | C109: Facultad de Humanidades y Ciencias Sociales | D109: Filosofía | E109: Facultad de Ingeniería | F109: Ingeniería Civil | G109: 1
B110: 2015 | C110: Facultad de Humanidades y Ciencias Sociales | D110: Psicología | E110: Facultad de Ciencias Económicas y Administrativas | F110: Administración de Empresas | G110: 1
B111: 2015 | C111: Facultad de Humanidades y Ciencias Sociales | D111: Psicología | E111: Facultad de Ciencias Económicas y Administrativas | F111: Administración de Empresas nocturno | G111: 2
B112: 2015 | C112: Facultad de Humanidades y Ciencias Sociales | D112: Psicología | E112: Facultad de Ciencias Económicas y Administrativas | F112: Economía | G112: 1
B113: 2015 | C113: Facultad de Humanidades y Ciencias Sociales | D113: Psicología | E113: Facultad de Humanidades y Ciencias Sociales | F113: Comunicación | G113: 12
B114: 2015 | C114: Facultad de Humanidades y Ciencias Sociales | D114: Psicología | E114: Facultad de Humanidades y Ciencias Sociales | F114: Derecho | G114: 3
B115: 2015 | C115: Facultad de Ingeniería | D115: Biología | E115: Facultad de Ciencias Económicas y Administrativas | F115: Administración de Empresas | G115: 1
B116: 2015 | C116: Facultad de Ingeniería | D116: Biología | E116: Facultad de Humanidades y Ciencias Sociales | F116: Derecho | G116: 1
B117: 2015 | C117: Facultad de Ingeniería | D117: Biología | E117: Facultad de Ingeniería | F117: Ingeniería de Sistemas y Computación | G117: 1
B118: 2015 | C118: Facultad de Ingeniería | D118: Ingeniería Civil | E118: Facultad de Ciencias Económicas y Administrativas | F118: Administración de Empresas | G118: 6
B119: 2015 | C119: Facultad de Ingeniería | D119: Ingeniería Civil | E119: Facultad de Ciencias Económicas y Administrativas | F119: Administración de Empresas nocturno | G119: 1
B120: 2015 | C120: Facultad de Ingeniería | D120: Ingeniería Civil | E120: Facultad de Ciencias Económicas y Administrativas | F120: Economía | G120: 1
B121: 2015 | C121: Facultad de Ingeniería | D121: Ingeniería de Sistemas y Computación | E121: Facultad de Ciencias Económicas y Administrativas | F121: Administración de Empresas | G121: 2
B122: 2015 | C122: Facultad de Ingeniería | D122: Ingeniería Electrónica | E122: Facultad de Ciencias Económicas y Administrativas | F122: Administración de Empresas | G122: 2
B123: 2015 | C123: Facultad de Ingeniería | D123: Ingeniería Electrónica | E123: Facultad de Ciencias Económicas y Administrativas | F123: Administración de Empresas nocturno | G123: 2
B124: 2015 | C124: Facultad de Ingeniería | D124: Ingeniería Industrial | E124: Facultad de Ciencias Económicas y Administrativas | F124: Administración de Empresas | G124: 18
B125: 2015 | C125: Facultad de Ingeniería | D125: Ingeniería Industrial | E125: Facultad de Ciencias Económicas y Administrativas | F125: Administración de Empresas nocturno | G125: 1
B126: 2015 | C126: Facultad de Ingeniería | D126: Ingeniería Industrial | E126: Facultad de Ciencias Económicas y Administrativas | F126: Contaduría Pública diurna | G126: 2
B127: 2015 | C127: Facultad de Ingeniería | D127: Ingeniería Industrial | E127: Facultad de Ciencias Económicas y Administrativas | F127: Economía | G127: 3
B128: 2015 | C128: Facultad de Ingeniería | D128: Ingeniería Industrial | E128: Facultad de Humanidades y Ciencias Sociales | F128: Comunicación | G128: 1
B129: 2015 | C129: Facultad de Ingeniería | D129: Ingeniería Industrial | E129: Facultad de Humanidades y Ciencias Sociales | F129: Psicología | G129: 1
B130: 2015 | C130: Facultad de Ingeniería | D130: Ingeniería Industrial | E130: Facultad de Ingeniería | F130: Biología | G130: 1
B131: 2015 | C131: Facultad de Ingeniería | D131: Ingeniería Industrial | E131: Facultad de Ingeniería | F131: Ingeniería Civil | G131: 1
B132: 2015 | C132: Facultad de Ingeniería | D132: Ingeniería Industrial | E132: Facultad de Ingeniería | F132: Ingeniería de Sistemas y Computación | G132: 4
B133: 2015 | C133: Facultad de Ingeniería | D133: Ingeniería Industrial | E133: Facultad de Ingeniería | F133: Ingeniería Electrónica | G133: 3
B134: 2015 | C134: Facultad de Ingeniería | D134: Ingeniería Industrial | E134: Facultad de Ingeniería | F134: Matemáticas Aplicadas | G134: 2
B135: 2015 | C135: Facultad de Ingeniería | D135: Matemáticas Aplicadas | E135: Facultad de Ciencias Económicas y Administrativas | F135: Economía | G135: 1
B136: 2015 | C136: Facultad de Ingeniería | D136: Matemáticas Aplicadas | E136: Facultad de Ingeniería | F136: Ingeniería Civil | G136: 1
B137: 2015 | C137: Facultad de Ingeniería | D137: Matemáticas Aplicadas | E137: Facultad de Ingeniería | F137: Ingeniería Electrónica | G137: 5
B138: 2016 | C138: Facultad de Ciencias Económicas y Administrativas | D138: Administración de Empresas (Diurna) | E138: Facultad de Ciencias Económicas y Administrativas | F138: Economía | G138: 10
B139: 2016 | C139: Facultad de Ciencias Económicas y Administrativas | D139: Administración de Empresas (Diurna) | E139: Facultad de Humanidades y Ciencias Sociales | F139: Comunicación | G139: 2
B140: 2016 | C140: Facultad de Ciencias Económicas y Administrativas | D140: Contaduría Pública (Nocturna) | E140: Facultad de Ciencias Económicas y Administrativas | F140: Administración de Empresas (Diurna) | G140: 1
B141: 2016 | C141: Facultad de Ciencias Económicas y Administrativas | D141: Contaduría Pública (Nocturna) | E141: Facultad de Ciencias Económicas y Administrativas | F141: Administración de Empresas (Nocturna) | G141: 4
B142: 2016 | C142: Facultad de Ciencias Económicas y Administrativas | D142: Contaduría Pública (Nocturna) | E142: Facultad de Ciencias Económicas y Administrativas | F142: Contaduría Pública (Diurna) | G142: 1
B143: 2016 | C143: Facultad de Ciencias Económicas y Administrativas | D143: Contaduría Pública (Diurna) | E143: Facultad de Ciencias Económicas y Administrativas | F143: Administración de Empresas (Nocturna) | G143: 1
B144: 2016 | C144: Facultad de Ciencias Económicas y Administrativas | D144: Contaduría Pública (Diurna) | E144: Facultad de Humanidades y Ciencias Sociales | F144: Derecho | G144: 2
B145: 2016 | C145: Facultad de Ciencias Económicas y Administrativas | D145: Economía | E145: Facultad de Humanidades y Ciencias Sociales | F145: Comunicación | G145: 2
B146: 2016 | C146: Facultad de Ciencias Económicas y Administrativas | D146: Negocios Internacionales | E146: Facultad de Ciencias Económicas y Administrativas | F146: Administración de Empresas (Diurna) | G146: 3
B147: 2016 | C147: Facultad de Ciencias Económicas y Administrativas | D147: Negocios Internacionales | E147: Facultad de Ciencias Económicas y Administrativas | F147: Economía | G147: 1
B148: 2016 | C148: Facultad de Ciencias Económicas y Administrativas | D148: Negocios Internacionales | E148: Facultad de Humanidades y Ciencias Sociales | F148: Derecho | G148: 1
B149: 2016 | C149: Facultad de Ciencias Económicas y Administrativas | D149: Negocios Internacionales | E149: Facultad de Humanidades y Ciencias Sociales | F149: Psicología | G149: 1
B150: 2016 | C150: Facultad de Humanidades y Ciencias Sociales | D150: Arquitectura | E150: Facultad de Ciencias Económicas y Administrativas | F150: Administración de Empresas (Diurna) | G150: 1
B151: 2016 | C151: Facultad de Humanidades y Ciencias Sociales | D151: Arquitectura | E151: Facultad de Ciencias Económicas y Administrativas | F151: Contaduría Pública (Nocturna) | G151: 1
B152: 2016 | C152: Facultad de Humanidades y Ciencias Sociales | D152: Arquitectura | E152: Facultad de Humanidades y Ciencias Sociales | F152: Derecho | G152: 1
B153: 2016 | C153: Facultad de Humanidades y Ciencias Sociales | D153: Arquitectura | E153: Facultad de Humanidades y Ciencias Sociales | F153: Psicología | G153: 1
B154: 2016 | C154: Facultad de Humanidades y Ciencias Sociales | D154: Arquitectura | E154: Facultad de Ingeniería | F154: Ingeniería Civil | G154: 1
B155: 2016 | C155: Facultad de Humanidades y Ciencias Sociales | D155: Artes Visuales | E155: Facultad de Ciencias Económicas y Administrativas | F155: Administración de Empresas (Diurna) | G155: 2
B156: 2016 | C156: Facultad de Humanidades y Ciencias Sociales | D156: Artes Visuales | E156: Facultad de Ciencias Económicas y Administrativas | F156: Administración de Empresas (Nocturna) | G156: 1
B157: 2016 | C157: Facultad de Humanidades y Ciencias Sociales | D157: Artes Visuales | E157: Facultad de Humanidades y Ciencias Sociales | F157: Comunicación | G157: 4
B158: 2016 | C158: Facultad de Humanidades y Ciencias Sociales | D158: Artes Visuales | E158: Facultad de Humanidades y Ciencias Sociales | F158: Derecho | G158: 2
B159: 2016 | C159: Facultad de Humanidades y Ciencias Sociales | D159: Artes Visuales | E159: Facultad de Humanidades y Ciencias Sociales | F159: Filosofía | G159: 3
B160: 2016 | C160: Facultad de Humanidades y Ciencias Sociales | D160: Artes Visuales | E160: Facultad de Humanidades y Ciencias Sociales | F160: Psicología | G160: 3
B161: 2016 | C161: Facultad de Humanidades y Ciencias Sociales | D161: Ciencia Política | E161: Facultad de Ciencias Económicas y Administrativas | F161: Administración de Empresas (Diurna) | G161: 1
B162: 2016 | C162: Facultad de Humanidades y Ciencias Sociales | D162: Ciencia Política | E162: Facultad de Ciencias Económicas y Administrativas | F162: Administración de Empresas (Nocturna) | G162: 1
B163: 2016 | C163: Facultad de Humanidades y Ciencias Sociales | D163: Ciencia Política | E163: Facultad de Ciencias Económicas y Administrativas | F163: Economía | G163: 2
B164: 2016 | C164: Facultad de Humanidades y Ciencias Sociales | D164: Ciencia Política | E164: Facultad de Humanidades y Ciencias Sociales | F164: Comunicación | G164: 4
B165: 2016 | C165: Facultad de Humanidades y Ciencias Sociales | D165: Derecho | E165: Facultad de Ciencias Económicas y Administrativas | F165: Administración de Empresas (Diurna) | G165: 3
B166: 2016 | C166: Facultad de Humanidades y Ciencias Sociales | D166: Derecho | E166: Facultad de Ciencias Económicas y Administrativas | F166: Economía | G166: 4
B167: 2016 | C167: Facultad de Humanidades y Ciencias Sociales | D167: Derecho | E167: Facultad de Humanidades y Ciencias Sociales | F167: Ciencia Política | G167: 11
B168: 2016 | C168: Facultad de Humanidades y Ciencias Sociales | D168: Derecho | E168: Facultad de Humanidades y Ciencias Sociales | F168: Comunicación | G168: 7
B169: 2016 | C169: Facultad de Humanidades y Ciencias Sociales | D169: Diseño de Comunicación Visual | E169: Facultad de Ciencias Económicas y Administrativas | F169: Administración de Empresas (Diurna) | G169: 6
B170: 2016 | C170: Facultad de Humanidades y Ciencias Sociales | D170: Diseño de Comunicación Visual | E170: Facultad de Humanidades y Ciencias Sociales | F170: Arquitectura | G170: 7
B171: 2016 | C171: Facultad de Humanidades y Ciencias Sociales | D171: Diseño de Comunicación Visual | E171: Facultad de Humanidades y Ciencias Sociales | F171: Artes Visuales | G171: 9
B172: 2016 | C172: Facultad de Humanidades y Ciencias Sociales | D172: Diseño de Comunicación Visual | E172: Facultad de Humanidades y Ciencias Sociales | F172: Ciencia Política | G172: 1
B173: 2016 | C173: Facultad de Humanidades y Ciencias Sociales | D173: Diseño de Comunicación Visual | E173: Facultad de Humanidades y Ciencias Sociales | F173: Comunicación | G173: 3
B174: 2016 | C174: Facultad de Humanidades y Ciencias Sociales | D174: Diseño de Comunicación Visual | E174: Facultad de Humanidades y Ciencias Sociales | F174: Psicología | G174: 1
B175: 2016 | C175: Facultad de Humanidades y Ciencias Sociales | D175: Diseño de Comunicación Visual | E175: Facultad de Ingeniería | F175: Ingeniería de Sistemas y Computación | G175: 2
B176: 2016 | C176: Facultad de Humanidades y Ciencias Sociales | D176: Diseño de Comunicación Visual | E176: Facultad de Ingeniería | F176: Ingeniería Electrónica | G176: 2
B177: 2016 | C177: Facultad de Humanidades y Ciencias Sociales | D177: Filosofía | E177: Facultad de Humanidades y Ciencias Sociales | F177: Ciencia Política | G177: 1
B178: 2016 | C178: Facultad de Humanidades y Ciencias Sociales | D178: Filosofía | E178: Facultad de Humanidades y Ciencias Sociales | F178: Derecho | G178: 1
B179: 2016 | C179: Facultad de Humanidades y Ciencias Sociales | D179: Filosofía | E179: Facultad de Humanidades y Ciencias Sociales | F179: Psicología | G179: 3
B180: 2016 | C180: Facultad de Humanidades y Ciencias Sociales | D180: Filosofía | E180: Facultad de Ingeniería | F180: Ingeniería Civil | G180: 1
B181: 2016 | C181: Facultad de Humanidades y Ciencias Sociales | D181: Psicología | E181: Facultad de Ciencias Económicas y Administrativas | F181: Administración de Empresas (Diurna) | G181: 3
B182: 2016 | C182: Facultad de Humanidades y Ciencias Sociales | D182: Psicología | E182: Facultad de Humanidades y Ciencias Sociales | F182: Ciencia Política | G182: 1
B183: 2016 | C183: Facultad de Humanidades y Ciencias Sociales | D183: Psicología | E183: Facultad de Humanidades y Ciencias Sociales | F183: Comunicación | G183: 13
B184: 2016 | C184: Facultad de Humanidades y Ciencias Sociales | D184: Psicología | E184: Facultad de Humanidades y Ciencias Sociales | F184: Derecho | G184: 2
B185: 2016 | C185: Facultad de Ingeniería | D185: Biología | E185: Facultad de Humanidades y Ciencias Sociales | F185: Psicología | G185: 1
B186: 2016 | C186: Facultad de Ingeniería | D186: Biología | E186: Facultad de Ingeniería | F186: Ingeniería de Sistemas y Computación | G186: 1
B187: 2016 | C187: Facultad de Ingeniería | D187: Ingeniería Civil | E187: Facultad de Ciencias Económicas y Administrativas | F187: Administración de Empresas (Diurna) | G187: 3
B188: 2016 | C188: Facultad de Ingeniería | D188: Ingeniería Civil | E188: Facultad de Ciencias Económicas y Administrativas | F188: Administración de Empresas (Nocturna) | G188: 2
B189: 2016 | C189: Facultad de Ingeniería | D189: Ingeniería Civil | E189: Facultad de Ciencias Económicas y Administrativas | F189: Economía | G189: 2
B190: 2016 | C190: Facultad de Ingeniería | D190: Ingeniería Civil | E190: Facultad de Humanidades y Ciencias Sociales | F190: Ciencia Política | G190: 1
B191: 2016 | C191: Facultad de Ingeniería | D191: Ingeniería de Sistemas y Computación | E191: Facultad de Ciencias Económicas y Administrativas | F191: Administración de Empresas (Diurna) | G191: 1
B192: 2016 | C192: Facultad de Ingeniería | D192: Ingeniería Electrónica | E192: Facultad de Humanidades y Ciencias Sociales | F192: Derecho | G192: 1
B193: 2016 | C193: Facultad de Ingeniería | D193: Ingeniería Industrial | E193: Facultad de Ciencias Económicas y Administrativas | F193: Administración de Empresas (Diurna) | G193: 12
B194: 2016 | C194: Facultad de Ingeniería | D194: Ingeniería Industrial | E194: Facultad de Ciencias Económicas y Administrativas | F194: Contaduría Pública (Nocturna) | G194: 1
B195: 2016 | C195: Facultad de Ingeniería | D195: Ingeniería Industrial | E195: Facultad de Ciencias Económicas y Administrativas | F195: Economía | G195: 2
B196: 2016 | C196: Facultad de Ingeniería | D196: Ingeniería Industrial | E196: Facultad de Humanidades y Ciencias Sociales | F196: Comunicación | G196: 1
B197: 2016 | C197: Facultad de Ingeniería | D197: Ingeniería Industrial | E197: Facultad de Humanidades y Ciencias Sociales | F197: Psicología | G197: 1
B198: 2016 | C198: Facultad de Ingeniería | D198: Ingeniería Industrial | E198: Facultad de Ingeniería | F198: Biología | G198: 1
B199: 2016 | C199: Facultad de Ingeniería | D199: Ingeniería Industrial | E199: Facultad de Ingeniería | F199: Ingeniería Civil | G199: 2
B200: 2016 | C200: Facultad de Ingeniería | D200: Ingeniería Industrial | E200: Facultad de Ingeniería | F200: Ingeniería de Sistemas y Computación | G200: 4
B201: 2016 | C201: Facultad de Ingeniería | D201: Ingeniería Industrial | E201: Facultad de Ingeniería | F201: Ingeniería Electrónica | G201: 4
B202: 2016 | C202: Facultad de Ingeniería | D202: Ingeniería Industrial | E202: Facultad de Ingeniería | F202: Matemáticas Aplicadas | G202: 1
... 4 more rows

Sheet TABLA B-8
B2: =+CONCATENATE("<< Tabla B-",RIGHT(B4,1)-1) -> << Tabla B-7 | E2: =+CONCATENATE("Tabla B-",RIGHT(B4,1)+1," >>") -> Tabla B-9 >>
B4: =+(MID(ÍNDICE!C27,1,9)) -> Tabla B-8
A5: Estudiantes | B5: Graduados según nivel de programa por facultad o instituto. Sede Central y Seccional Cali.
B6: Fuente: Sistema de graduados. Procesamiento de la Secretaría de Planeación, Rectoría, Sede Central. Oficina de Registro Académico, Vicerrectoría Académica, Seccional Cali.
B7: Nota: El valor del número de graduados corresponde al total de la suma de los dos semestres del año correspondiente. -> A partir del año 2016, se discrimina la Especialización Clínica - Quirúrgica.
C8: Año
C9: 2016
B10: Sede | C10: Pregrado | D10: Especialización | E10: Especialización Clínico/Quirúrgica | F10: Maestría | G10: Doctorado | H10: Total
B11: Sede Central | C11: 3078 | D11: 1416 | E11: 186 | F11: 752 | G11: 33 | H11: 5465
B12: Seccional Cali | C12: 832 | D12: 613 | E12: -- | F12: 154 | G12: -- | H12: 1599
B13: Total general | C13: 3910 | D13: 2029 | E13: 186 | F13: 906 | G13: 33 | H13: 7064

Sheet F-TABLA B-8 (hidden)
B1: Tabla B-8. Graduados según nivel de programa por facultad o instituto. Sede Central y Seccional Cali.
B3: Fuente: Sistema de graduados. Procesamiento de la Secretaría de Planeación, Rectoría, Sede Central. Oficina de Registro Académico, Vicerrectoría Académica, Seccional Cali.
B4: Nota: El valor del número de graduados corresponde al total de la suma de los dos semestres del año correspondiente. -> A partir del año 2016, se discrimina la Especialización Clínica - Quirúrgica.
B6: AÑO | C6: SEDE | D6: FACULTAD/INSTITUTO | E6: PREGRADO | F6: ESPECIALIZACIÓN | G6: ESPECIALIZACIÓN CLÍNICA - QUIRÚRGICA | H6: MAESTRÍA | I6: DOCTORADO | J6: TOTAL
B7: 2007 | C7: Sede Central | D7: Facultad de Arquitectura y Diseño | E7: 231 | F7: 10 | J7: =+SUM(E7:I7) -> 241
B8: 2007 | C8: Sede Central | D8: Facultad de Artes | E8: 116 | F8: 22 | J8: =+SUM(E8:I8) -> 138
B9: 2007 | C9: Sede Central | D9: Facultad de Ciencias | E9: 263 | F9: 84 | H9: 17 | I9: 4 | J9: 368
B10: 2007 | C10: Sede Central | D10: Facultad de Ciencias Económicas y Administrativas | E10: 371 | F10: 461 | H10: 33 | J10: 865
B11: 2007 | C11: Sede Central | D11: Facultad de Ciencias Jurídicas | E11: 102 | F11: 247 | H11: 4 | J11: 353
B12: 2007 | C12: Sede Central | D12: Facultad de Ciencias Políticas y Relaciones Internacionales | E12: 113 | F12: 65 | H12: 51 | J12: 229
B13: 2007 | C13: Sede Central | D13: Facultad de Ciencias Sociales | E13: 56 | F13: 16 | H13: 28 | J13: 100
